Service Area,Service Division,Expense Type,Expense Code,Detailed Expense Type,Payment Date,Transaction Number,Amount Exc VAT,Supplier Name
Neighbourhoods and Climate Change,Environmental Services,Supplies and Services,338099,Services,01/05/2020,3734899-CD970885616,535.00,AGROVISTA UK LTD FORMERLY SHERRIFF AMENITY.
"Regeneration, Economy and Growth",Culture Sport and Tourism,Supplies and Services,384199,Miscellaneous Expenses,01/05/2020,3734901-RN200715,700.00,ALAN BEARMAN MUSIC.
Resources BK0010,Finance & Transactional Services,Supplies and Services,384199,Miscellaneous Expenses,01/05/2020,3734912-B0801920200406,"1,950.00",BACS PAYMENT SCHEMES LTD.
Neighbourhoods and Climate Change,Environmental Services,Supplies and Services,304221,Equipment and Materials,01/05/2020,3734913-97980162,572.42,BALL COLEGRAVE LTD.
"Regeneration, Economy and Growth",Culture Sport and Tourism,Supplies and Services,336005,Advertising E336,01/05/2020,3734916-INV-0046,"3,780.00",BEYOND DIGITAL SOLUTIONS LTD.
"Regeneration, Economy and Growth",Transport and Contracted Services,Fees,901002,Professional Fees,01/05/2020,3734920-SIN014879,"174,183.41",BLOOM PROCUREMENT SERVICES LTD (FORMERLY NEPRO LTD).
Adult and Health Services,Head of Adults,Supplies and Services,304259,Equipment and Materials,01/05/2020,3734922-INV-9008,"1,225.00",BRAIN-IN-HAND LTD.
Adult and Health Services,Head of Adults,Supplies and Services,338366,Services,01/05/2020,3734928-67046,"4,516.00",CARE ABILITY HEALTHCARE LTD.
Adult and Health Services,Head of Adults,Supplies and Services,338366,Services,01/05/2020,3734928-67047,"1,685.20",CARE ABILITY HEALTHCARE LTD.
Adult and Health Services,Head of Adults,Supplies and Services,338366,Services,01/05/2020,3734928-67048,"2,120.85",CARE ABILITY HEALTHCARE LTD.
Adult and Health Services,Head of Adults,Supplies and Services,338366,Services,01/05/2020,3734928-67049,"3,988.20",CARE ABILITY HEALTHCARE LTD.
Adult and Health Services,Head of Adults,Third Party Payments,472101,Purchase of Care,01/05/2020,3734929-ADDITIONALUPLIFTBACKDATED-19/03/2020-9,"1,526.05",CASTLE CARE TEESDALE LTD.
Children and Young Peoples Services,Head of Education and Skills,Supplies and Services,384956,Miscellaneous Expenses,01/05/2020,3734933-25764,"1,125.00",CHARANGA LTD.
Adult and Health Services,Head of Adults,Third Party Payments,472101,Purchase of Care,01/05/2020,3734944-ADDITIONALUPLIFTBACKDATED-19/03/2020-1,"7,766.48",COMFORT CALL LTD.
Children and Young Peoples Services,Head of Education and Skills,Third Party Payments,440999,Other third party payments E440,01/05/2020,3734945-CTA/032,"3,087.50",COMMUNICATORS TRAINING ASSOCIATES LTD.
Children and Young Peoples Services,Head of Education and Skills,Third Party Payments,440999,Other third party payments E440,01/05/2020,3734945-CTA/033,"2,925.00",COMMUNICATORS TRAINING ASSOCIATES LTD.
Children and Young Peoples Services,Head of Education and Skills,Third Party Payments,440999,Other third party payments E440,01/05/2020,3734945-CTA/034,"4,006.03",COMMUNICATORS TRAINING ASSOCIATES LTD.
Children and Young Peoples Services,Head of Education and Skills,Third Party Payments,440999,Other third party payments E440,01/05/2020,3734945-CTA/035,640.58,COMMUNICATORS TRAINING ASSOCIATES LTD.
Neighbourhoods and Climate Change,Partnerships & Community Engagement Div.,Supplies and Services,384086,Miscellaneous Expenses,01/05/2020,3734948-VOUCHER20ABCV19-4TOG009,"9,906.00",CORNFORTH PARTNERSHIP.
"Regeneration, Economy and Growth",Culture Sport and Tourism,Supplies and Services,384700,Miscellaneous Expenses,01/05/2020,3734949-NEI-HCL-04-2020-004,"100,000.00",COUNTY DURHAM COMMUNITY FOUNDATION.
Adult and Health Services,Head of Adults,Third Party Payments,472101,Purchase of Care,01/05/2020,3734955-ADDITIONALUPLIFTBACKDATED-19/03/2020-5,"3,127.29",CRESCENT HOMECARE LTD.
Resources BK0010,Legal & Democratic Services,Supplies and Services,338027,Services,01/05/2020,3734956-NECP2011,750.00,CRYSTALLISED LTD.
"Regeneration, Economy and Growth",Development and Housing,Supplies and Services,338066,Services,01/05/2020,3734957-GB3002-CI-20-05234,"12,000.00",CUSHMAN & WAKEFIELD DEBENHAM TIE LEUNG LTD.
Adult and Health Services,Head of Adults,Third Party Payments,472101,Purchase of Care,01/05/2020,3734960-ADDITIONALUPLIFTBACKDATED-19/03/2020-6,"20,354.33",DALE CARE LTD.
Neighbourhoods and Climate Change,Technical Services CM0300,Supplies and Services,304358,Equipment and Materials,01/05/2020,3734981-SI-509,"2,497.50",ENVIROROD LTD.
Neighbourhoods and Climate Change,Partnerships & Community Engagement Div.,Supplies and Services,384086,Miscellaneous Expenses,01/05/2020,3734989-VOUCHER20NBCV19-CHES005,"1,500.00",GARDEN FARM & WEST LANE RESIDENTS ASSOCIATION.
Transformation and Partnerships,Communications Management,Supplies and Services,336005,Advertising E336,01/05/2020,3734992-1224314,"3,518.88",GLOBAL RADIO SERVICES LTD.
Chief Executive's Office,Communications Management,Supplies and Services,336005,Advertising E336,01/05/2020,3734992-1224314,"3,518.88",GLOBAL RADIO SERVICES LTD.
Children and Young Peoples Services,Head of Childrens Social Care,Supplies and Services,338043,Services,01/05/2020,3734993-CAS-04-2020-202,672.90,GORDON BROWN LAW FIRM LLP.
Neighbourhoods and Climate Change,Technical Services CM0300,Stock A926,926900,Stock in hand-Inventory system,01/05/2020,3734994-06/062027,695.60,GREENHAM TRADING LTD.
Children and Young Peoples Services,Head of Education and Skills,Third Party Payments,440999,Other third party payments E440,01/05/2020,3734995-M219,"4,392.00",GROUNDWORK NORTH EAST.
Neighbourhoods and Climate Change,Environmental Services,Transport,210057,Repair and Maintenance of Vehicles,01/05/2020,3734998-9547,649.60,HILLCREST AUTO ELECTRICS.
Neighbourhoods and Climate Change,Environmental Services,Transport,210057,Repair and Maintenance of Vehicles,01/05/2020,3734998-9544,"1,327.50",HILLCREST AUTO ELECTRICS.
Neighbourhoods and Climate Change,Environmental Services,Third Party Payments,430100,Rendered by Private Contractors,01/05/2020,3735002-2731,650.00,IAN C LIDDLE T/A IC LIDDLE SERVICES.
Neighbourhoods and Climate Change,Environmental Services,Premises,106082,Centrally Controlled Rep and Maint,01/05/2020,3735006-90030047,616.77,INTEGRATED UTILITY SERVICES LTD.*
"Regeneration, Economy and Growth",Corporate Property and Land,Premises,108099,Service Repairs and Maintenance,01/05/2020,3735007-CD200176581,"12,901.63",INTEGRATED WATER SERVICES LTD.
Neighbourhoods and Climate Change,Technical Services CM0300,Third Party Payments,430127,Rendered by Private Contractors,01/05/2020,3735008-5305851,825.00,JA GILSON (AGRICULTURAL CONTRACTORS) LTD.
Neighbourhoods and Climate Change,Environmental Services,Supplies and Services,304358,Equipment and Materials,01/05/2020,3735016-0000082715,956.25,JOHN WADE (HAULAGE) LTD.
Neighbourhoods and Climate Change,Technical Services CM0300,Supplies and Services,304358,Equipment and Materials,01/05/2020,3735016-0000082691,765.00,JOHN WADE (HAULAGE) LTD.
"Regeneration, Economy and Growth",Corporate Property and Land,Third Party Payments,430100,Rendered by Private Contractors,01/05/2020,3735018-7,"1,100.00",JTL SCAFFOLDING LTD.
Adult and Health Services,Head of Adults,Third Party Payments,472101,Purchase of Care,01/05/2020,3735019-ADDITIONALUPLIFTBACKDATED-19/03/2020-8,"9,007.60",KELLY PARK LTD..
Resources - C A C,Centrally Administered costs 069006,Supplies and Services,372009,Subscriptions E372,01/05/2020,3735027-40106077,"89,009.11",LOCAL GOVERNMENT ASSOCIATION.
Neighbourhoods and Climate Change,Technical Services CM0300,Supplies and Services,304358,Equipment and Materials,01/05/2020,3735029-2178,558.00,MARTIN JEWITT PLANT HIRE.
"Regeneration, Economy and Growth",Corporate Property and Land,Third Party Payments,430100,Rendered by Private Contractors,01/05/2020,3735035-30559/92074761,"6,435.00",MITIE PROPERTY SERVICES (UK) LTD.
Adult and Health Services,Head of Adults,Third Party Payments,472101,Purchase of Care,01/05/2020,3735040-ADDITIONALUPLIFTBACKDATED-19/03/2020-2,"1,538.09",MY HOMECARE (DURHAM) LTD.
Adult and Health Services,Head of Adults,Third Party Payments,472101,Purchase of Care,01/05/2020,3735041-ADDITIONALUPLIFTBACKDATED-19/03/2020-12,621.58,MYCHOICE HOMECARE LTD.
Chief Executive's Office,Communications Management,Supplies and Services,338027,Services,01/05/2020,3735046-Q442585,"2,417.00",NLA MEDIA ACCESS LTD.
Transformation and Partnerships,Communications Management,Supplies and Services,338027,Services,01/05/2020,3735046-Q442585,"2,417.00",NLA MEDIA ACCESS LTD.
"Regeneration, Economy and Growth",Corporate Property and Land,Construction work A908,908105,Construction work,01/05/2020,3735047-NEI-EXP-04-2020-018,"1,425.00",NORTHUMBRIAN WATER LTD.
Adult and Health Services,Head of Adults,Third Party Payments,472101,Purchase of Care,01/05/2020,3735052-ADDITIONALUPLIFTBACKDATED-19/03/2020-7,"6,391.99",ORCHARD HOME CARE SERVICES LTD.
Neighbourhoods and Climate Change,Partnerships & Community Engagement Div.,Cap Exp on Grants & Other Financial Assistance (REFCUS),918004,Contributions to other bodies 918004,01/05/2020,3735056-VOUCHER20NBCV19-CHES004,"8,772.18",PARK VIEW ACADEMY.
Adult and Health Services,Head of Adults,Third Party Payments,472101,Purchase of Care,01/05/2020,3735061-ADDITIONALUPLIFTBACKDATED-19/03/2020-3,"5,513.79",PERFECT CARE LTD.
Children and Young Peoples Services,Head of Education and Skills,Transport,230007,Contract Hire,01/05/2020,3735062-30,"1,210.00",PETER NAYLOR.
Children and Young Peoples Services,Head of Education and Skills,Transport,230007,Contract Hire,01/05/2020,3735062-27,"1,899.04",PETER NAYLOR.
Children and Young Peoples Services,Head of Education and Skills,Transport,230007,Contract Hire,01/05/2020,3735063-COVID19-EST-APRIL-CYPS-026-1233,569.71,PETER NAYLOR.
Children and Young Peoples Services,Head of Education and Skills,Transport,230007,Contract Hire,01/05/2020,3735063-COVID19-EST-MAY-CYPS-0025-1233,517.92,PETER NAYLOR.
Children and Young Peoples Services,Head of Education and Skills,Transport,230007,Contract Hire,01/05/2020,3735062-28,"1,223.20",PETER NAYLOR.
Children and Young Peoples Services,Head of Education and Skills,Transport,230006,Contract Hire,01/05/2020,3735062-29,767.00,PETER NAYLOR.
Adult and Health Services,Head of Adults,Supplies and Services,384616,Miscellaneous Expenses,01/05/2020,3735065-1143091,905.13,PLACES FOR PEOPLE INDIVIDUAL SUPPORT.
Adult and Health Services,Head of Adults,Third Party Payments,472101,Purchase of Care,01/05/2020,3735066-ADDITIONALUPLIFTBACKDATED-19/03/2020-4,"8,794.27",PREMIER COMMUNITY CARE LTD.
Neighbourhoods and Climate Change,Technical Services CM0300,Supplies and Services,304221,Equipment and Materials,01/05/2020,3735069-132750,"2,202.80",PROTECTOR SECURITY GROUP LTD.
Children and Young Peoples Services,Head of Early Help Inclusion & Vulnerable Children.,Employees,080025,Agency Staff,01/05/2020,3735070-51506617,674.25,PROTOCOL EDUCATION LTD.
Neighbourhoods and Climate Change,Technical Services CM0300,Third Party Payments,430100,Rendered by Private Contractors,01/05/2020,3735072-12443,"2,497.67",QUANTUM POWER CONNECTIONS LTD.
Adult and Health Services,Head of Adults,Third Party Payments,472101,Purchase of Care,01/05/2020,3735077-BACKDATEDADDITIONALUPLIFT,577.68,RESOURCES CARE T/A MYHOMECARE DDNY LTD.
Resources BK0010,Finance & Transactional Services,Supplies and Services,340001,Postages E340,01/05/2020,3735079-9060618139,"22,912.24",ROYAL MAIL GROUP PLC.
Resources BK0010,Legal & Democratic Services,Supplies and Services,340001,Postages E340,01/05/2020,3735079-9060548717,"1,299.53",ROYAL MAIL GROUP PLC.
"Regeneration, Economy and Growth",Corporate Property and Land,Supplies and Services,338005,Services,01/05/2020,3735082-NEW12912,750.00,SANDERSON WEATHERALL LLP.
Neighbourhoods and Climate Change,Environmental Services,Supplies and Services,338027,Services,01/05/2020,3735091-0000818917,545.00,SOCOTEC UK LTD.
Children and Young Peoples Services,Head of Education and Skills,Third Party Payments,440999,Other third party payments E440,01/05/2020,3735095-322,"15,620.00",STANLEY EVENTS LTD.
Children and Young Peoples Services,Head of Education and Skills,Third Party Payments,440999,Other third party payments E440,01/05/2020,3735095-323,"14,736.80",STANLEY EVENTS LTD.
Children and Young Peoples Services,Head of Education and Skills,Supplies and Services,336005,Advertising E336,01/05/2020,3735097-INV-5065,"1,200.00",STEVE DAVIDSON ADVERTISING LTD T/A SD ADVERTISING LTD.
"Regeneration, Economy and Growth",Transport and Contracted Services,Third Party Payments,430108,Rendered by Private Contractors,01/05/2020,3735103-90015019,"8,063.14",SWARCO TRAFFIC LTD.
Adult and Health Services,Head of Adults,Third Party Payments,472111,Purchase of Care,01/05/2020,3735110-ADDITIONALUPLIFTBACKDATED-19/03/2020-13,"7,256.87",THE HUMAN SUPPORT GROUP LTD.
Neighbourhoods and Climate Change,Environmental Services,Supplies and Services,304221,Equipment and Materials,01/05/2020,3735114-NSIN00034758,"2,333.48",THOMAS OWEN & SONS (NEWCASTLE) LTD.
Adult and Health Services,Head of Adults,Third Party Payments,472101,Purchase of Care,01/05/2020,3735117-ADDITIONALUPLIFTBACKDATED-19/03/2020-10,782.48,TLC COMMUNITY SERVICES.
Neighbourhoods and Climate Change,Environmental Services,Premises,106082,Centrally Controlled Rep and Maint,01/05/2020,3735124-992991,530.00,TYCO FIRE & INTEGRATED SOLUTIONS (UK) LTD.
"Regeneration, Economy and Growth",Corporate Property and Land,Premises,108099,Service Repairs and Maintenance,01/05/2020,3735124-80071298,"4,642.00",TYCO FIRE & INTEGRATED SOLUTIONS (UK) LTD.
"Regeneration, Economy and Growth",Culture Sport and Tourism,Supplies and Services,384199,Miscellaneous Expenses,01/05/2020,3735139-UOTR4639309,"1,736.66",WESTERN UNION BUSINESS SOLUTIONS.
Resources BK0010,Digital and Customer Services,Vehicles Equipment Furniture and Fittings,912701,Computer equipment,01/05/2020,3735145-KW29301,783.51,XMA LTD.
Resources BK0010,Digital and Customer Services,Vehicles Equipment Furniture and Fittings,912701,Computer equipment,01/05/2020,3735145-KW30154,"3,804.40",XMA LTD.
Resources BK0010,Digital and Customer Services,Supplies and Services,342051,Computers and Communications,01/05/2020,3735147-IN0093171,"18,738.00",ZELLIS UK LTD.
Resources BK0010,Finance & Transactional Services,Intangible Assets,917003,Software capitalised implementation fees,01/05/2020,3735147-IN0093500,"2,188.80",ZELLIS UK LTD.
Children and Young Peoples Services,Head of Education and Skills,Transfer Payments,510034,School Children,04/05/2020,3735159-LACPPSUMMER2021,"1,200.00",AIM HIGH ACADEMY TRUST T/A DUBMIRE ACADEMY.
Children and Young Peoples Services,Head of Education and Skills,Transfer Payments,510034,School Children,04/05/2020,3735162-LACPPSUMMER2021,"1,200.00",ALBANY VILLAGE PRIMARY SCHOOL.
Children and Young Peoples Services,Head of Education and Skills,Transport,230034,Contract Hire,04/05/2020,3735168-COVID19-EST-APRIL-CYPS-156-3386,528.00,ARMSTRONG`S TAXIS.
Children and Young Peoples Services,Head of Education and Skills,Transport,230034,Contract Hire,04/05/2020,3735168-MARCH2020-03,"1,760.00",ARMSTRONG`S TAXIS.
Children and Young Peoples Services,Head of Education and Skills,Transport,230008,Contract Hire,04/05/2020,3735168-MAR2020-01,"1,563.76",ARMSTRONG`S TAXIS.
Dedicated Schools Grant BG0015,DSG High Needs Block,Transport,230011,Contract Hire,04/05/2020,3735168-MARCH2020-02/2,"1,099.26",ARMSTRONG`S TAXIS.
Adult and Health Services,Head of Adults,Transport,230005,Contract Hire,04/05/2020,3735171-COVID19-EST-APRIL-AWH-1195-SED108,585.60,ATLAS TAXIS BISHOP AUCKLAND.
Adult and Health Services,Head of Adults,Transport,230005,Contract Hire,04/05/2020,3735171-COVID19-EST-MAY-AWH-1136-SED108,561.17,ATLAS TAXIS BISHOP AUCKLAND.
Children and Young Peoples Services,Head of Education and Skills,Transport,230008,Contract Hire,04/05/2020,3735170-DCC04MAR20,"3,315.00",ATLAS TAXIS BISHOP AUCKLAND.
Children and Young Peoples Services,Head of Education and Skills,Transport,230008,Contract Hire,04/05/2020,3735171-COVID19-EST-APRIL-CYPS-1163-S012,858.00,ATLAS TAXIS BISHOP AUCKLAND.
Children and Young Peoples Services,Head of Education and Skills,Transport,230008,Contract Hire,04/05/2020,3735171-COVID19-EST-MAY-CYPS-1104-S012,780.00,ATLAS TAXIS BISHOP AUCKLAND.
Children and Young Peoples Services,Head of Education and Skills,Transport,230008,Contract Hire,04/05/2020,3735170-DCC18MARCH20,"2,860.00",ATLAS TAXIS BISHOP AUCKLAND.
Children and Young Peoples Services,Head of Education and Skills,Transport,230008,Contract Hire,04/05/2020,3735170-DCC19MAR20,"2,860.00",ATLAS TAXIS BISHOP AUCKLAND.
Children and Young Peoples Services,Head of Education and Skills,Transport,230008,Contract Hire,04/05/2020,3735170-DCC7MAR20,"2,895.64",ATLAS TAXIS BISHOP AUCKLAND.
Children and Young Peoples Services,Head of Education and Skills,Transport,230008,Contract Hire,04/05/2020,3735170-DCC8MAR20,"2,970.00",ATLAS TAXIS BISHOP AUCKLAND.
Children and Young Peoples Services,Head of Education and Skills,Transport,230008,Contract Hire,04/05/2020,3735171-COVID19-EST-APRIL-CYPS-1159-S008,624.00,ATLAS TAXIS BISHOP AUCKLAND.
Children and Young Peoples Services,Head of Education and Skills,Transport,230008,Contract Hire,04/05/2020,3735171-COVID19-EST-APRIL-CYPS-1161-S010,624.00,ATLAS TAXIS BISHOP AUCKLAND.
Children and Young Peoples Services,Head of Education and Skills,Transport,230008,Contract Hire,04/05/2020,3735171-COVID19-EST-APRIL-CYPS-1239-W027,868.69,ATLAS TAXIS BISHOP AUCKLAND.
Children and Young Peoples Services,Head of Education and Skills,Transport,230008,Contract Hire,04/05/2020,3735171-COVID19-EST-APRIL-CYPS-1249-W037,648.00,ATLAS TAXIS BISHOP AUCKLAND.
Children and Young Peoples Services,Head of Education and Skills,Transport,230008,Contract Hire,04/05/2020,3735171-COVID19-EST-MAY-CYPS-1100-S008,780.00,ATLAS TAXIS BISHOP AUCKLAND.
Children and Young Peoples Services,Head of Education and Skills,Transport,230008,Contract Hire,04/05/2020,3735171-COVID19-EST-MAY-CYPS-1102-S010,780.00,ATLAS TAXIS BISHOP AUCKLAND.
Children and Young Peoples Services,Head of Education and Skills,Transport,230008,Contract Hire,04/05/2020,3735171-COVID19-EST-MAY-CYPS-1180-W027,789.72,ATLAS TAXIS BISHOP AUCKLAND.
Children and Young Peoples Services,Head of Education and Skills,Transport,230008,Contract Hire,04/05/2020,3735171-COVID19-EST-MAY-CYPS-1190-W037,810.00,ATLAS TAXIS BISHOP AUCKLAND.
Children and Young Peoples Services,Head of Education and Skills,Transport,230008,Contract Hire,04/05/2020,3735170-DCC11MAR20,"1,760.00",ATLAS TAXIS BISHOP AUCKLAND.
Children and Young Peoples Services,Head of Education and Skills,Transport,230008,Contract Hire,04/05/2020,3735170-DCC12MARCH20,"2,310.00",ATLAS TAXIS BISHOP AUCKLAND.
Children and Young Peoples Services,Head of Education and Skills,Transport,230008,Contract Hire,04/05/2020,3735170-DCC13MARCH20,"2,640.00",ATLAS TAXIS BISHOP AUCKLAND.
Children and Young Peoples Services,Head of Education and Skills,Transport,230008,Contract Hire,04/05/2020,3735171-COVID19-EST-APRIL-CYPS-1292-W090,504.00,ATLAS TAXIS BISHOP AUCKLAND.
Children and Young Peoples Services,Head of Education and Skills,Transport,230008,Contract Hire,04/05/2020,3735171-COVID19-EST-APRIL-CYPS-955-M001,576.00,ATLAS TAXIS BISHOP AUCKLAND.
Children and Young Peoples Services,Head of Education and Skills,Transport,230008,Contract Hire,04/05/2020,3735171-COVID19-EST-MAY-CYPS-0896-M001,720.00,ATLAS TAXIS BISHOP AUCKLAND.
Children and Young Peoples Services,Head of Education and Skills,Transport,230008,Contract Hire,04/05/2020,3735171-COVID19-EST-MAY-CYPS-1196-W044,510.00,ATLAS TAXIS BISHOP AUCKLAND.
Children and Young Peoples Services,Head of Education and Skills,Transport,230008,Contract Hire,04/05/2020,3735171-COVID19-EST-MAY-CYPS-1232-W090,630.00,ATLAS TAXIS BISHOP AUCKLAND.
Neighbourhoods and Climate Change,Environmental Services,Transport,210057,Repair and Maintenance of Vehicles,04/05/2020,3735178-35180906,661.44,BELL TRUCK SALES LTD T/A BELL TRUCK & VAN.
Children and Young Peoples Services,Head of Education and Skills,Transfer Payments,510034,School Children,04/05/2020,3735179-LACPPSUMMER2021,600.00,BENFIELD SCHOOL.
Children and Young Peoples Services,Head of Education and Skills,Transfer Payments,510034,School Children,04/05/2020,3735181-LACPPSUMMER2021,600.00,BIDDICK ACADEMY.
Children and Young Peoples Services,Head of Education and Skills,Transport,230007,Contract Hire,04/05/2020,3735182-0290,836.00,BIRDS TAXIS LTD.
Children and Young Peoples Services,Head of Education and Skills,Transport,230006,Contract Hire,04/05/2020,3735182-0291,704.00,BIRDS TAXIS LTD.
Children and Young Peoples Services,Head of Education and Skills,Transport,230009,Contract Hire,04/05/2020,3735182-0288,"1,251.14",BIRDS TAXIS LTD.
Children and Young Peoples Services,Head of Education and Skills,Transport,230008,Contract Hire,04/05/2020,3735182-0287,"1,716.00",BIRDS TAXIS LTD.
Children and Young Peoples Services,Head of Education and Skills,Transfer Payments,510034,School Children,04/05/2020,3735184-LACPPSUMMER2021,600.00,BISHOP HOGARTH CATHOLIC EDUCATION TRUST.
Children and Young Peoples Services,Head of Education and Skills,Transfer Payments,510034,School Children,04/05/2020,3735185-LACPPSUMMER2021,600.00,BISHOP STOPFORD SCHOOL.
Children and Young Peoples Services,Head of Education and Skills,Transfer Payments,510034,School Children,04/05/2020,3735193-LACPPSUMMER2021,"1,800.00",CARMEL COLLEGE.*
Children and Young Peoples Services,Head of Education and Skills,Transfer Payments,510034,School Children,04/05/2020,3735195-LACPPSUMMER2021,600.00,CATCOTE ACADEMY.
Children and Young Peoples Services,Head of Education and Skills,Transfer Payments,510034,School Children,04/05/2020,3735199-LACPPSUMMER2021,600.00,CHILLINGHAM ROAD PRIMARY SCHOOL.
"Regeneration, Economy and Growth",Development and Housing,Supplies and Services,342053,Computers and Communications,04/05/2020,3735201-M/HB073206,"2,056.00",CIVICA UK LTD.
Children and Young Peoples Services,Head of Education and Skills,Transport,230008,Contract Hire,04/05/2020,3735202-INV-040,"1,008.00",CLARE LYNSEY STEWART T/A K&C TAXIS.
Neighbourhoods and Climate Change,Environmental Services,Third Party Payments,460305,Contract Payments,04/05/2020,3735206-5591,"1,170.00",CO-WHEELS CAR CLUB CIC.
Resources BK0010,Legal & Democratic Services,Supplies and Services,338027,Services,04/05/2020,3735215-NECP2005,"1,412.50",CRYSTALLISED LTD.
Resources BK0010,Legal & Democratic Services,Supplies and Services,338027,Services,04/05/2020,3735215-NECP2008,"1,300.00",CRYSTALLISED LTD.
Children and Young Peoples Services,Head of Education and Skills,Transfer Payments,510034,School Children,04/05/2020,3735221-LACPPSUMMER2021,600.00,DALES ACADEMIES TRUST T/A THORNABY C OF E PRIMARY SCHOOL.
Children and Young Peoples Services,Head of Education and Skills,Supplies and Services,338027,Services,04/05/2020,3735224-7,"1,281.00",DAVID FIRTH T/A BARDON MILL EDUCATIONAL CONSULTANTS.
Neighbourhoods and Climate Change,Environmental Services,Transport,210057,Repair and Maintenance of Vehicles,04/05/2020,3735225-96388695,"2,376.67",DENNIS EAGLE LTD T/A TERBERG MATEC (UK) LTD.
Neighbourhoods and Climate Change,Environmental Services,Transport,210057,Repair and Maintenance of Vehicles,04/05/2020,3735226-377466,"13,951.70",DENNIS EAGLE LTD.
"Regeneration, Economy and Growth",Transport and Contracted Services,Supplies and Services,342051,Computers and Communications,04/05/2020,3735229-IN-10000564,"7,161.82",DIGITAL DISPATCH (INTL) LTD T/A MOBISOFT.
Children and Young Peoples Services,Head of Education and Skills,Transfer Payments,510034,School Children,04/05/2020,3735233-LACPPSUMMER2021,600.00,DURHAM DIOCESAN MAT T/A ST AIDAN'S CE MEMORIAL PRIMARY SCHOOL.
Adult and Health Services,Head of Adults,Transport,230005,Contract Hire,04/05/2020,3735235-COVID19-EST-APRIL-AWH-1400-NCL018,624.00,EAST DURHAM TAXIS.
Children and Young Peoples Services,Head of Education and Skills,Transfer Payments,510034,School Children,04/05/2020,3735243-LACPPSUMMER2021,"1,200.00",ELDON GROVE ACADEMY.
Children and Young Peoples Services,Head of Education and Skills,Transfer Payments,510034,School Children,04/05/2020,3735244-LACPPSUMMER2021,600.00,EMMANUEL SCHOOLS FOUNDATION T/A BEDE ACADEMY.
Children and Young Peoples Services,Head of Education and Skills,Transfer Payments,510034,School Children,04/05/2020,3735245-LACPPSUMMER2021,600.00,EMMANUEL SCHOOLS FOUNDATION T/A CHRISTS COLLEGE.
Children and Young Peoples Services,Head of Education and Skills,Transfer Payments,510034,School Children,04/05/2020,3735246-LACPPSUMMER2021,600.00,EMMANUEL SCHOOLS FOUNDATION T/A THE KING`S ACADEMY.
Neighbourhoods and Climate Change,Technical Services CM0300,Third Party Payments,430100,Rendered by Private Contractors,04/05/2020,3735247-164823A,"2,551.35",ESH CONSTRUCTION LTD FORMERLY LUMSDEN & CARROLL CONSTRUCTION LTD.
Neighbourhoods and Climate Change,Technical Services CM0300,Third Party Payments,430100,Rendered by Private Contractors,04/05/2020,3735249-132588,"7,070.67",FABRIKAT (NOTTINGHAM) LTD.
Children and Young Peoples Services,Head of Education and Skills,Transfer Payments,510034,School Children,04/05/2020,3735250-LACPPSUMMER2021,600.00,FAIRFIELD PRIMARY SCHOOL.
"Regeneration, Economy and Growth",Business Durham CL0850,Supplies and Services,352001,Conference Expenses,04/05/2020,3735251-DCI006,500.00,FAR NORTH LTD.
"Regeneration, Economy and Growth",Transport and Contracted Services,Third Party Payments,430106,Rendered by Private Contractors,04/05/2020,3735252-PPT3671/PPT3666,"3,251.06",FERRYHILL VILLAGE TRAVEL.
"Regeneration, Economy and Growth",Transport and Contracted Services,Supplies and Services,384540,Miscellaneous Expenses,04/05/2020,3735267-INV-0302,"1,120.00",GRM MAPPING LTD.
Children and Young Peoples Services,Head of Education and Skills,Supplies and Services,384199,Miscellaneous Expenses,04/05/2020,3735268-M215,"1,226.86",GROUNDWORK NORTH EAST.
Children and Young Peoples Services,Head of Education and Skills,Transfer Payments,510034,School Children,04/05/2020,3735274-LACPPSUMMER2021,600.00,HEBBURN LAKES PRIMARY SCHOOL.
Children and Young Peoples Services,Head of Education and Skills,Transfer Payments,510034,School Children,04/05/2020,3735275-LACPPSUMMER2021,"1,200.00",HETTON PRIMARY SCHOOL.
Children and Young Peoples Services,Head of Education and Skills,Transfer Payments,510034,School Children,04/05/2020,3735276-LACPPSUMMER2021,600.00,HIGH TUNSTALL COLLEGE OF SCIENCE.
Adult and Health Services,Head of Adults,Transport,230005,Contract Hire,04/05/2020,3735278-17647,984.32,HODGSONS COACH OPERATORS LTD.
Adult and Health Services,Head of Adults,Transport,230005,Contract Hire,04/05/2020,3735278-17648,526.90,HODGSONS COACH OPERATORS LTD.
Children and Young Peoples Services,Head of Education and Skills,Transport,230031,Contract Hire,04/05/2020,3735279-17642,855.00,HODGSONS COACH OPERATORS LTD.
Children and Young Peoples Services,Head of Education and Skills,Transport,230007,Contract Hire,04/05/2020,3735278-17629,"1,657.04",HODGSONS COACH OPERATORS LTD.
Children and Young Peoples Services,Head of Education and Skills,Transport,230007,Contract Hire,04/05/2020,3735279-17633,"1,534.06",HODGSONS COACH OPERATORS LTD.
Children and Young Peoples Services,Head of Education and Skills,Transport,230007,Contract Hire,04/05/2020,3735278-17637,"1,209.56",HODGSONS COACH OPERATORS LTD.
Children and Young Peoples Services,Head of Education and Skills,Transport,230007,Contract Hire,04/05/2020,3735278-17630,"1,930.72",HODGSONS COACH OPERATORS LTD.
Children and Young Peoples Services,Head of Education and Skills,Transport,230007,Contract Hire,04/05/2020,3735278-17636,819.06,HODGSONS COACH OPERATORS LTD.
Children and Young Peoples Services,Head of Education and Skills,Transport,230007,Contract Hire,04/05/2020,3735278-17639,770.00,HODGSONS COACH OPERATORS LTD.
Children and Young Peoples Services,Head of Education and Skills,Transport,230007,Contract Hire,04/05/2020,3735279-COVID19-EST-MAY-CYPS-0058-3002,636.00,HODGSONS COACH OPERATORS LTD.
Children and Young Peoples Services,Head of Education and Skills,Transport,230007,Contract Hire,04/05/2020,3735279-17632,725.56,HODGSONS COACH OPERATORS LTD.
Children and Young Peoples Services,Head of Education and Skills,Transport,230007,Contract Hire,04/05/2020,3735279-17638,731.06,HODGSONS COACH OPERATORS LTD.
Children and Young Peoples Services,Head of Education and Skills,Transport,230031,Contract Hire,04/05/2020,3735279-COVID19-EST-APRIL-CYPS-533-8037,"1,112.98",HODGSONS COACH OPERATORS LTD.
Children and Young Peoples Services,Head of Education and Skills,Transport,230031,Contract Hire,04/05/2020,3735279-COVID19-EST-MAY-CYPS-0481-8037,"1,044.01",HODGSONS COACH OPERATORS LTD.
Children and Young Peoples Services,Head of Education and Skills,Transport,230007,Contract Hire,04/05/2020,3735278-17631,"1,076.24",HODGSONS COACH OPERATORS LTD.
Children and Young Peoples Services,Head of Education and Skills,Transport,230007,Contract Hire,04/05/2020,3735278-16944-3042,"3,224.30",HODGSONS COACH OPERATORS LTD.
Children and Young Peoples Services,Head of Education and Skills,Transport,230007,Contract Hire,04/05/2020,3735278-16944-3044,"3,044.37",HODGSONS COACH OPERATORS LTD.
Children and Young Peoples Services,Head of Education and Skills,Transport,230007,Contract Hire,04/05/2020,3735278-17586,"1,780.87",HODGSONS COACH OPERATORS LTD.
Children and Young Peoples Services,Head of Education and Skills,Transport,230007,Contract Hire,04/05/2020,3735278-17588,"2,360.00",HODGSONS COACH OPERATORS LTD.
Children and Young Peoples Services,Head of Education and Skills,Transport,230007,Contract Hire,04/05/2020,3735278-17590,"2,242.00",HODGSONS COACH OPERATORS LTD.
Children and Young Peoples Services,Head of Education and Skills,Transport,230007,Contract Hire,04/05/2020,3735278-17623,"2,062.06",HODGSONS COACH OPERATORS LTD.
Children and Young Peoples Services,Head of Education and Skills,Transport,230007,Contract Hire,04/05/2020,3735278-17624,"2,596.00",HODGSONS COACH OPERATORS LTD.
Children and Young Peoples Services,Head of Education and Skills,Transport,230007,Contract Hire,04/05/2020,3735278-17625-3042,"3,733.40",HODGSONS COACH OPERATORS LTD.
Children and Young Peoples Services,Head of Education and Skills,Transport,230007,Contract Hire,04/05/2020,3735278-17628,"4,031.06",HODGSONS COACH OPERATORS LTD.
Children and Young Peoples Services,Head of Education and Skills,Transport,230007,Contract Hire,04/05/2020,3735278-COVID19-EST-APRIL-CYPS-075-3036,778.80,HODGSONS COACH OPERATORS LTD.
Children and Young Peoples Services,Head of Education and Skills,Transport,230007,Contract Hire,04/05/2020,3735278-COVID19-EST-APRIL-CYPS-105-3090,579.41,HODGSONS COACH OPERATORS LTD.
Children and Young Peoples Services,Head of Education and Skills,Transport,230007,Contract Hire,04/05/2020,3735278-COVID19-EST-APRIL-CYPS-110-3122,801.90,HODGSONS COACH OPERATORS LTD.
Children and Young Peoples Services,Head of Education and Skills,Transport,230007,Contract Hire,04/05/2020,3735278-COVID19-EST-MAY-CYPS-0103-3090,526.74,HODGSONS COACH OPERATORS LTD.
Children and Young Peoples Services,Head of Education and Skills,Transport,230007,Contract Hire,04/05/2020,3735279-17625,"4,398.46",HODGSONS COACH OPERATORS LTD.
Children and Young Peoples Services,Head of Education and Skills,Transport,230007,Contract Hire,04/05/2020,3735279-17625-3044,"3,525.06",HODGSONS COACH OPERATORS LTD.
Children and Young Peoples Services,Head of Education and Skills,Transport,230007,Contract Hire,04/05/2020,3735279-17627,"2,673.00",HODGSONS COACH OPERATORS LTD.
Children and Young Peoples Services,Head of Education and Skills,Transport,230007,Contract Hire,04/05/2020,3735279-17634,"1,931.38",HODGSONS COACH OPERATORS LTD.
Children and Young Peoples Services,Head of Education and Skills,Transport,230007,Contract Hire,04/05/2020,3735279-17635,823.90,HODGSONS COACH OPERATORS LTD.
Children and Young Peoples Services,Head of Education and Skills,Transport,230007,Contract Hire,04/05/2020,3735279-COVID19-EST-APRIL-CYPS-073-3033,618.62,HODGSONS COACH OPERATORS LTD.
Children and Young Peoples Services,Head of Education and Skills,Transport,230007,Contract Hire,04/05/2020,3735279-COVID19-EST-APRIL-CYPS-081-3042,"1,120.02",HODGSONS COACH OPERATORS LTD.
Children and Young Peoples Services,Head of Education and Skills,Transport,230007,Contract Hire,04/05/2020,3735279-COVID19-EST-APRIL-CYPS-082-3044,"1,057.52",HODGSONS COACH OPERATORS LTD.
Children and Young Peoples Services,Head of Education and Skills,Transport,230007,Contract Hire,04/05/2020,3735279-COVID19-EST-APRIL-CYPS-086-3047,"1,319.54",HODGSONS COACH OPERATORS LTD.
Children and Young Peoples Services,Head of Education and Skills,Transport,230007,Contract Hire,04/05/2020,3735279-COVID19-EST-APRIL-CYPS-094-3068,579.22,HODGSONS COACH OPERATORS LTD.
Children and Young Peoples Services,Head of Education and Skills,Transport,230007,Contract Hire,04/05/2020,3735279-COVID19-EST-APRIL-CYPS-111-3177,"1,209.32",HODGSONS COACH OPERATORS LTD.
Children and Young Peoples Services,Head of Education and Skills,Transport,230007,Contract Hire,04/05/2020,3735279-COVID19-EST-MAY-CYPS-0071-3033,562.38,HODGSONS COACH OPERATORS LTD.
Children and Young Peoples Services,Head of Education and Skills,Transport,230007,Contract Hire,04/05/2020,3735279-COVID19-EST-MAY-CYPS-0073-3036,708.00,HODGSONS COACH OPERATORS LTD.
Children and Young Peoples Services,Head of Education and Skills,Transport,230007,Contract Hire,04/05/2020,3735279-COVID19-EST-MAY-CYPS-0079-3042,"1,018.20",HODGSONS COACH OPERATORS LTD.
Children and Young Peoples Services,Head of Education and Skills,Transport,230007,Contract Hire,04/05/2020,3735279-COVID19-EST-MAY-CYPS-0080-3044,961.38,HODGSONS COACH OPERATORS LTD.
Children and Young Peoples Services,Head of Education and Skills,Transport,230007,Contract Hire,04/05/2020,3735279-COVID19-EST-MAY-CYPS-0084-3047,"1,199.58",HODGSONS COACH OPERATORS LTD.
Children and Young Peoples Services,Head of Education and Skills,Transport,230007,Contract Hire,04/05/2020,3735279-COVID19-EST-MAY-CYPS-0092-3068,526.56,HODGSONS COACH OPERATORS LTD.
Children and Young Peoples Services,Head of Education and Skills,Transport,230007,Contract Hire,04/05/2020,3735279-COVID19-EST-MAY-CYPS-0108-3122,729.00,HODGSONS COACH OPERATORS LTD.
Children and Young Peoples Services,Head of Education and Skills,Transport,230007,Contract Hire,04/05/2020,3735279-COVID19-EST-MAY-CYPS-0109-3177,"1,099.38",HODGSONS COACH OPERATORS LTD.
Children and Young Peoples Services,Head of Education and Skills,Transport,230007,Contract Hire,04/05/2020,3735278-17640,"1,094.50",HODGSONS COACH OPERATORS LTD.
Children and Young Peoples Services,Head of Education and Skills,Transport,230006,Contract Hire,04/05/2020,3735278-17641,814.81,HODGSONS COACH OPERATORS LTD.
Children and Young Peoples Services,Head of Education and Skills,Transfer Payments,510034,School Children,04/05/2020,3735282-LACPPSUMMER2021,600.00,HUMMERSKNOTT ACADEMY.
Children and Young Peoples Services,Head of Education and Skills,Transfer Payments,510034,School Children,04/05/2020,3735283-LACPPSUMMER2021,"2,400.00",HURWORTH ACADEMY.
Children and Young Peoples Services,Head of Education and Skills,Transfer Payments,510034,School Children,04/05/2020,3735290-LACPPSUMMER2021,600.00,INGLEBY MANOR FREE SCHOOL & SIXTH FORM.
Children and Young Peoples Services,Head of Education and Skills,Transport,230005,Contract Hire,04/05/2020,3735294-COVID19-EST-APRIL-AWH-1426-SLD014,530.40,JDS PRIVATE HIRE DURHAM.
Children and Young Peoples Services,Head of Education and Skills,Transport,230034,Contract Hire,04/05/2020,3735298-31/03/20G,"1,755.00",JL EBDON. T/A DIAL-A-CAB.
Children and Young Peoples Services,Head of Education and Skills,Transport,230034,Contract Hire,04/05/2020,3735298-COVID19-EST-APRIL-CYPS-162-3403,558.00,JL EBDON. T/A DIAL-A-CAB.
Children and Young Peoples Services,Head of Education and Skills,Transport,230008,Contract Hire,04/05/2020,3735298-31/3/20E,"3,089.76",JL EBDON. T/A DIAL-A-CAB.
Children and Young Peoples Services,Head of Education and Skills,Transport,230008,Contract Hire,04/05/2020,3735298-COVID19-EST-APRIL-CYPS-581-A026,818.93,JL EBDON. T/A DIAL-A-CAB.
Children and Young Peoples Services,Head of Education and Skills,Transport,230008,Contract Hire,04/05/2020,3735298-COVID19-EST-MAY-CYPS-0525-A026,744.48,JL EBDON. T/A DIAL-A-CAB.
Children and Young Peoples Services,Head of Education and Skills,Transport,230016,Contract Hire,04/05/2020,3735298-31/03/20H,"3,080.00",JL EBDON. T/A DIAL-A-CAB.
Children and Young Peoples Services,Head of Education and Skills,Transport,230016,Contract Hire,04/05/2020,3735298-COVID19-EST-APRIL-CYPS-981-M030,924.00,JL EBDON. T/A DIAL-A-CAB.
Children and Young Peoples Services,Head of Education and Skills,Transport,230016,Contract Hire,04/05/2020,3735298-COVID19-EST-MAY-CYPS-0922-M030,840.00,JL EBDON. T/A DIAL-A-CAB.
Children and Young Peoples Services,Head of Education and Skills,Transport,230008,Contract Hire,04/05/2020,3735298-31/03/20A,"2,167.00",JL EBDON. T/A DIAL-A-CAB.
Children and Young Peoples Services,Head of Education and Skills,Transport,230008,Contract Hire,04/05/2020,3735298-31/03/20B,"2,992.00",JL EBDON. T/A DIAL-A-CAB.
Children and Young Peoples Services,Head of Education and Skills,Transport,230008,Contract Hire,04/05/2020,3735298-31/03/20C,"2,420.66",JL EBDON. T/A DIAL-A-CAB.
Children and Young Peoples Services,Head of Education and Skills,Transport,230008,Contract Hire,04/05/2020,3735298-31/03/20D,"1,870.00",JL EBDON. T/A DIAL-A-CAB.
Children and Young Peoples Services,Head of Education and Skills,Transport,230008,Contract Hire,04/05/2020,3735298-COVID19-EST-APRIL-CYPS-1181-S033,897.60,JL EBDON. T/A DIAL-A-CAB.
Children and Young Peoples Services,Head of Education and Skills,Transport,230008,Contract Hire,04/05/2020,3735298-COVID19-EST-APRIL-CYPS-1258-W047,650.10,JL EBDON. T/A DIAL-A-CAB.
Children and Young Peoples Services,Head of Education and Skills,Transport,230008,Contract Hire,04/05/2020,3735298-COVID19-EST-APRIL-CYPS-1302-W103,726.20,JL EBDON. T/A DIAL-A-CAB.
Children and Young Peoples Services,Head of Education and Skills,Transport,230008,Contract Hire,04/05/2020,3735298-COVID19-EST-APRIL-CYPS-1304-W135,561.00,JL EBDON. T/A DIAL-A-CAB.
Children and Young Peoples Services,Head of Education and Skills,Transport,230008,Contract Hire,04/05/2020,3735298-COVID19-EST-MAY-CYPS-1122-S033,816.00,JL EBDON. T/A DIAL-A-CAB.
Children and Young Peoples Services,Head of Education and Skills,Transport,230008,Contract Hire,04/05/2020,3735298-COVID19-EST-MAY-CYPS-1199-W047,591.00,JL EBDON. T/A DIAL-A-CAB.
Children and Young Peoples Services,Head of Education and Skills,Transport,230008,Contract Hire,04/05/2020,3735298-COVID19-EST-MAY-CYPS-1242-W103,660.18,JL EBDON. T/A DIAL-A-CAB.
Children and Young Peoples Services,Head of Education and Skills,Transport,230008,Contract Hire,04/05/2020,3735298-COVID19-EST-MAY-CYPS-1244-W135,510.00,JL EBDON. T/A DIAL-A-CAB.
Children and Young Peoples Services,Head of Education and Skills,Premises,150015,Apportioned Exps of Operational Blds,04/05/2020,3735303-2535403,"2,097.60",JOHN NIXON LTD.
Children and Young Peoples Services,Head of Education and Skills,Premises,150015,Apportioned Exps of Operational Blds,04/05/2020,3735303-2556933,"1,824.00",JOHN NIXON LTD.
Adult and Health Services,Head of Adults,Transport,230005,Contract Hire,04/05/2020,3735308-COVID19-EST-APRIL-AWH-1381-DW141,710.40,K & R TAXIS (STANLEY).
Children and Young Peoples Services,Head of Education and Skills,Transfer Payments,510034,School Children,04/05/2020,3735310-LACPPSUMMER2021,600.00,KEPIER ACADEMY T/A LEARNING MATTERS LTD.
Adult and Health Services,Head of Adults,Transport,230005,Contract Hire,04/05/2020,3735314-COVID19-EST-APRIL-AWH-1428-SLD017,571.20,KULDEEP MAHIL T/A KOLARS CAB.
Children and Young Peoples Services,Head of Education and Skills,Transport,230007,Contract Hire,04/05/2020,3735326-5912,810.92,MAKEPEACE MOTORS.
Children and Young Peoples Services,Head of Education and Skills,Transport,230007,Contract Hire,04/05/2020,3735335-282/5263,"1,568.82",MICKS TAXIS - MURTON.
Children and Young Peoples Services,Head of Education and Skills,Transport,230034,Contract Hire,04/05/2020,3735335-282,"1,540.00",MICKS TAXIS - MURTON.
Children and Young Peoples Services,Head of Education and Skills,Transport,230007,Contract Hire,04/05/2020,3735335-279,"1,344.00",MICKS TAXIS - MURTON.
Children and Young Peoples Services,Head of Education and Skills,Transport,230006,Contract Hire,04/05/2020,3735335-281,"1,056.00",MICKS TAXIS - MURTON.
Children and Young Peoples Services,Head of Education and Skills,Transport,230007,Contract Hire,04/05/2020,3735335-6006,"1,091.86",MICKS TAXIS - MURTON.
Children and Young Peoples Services,Head of Education and Skills,Transport,230010,Contract Hire,04/05/2020,3735335-277/3,"1,010.55",MICKS TAXIS - MURTON.
"Regeneration, Economy and Growth",Culture Sport and Tourism,Supplies and Services,324117,Provisions E324,04/05/2020,3735339-905761167,806.76,MOLSON COORS BREWING COMPANY (UK) LTD.
Children and Young Peoples Services,Head of Education and Skills,Transport,230035,Contract Hire,04/05/2020,3735344-4355/MARCH,878.50,MR JOHN ADAMS T/A JA TAXIS (DURHAM).
Children and Young Peoples Services,Head of Education and Skills,Transport,230008,Contract Hire,04/05/2020,3735347-27A-20,"1,773.86",MR RAYMOND RENWICK T/A RAY`S TAXIS & MINIBUSES.
Children and Young Peoples Services,Head of Education and Skills,Transport,230008,Contract Hire,04/05/2020,3735347-COVID19-EST-APRIL-CYPS-1052-N031,532.16,MR RAYMOND RENWICK T/A RAY`S TAXIS & MINIBUSES.
Children and Young Peoples Services,Head of Education and Skills,Transport,230008,Contract Hire,04/05/2020,3735347-26B-20,"1,867.14",MR RAYMOND RENWICK T/A RAY`S TAXIS & MINIBUSES.
Children and Young Peoples Services,Head of Education and Skills,Transport,230008,Contract Hire,04/05/2020,3735347-COVID19-EST-APRIL-CYPS-1063-N043,560.14,MR RAYMOND RENWICK T/A RAY`S TAXIS & MINIBUSES.
Children and Young Peoples Services,Head of Education and Skills,Transport,230008,Contract Hire,04/05/2020,3735347-COVID19-EST-MAY-CYPS-1004-N043,509.22,MR RAYMOND RENWICK T/A RAY`S TAXIS & MINIBUSES.
Children and Young Peoples Services,Head of Education and Skills,Transport,230007,Contract Hire,04/05/2020,3735348-03/2020/RS,532.80,MR RICHARD STANDLEY T/A RS TAXI SERVICES.
Children and Young Peoples Services,Head of Education and Skills,Transport,230010,Contract Hire,04/05/2020,3735348-03/20/RS,"1,172.00",MR RICHARD STANDLEY T/A RS TAXI SERVICES.
Children and Young Peoples Services,Head of Education and Skills,Transport,230010,Contract Hire,04/05/2020,3735348-03/20/SO,"3,086.00",MR RICHARD STANDLEY T/A RS TAXI SERVICES.
Children and Young Peoples Services,Head of Education and Skills,Transport,230010,Contract Hire,04/05/2020,3735348-COVID19-EST-APRIL-CYPS-668-BL005,"1,016.40",MR RICHARD STANDLEY T/A RS TAXI SERVICES.
Children and Young Peoples Services,Head of Education and Skills,Transport,230010,Contract Hire,04/05/2020,3735349-COVID19-EST-APRIL-CYPS-681-BL030,580.80,MR RICHARD STANDLEY T/A RS TAXI SERVICES.
Children and Young Peoples Services,Head of Education and Skills,Transport,230010,Contract Hire,04/05/2020,3735349-COVID19-EST-MAY-CYPS-0611-BL005,924.00,MR RICHARD STANDLEY T/A RS TAXI SERVICES.
Children and Young Peoples Services,Head of Education and Skills,Transport,230010,Contract Hire,04/05/2020,3735349-COVID19-EST-MAY-CYPS-0624-BL030,528.00,MR RICHARD STANDLEY T/A RS TAXI SERVICES.
Adult and Health Services,Head of Adults,Transport,230005,Contract Hire,04/05/2020,3735353-COVID19-EST-APRIL-AWH-1412-SED113,600.00,NEVILLE FORBES T/A FORBES TAXIS.
"Regeneration, Economy and Growth",Culture Sport and Tourism,Third Party Payments,430100,Rendered by Private Contractors,04/05/2020,3735354-5100217,"2,051.91",NEW COLLEGE ACADEMIES TRUST - CONSETT ACADEMY.
Neighbourhoods and Climate Change,Partnerships & Community Engagement Div.,Cap Exp on Grants & Other Financial Assistance (REFCUS),918004,Contributions to other bodies 918004,04/05/2020,3735357-VOUCHER20ABCV19-GAMP010,"2,253.60",NEWTON AYCLIFFE WORKING MEN`S CLUB & INSTITUTE LTD.
Children and Young Peoples Services,Head of Education and Skills,Transfer Payments,510034,School Children,04/05/2020,3735363-LACPPSUMMER2021,"1,200.00",NORTHERN EDUCATION TRUST T/A  DYKE HOUSE SPORTS & TECHNOLOGY COLLEGE.
Children and Young Peoples Services,Head of Education and Skills,Transfer Payments,510034,School Children,04/05/2020,3735364-LACPPSUMMER2021,"1,800.00",NORTHUMBERLAND COUNTY COUNCIL.
Children and Young Peoples Services,Head of Childrens Social Care,Premises,135005,Water Services,04/05/2020,3735365-359144131212782675,755.97,NORTHUMBRIAN WATER LTD.
Children and Young Peoples Services,Head of Education and Skills,Transfer Payments,510034,School Children,04/05/2020,3735367-LACPPSUMMER2021,600.00,NUNTHORPE ACADEMY LTD.
Neighbourhoods and Climate Change,Environmental Services,Transport,215022,Running Costs of Vehicles,04/05/2020,3735370-582808,509.07,OIL NRG LTD.
Neighbourhoods and Climate Change,Environmental Services,Transport,215005,Running Costs of Vehicles,04/05/2020,3735370-568349,"11,452.04",OIL NRG LTD.
Neighbourhoods and Climate Change,Environmental Services,Premises,108099,Service Repairs and Maintenance,04/05/2020,3735379-APV140857,954.60,PEAK PIPE SYSTEMS LTD.*
Children and Young Peoples Services,Head of Education and Skills,Transfer Payments,510034,School Children,04/05/2020,3735381-LACPPSUMMER2021,600.00,PELE TRUST T/A HEDDON ST ANDREWS C OF E PRIMARY SCHOOL.
Children and Young Peoples Services,Head of Education and Skills,Transport,230008,Contract Hire,04/05/2020,3735382-653,"1,540.00",PETERLEE EXECUTIVE CARS.
Children and Young Peoples Services,Head of Education and Skills,Transfer Payments,510034,School Children,04/05/2020,3735389-LACPPSUMMER2021,"1,200.00",PIPWORTH COMMUNITY PRIMARY SCHOOL.
Resources BK0010,Digital and Customer Services,Supplies and Services,332029,Printing Stationery and Gen Off Exps,04/05/2020,3735393-684272,"14,950.00",POTTS PRINTERS LTD.
Adult and Health Services,Head of Adults,Transport,230005,Contract Hire,04/05/2020,3735394-COVID19-EST-APRIL-AWH-828-EAS152,500.40,PRESTYS HACKNEY & PRIVATE HIRE TAXIS.
Children and Young Peoples Services,Head of Education and Skills,Transport,230008,Contract Hire,04/05/2020,3735394-COVID19-EST-APRIL-CYPS-556-A005,653.40,PRESTYS HACKNEY & PRIVATE HIRE TAXIS.
Children and Young Peoples Services,Head of Education and Skills,Transport,230008,Contract Hire,04/05/2020,3735394-COVID19-EST-MAY-CYPS-0503-A005,594.00,PRESTYS HACKNEY & PRIVATE HIRE TAXIS.
Children and Young Peoples Services,Head of Education and Skills,Transport,230008,Contract Hire,04/05/2020,3735394-WH6-MARCH,"2,178.00",PRESTYS HACKNEY & PRIVATE HIRE TAXIS.
Children and Young Peoples Services,Head of Education and Skills,Transport,230006,Contract Hire,04/05/2020,3735394-COVID19-EST-APRIL-CYPS-885-F763,618.80,PRESTYS HACKNEY & PRIVATE HIRE TAXIS.
Children and Young Peoples Services,Head of Education and Skills,Transport,230006,Contract Hire,04/05/2020,3735394-COVID19-EST-MAY-CYPS-0826-F763,714.00,PRESTYS HACKNEY & PRIVATE HIRE TAXIS.
Children and Young Peoples Services,Head of Education and Skills,Transport,230006,Contract Hire,04/05/2020,3735394-SP6,"2,618.00",PRESTYS HACKNEY & PRIVATE HIRE TAXIS.
Neighbourhoods and Climate Change,Technical Services CM0300,Supplies and Services,304221,Equipment and Materials,04/05/2020,3735396-132815,"1,997.73",PROTECTOR SECURITY GROUP LTD.
Neighbourhoods and Climate Change,Technical Services CM0300,Supplies and Services,304221,Equipment and Materials,04/05/2020,3735396-132862,"1,660.36",PROTECTOR SECURITY GROUP LTD.
Resources BK0010,Digital and Customer Services,Stock A926,926900,Stock in hand-Inventory system,04/05/2020,3735399-38618,525.00,RAPID COMPUTERS LTD T/A RAPID TECHNOLOGIES.
"Regeneration, Economy and Growth",Culture Sport and Tourism,Supplies and Services,384199,Miscellaneous Expenses,04/05/2020,3735164-4100692997,"1,700.00",REDACTED - PAYMENT TO INDIVIDUAL
Neighbourhoods and Climate Change,Technical Services CM0300,Supplies and Services,342055,Computers and Communications,04/05/2020,3735404-1090,"8,739.00",ROADWORKS INFORMATION LTD T/A ELGIN.
Children and Young Peoples Services,Head of Education and Skills,Transport,230008,Contract Hire,04/05/2020,3735405-COVID19-EST-APRIL-CYPS-613-A071,561.00,ROUTE 1.
Children and Young Peoples Services,Head of Education and Skills,Transport,230008,Contract Hire,04/05/2020,3735405-COVID19-EST-MAY-CYPS-0557-A071,510.00,ROUTE 1.
Children and Young Peoples Services,Head of Education and Skills,Transport,230008,Contract Hire,04/05/2020,3735405-7-MARCH,"2,200.00",ROUTE 1.
Children and Young Peoples Services,Head of Education and Skills,Transport,230008,Contract Hire,04/05/2020,3735405-COVID19-EST-APRIL-CYPS-1068-N048,660.00,ROUTE 1.
Children and Young Peoples Services,Head of Education and Skills,Transport,230008,Contract Hire,04/05/2020,3735405-COVID19-EST-MAY-CYPS-1009-N048,600.00,ROUTE 1.
Neighbourhoods and Climate Change,Technical Services CM0300,Supplies and Services,304358,Equipment and Materials,04/05/2020,3735409-1951,"2,594.00",S & R LANDSCAPES.
"Regeneration, Economy and Growth",Development and Housing,Supplies and Services,338066,Services,04/05/2020,3735412-NEW13198,"17,456.00",SANDERSON WEATHERALL LLP.
Children and Young Peoples Services,Head of Education and Skills,Transfer Payments,510034,School Children,04/05/2020,3735413-LACPPSUMMER2021,600.00,SANDFORD ST MARTIN`S CE VA PRIMARY SCHOOL.
Adult and Health Services,Head of Adults,Transport,230005,Contract Hire,04/05/2020,3735421-COVID19-EST-APRIL-AWH-829-EAS188,721.60,SIMONS TAXIS.
Adult and Health Services,Head of Adults,Transport,230005,Contract Hire,04/05/2020,3735421-COVID19-EST-MAY-AWH-0770-EAS188,688.80,SIMONS TAXIS.
Children and Young Peoples Services,Head of Education and Skills,Transport,230012,Contract Hire,04/05/2020,3735421-COVID19-EST-APRIL-CYPS-1262-W054,867.20,SIMONS TAXIS.
Children and Young Peoples Services,Head of Education and Skills,Transport,230012,Contract Hire,04/05/2020,3735421-COVID19-EST-MAY-CYPS-1203-W054,790.80,SIMONS TAXIS.
Dedicated Schools Grant BG0015,DSG Early Years Block,Transfer Payments,510030,School Children,04/05/2020,3735422-19535,"2,416.05",REDACTED - PAYMENT TO INDIVIDUAL
Children and Young Peoples Services,Head of Education and Skills,Transfer Payments,510034,School Children,04/05/2020,3735423-LACPPSUMMER2021,"1,200.00",SOUTHMOOR ACADEMY.
Children and Young Peoples Services,Head of Education and Skills,Transfer Payments,510034,School Children,04/05/2020,3735425-LACPPSUMMER2021,600.00,ST AIDAN`S CATHOLIC ACADEMY.
Children and Young Peoples Services,Head of Education and Skills,Transfer Payments,510034,School Children,04/05/2020,3735427-LACPPSUMMER2021,600.00,ST ANTHONY`S GIRLS SCHOOL.
Children and Young Peoples Services,Head of Education and Skills,Transfer Payments,510034,School Children,04/05/2020,3735428-LACPPSUMMER2021,"1,800.00",ST HILDS CHURCH OF ENGLAND SCHOOL.
Children and Young Peoples Services,Head of Education and Skills,Transfer Payments,510034,School Children,04/05/2020,3735429-LACPPSUMMER2021,600.00,ST TERESA`S RC PRIMARY SCHOOL.
Children and Young Peoples Services,Head of Education and Skills,Transport,230035,Contract Hire,04/05/2020,3735430-3-1198,"2,197.80",STANLEY TRAVEL (NORTH EAST) LTD.
Children and Young Peoples Services,Head of Education and Skills,Transfer Payments,510034,School Children,04/05/2020,3735432-LACPPSUMMER2021,"1,200.00",STOCKTON ON TEES BOROUGH COUNCIL.
Children and Young Peoples Services,Head of Education and Skills,Transfer Payments,510034,School Children,04/05/2020,3735432-LACPPSUMMER2021/A,"1,200.00",STOCKTON ON TEES BOROUGH COUNCIL.
Children and Young Peoples Services,Head of Education and Skills,Transfer Payments,510034,School Children,04/05/2020,3735433-LACPPSUMMER2021,600.00,SUNDERLAND CITY COUNCIL.
Children and Young Peoples Services,Head of Education and Skills,Transfer Payments,510034,School Children,04/05/2020,3735433-LACPPSUMMER2021/A,600.00,SUNDERLAND CITY COUNCIL.
Neighbourhoods and Climate Change,Technical Services CM0300,Stock A926,926900,Stock in hand-Inventory system,04/05/2020,3735434-5400756,793.00,SUPPLIES TEAM LTD NOW KNOWN AS BANNER GROUP LTD.
Neighbourhoods and Climate Change,Technical Services CM0300,Third Party Payments,460503,Contract Payments,04/05/2020,3735435-90015042,"2,699.86",SWARCO TRAFFIC LTD.
"Regeneration, Economy and Growth",Transport and Contracted Services,Construction work A908,908105,Construction work,04/05/2020,3735435-90014947,"102,134.40",SWARCO TRAFFIC LTD.
Children and Young Peoples Services,Head of Education and Skills,Transfer Payments,510034,School Children,04/05/2020,3735445-LACPPSUMMER2021,600.00,THE DOVE ACADEMY TRUST - ST MARY`S COCKERTON CE PRIMARY SCHOOL.
Dedicated Schools Grant BG0015,DSG High Needs Block,Third Party Payments,410037,Rendered by Other Local Authorities,04/05/2020,3735460-TANB27,"17,119.33",TRINITY ACADEMY NEWCASTLE.
"Regeneration, Economy and Growth",Development and Housing,Supplies and Services,338066,Services,04/05/2020,3735461-000214672,"4,000.00",TURNER & TOWNSEND LLP.
"Regeneration, Economy and Growth",Business Durham CL0850,Supplies and Services,338066,Services,04/05/2020,3735464-INV-13782,"4,318.18",UMI COMMERCIAL LTD.
Children and Young Peoples Services,Head of Education and Skills,Transfer Payments,510034,School Children,04/05/2020,3735466-LACPPSUMMER2021,"1,800.00",VENERABLE BEDE CHURCH OF ENGLAND ACADEMY.
Children and Young Peoples Services,Head of Education and Skills,Transfer Payments,510034,School Children,04/05/2020,3735467-LACPPSUMMER2021,600.00,VISION ACADEMY LEARNING TRUST T/A WHINSTONE PRIMARY SCHOOL.
Children and Young Peoples Services,Head of Education and Skills,Transfer Payments,510034,School Children,04/05/2020,3735469-LACPPSUMMER2021,600.00,VISION LEARNING TRUST.
Resources BK0010,Digital and Customer Services,Supplies and Services,344014,Telephones,04/05/2020,3735471-NZ58846,966.00,VODAFONE LTD.
Neighbourhoods and Climate Change,Environmental Services,Premises,120009,Energy Costs,04/05/2020,3735476-20022020,851.00,WESTERN POWER DISTRIBUTION.
Children and Young Peoples Services,Head of Education and Skills,Transfer Payments,510034,School Children,04/05/2020,3735477-LACPPSUMMER2021,600.00,WESTGATE HILL PRIMARY ACADEMY.
"Regeneration, Economy and Growth",Development and Housing,Supplies and Services,338045,Services,04/05/2020,3735480-3469569,"5,410.70",WOMBLE BOND DICKINSON (UK) LLP.
Children and Young Peoples Services,Head of Education and Skills,Transfer Payments,510034,School Children,04/05/2020,3735481-LACPPSUMMER2021,600.00,WYVERN ACADEMY.
Resources BK0010,Digital and Customer Services,Supplies and Services,342051,Computers and Communications,04/05/2020,3735483-IN0093169,"1,591.45",ZELLIS UK LTD.
Resources BK0010,Digital and Customer Services,Supplies and Services,342051,Computers and Communications,04/05/2020,3735483-IN0093413,"30,260.00",ZELLIS UK LTD.
Children and Young Peoples Services,Head of Education and Skills,Supplies and Services,338027,Services,05/05/2020,3736193-ALSI16,"5,931.91",ADVANCE LEARNING PARTNERSHIP.
Neighbourhoods and Climate Change,Environmental Services,Supplies and Services,304259,Equipment and Materials,05/05/2020,3736195-INV-1511,"2,422.49",AERIAL EXPOSURE LTD.
Adult and Health Services,Commissioning inc Supporting People,Third Party Payments,479111,Purchase of Care,05/05/2020,3736204-1970384,"3,297.48",ANCHOR HANOVER GROUP.
Children and Young Peoples Services,Head of Education and Skills,Transport,230007,Contract Hire,05/05/2020,3736210-313020,"1,320.00",AVALON TAXIS.
Children and Young Peoples Services,Head of Education and Skills,Transport,230009,Contract Hire,05/05/2020,3736210-310320,600.00,AVALON TAXIS.
Children and Young Peoples Services,Head of Education and Skills,Transport,230009,Contract Hire,05/05/2020,3736210-310320/2,"2,040.00",AVALON TAXIS.
Children and Young Peoples Services,Head of Education and Skills,Transport,230009,Contract Hire,05/05/2020,3736210-COVID19-EST-APRIL-CYPS-380-7371,792.00,AVALON TAXIS.
Children and Young Peoples Services,Head of Education and Skills,Transport,230009,Contract Hire,05/05/2020,3736210-COVID19-EST-MAY-CYPS-0369-7371,720.00,AVALON TAXIS.
Adult and Health Services,Head of Adults,Supplies and Services,338043,Services,05/05/2020,3736217-RES-05-2020-001,"2,000.00",BHP LAW (BLACKETT HART & PRATT LLP).
Adult and Health Services,Commissioning inc Supporting People,Third Party Payments,442002,Supporting People E442,05/05/2020,3736218-1970355,"16,448.04",BID SERVICES.
Children and Young Peoples Services,Head of Education and Skills,Transport,230016,Contract Hire,05/05/2020,3736220-0289,"3,662.32",BIRDS TAXIS LTD.
Children and Young Peoples Services,Head of Education and Skills,Transport,230008,Contract Hire,05/05/2020,3736223-30727,884.00,BLUELINE TAXIS.
Children and Young Peoples Services,Head of Education and Skills,Transport,230008,Contract Hire,05/05/2020,3736240-COVID19-EST-APRIL-CYPS-602-A049,731.19,CHIPPERS TAXIS.
Children and Young Peoples Services,Head of Education and Skills,Transport,230008,Contract Hire,05/05/2020,3736240-COVID19-EST-MAY-CYPS-0546-A049,783.42,CHIPPERS TAXIS.
Children and Young Peoples Services,Head of Education and Skills,Transport,230008,Contract Hire,05/05/2020,3736240-SS7/MARCH,"2,872.54",CHIPPERS TAXIS.
Children and Young Peoples Services,Head of Education and Skills,Transport,230008,Contract Hire,05/05/2020,3736239-COVID19-EST-MAY-CYPS-1219-W073,515.52,CHIPPERS TAXIS.
Children and Young Peoples Services,Head of Education and Skills,Transport,230008,Contract Hire,05/05/2020,3736240-COVID19-EST-APRIL-CYPS-1278-W073,567.07,CHIPPERS TAXIS.
Resources BK0010,Finance & Transactional Services,Supplies and Services,342051,Computers and Communications,05/05/2020,3736243-C/RB196219,"2,158.38",CIVICA UK LTD.
Adult and Health Services,Public Health CC0450,Third Party Payments,460803,Contract Payments,05/05/2020,3736246-3910017815,"23,030.00",CO DURHAM & DARLINGTON NHS FOUNDATION TRUST.
"Regeneration, Economy and Growth",Culture Sport and Tourism,Third Party Payments,430100,Rendered by Private Contractors,05/05/2020,3736251-INV04636,758.55,COMPETITION LINE UK LTD T/A LIFESTYLE FITNESS.
"Regeneration, Economy and Growth",Culture Sport and Tourism,Third Party Payments,430100,Rendered by Private Contractors,05/05/2020,3736251-INV04633,696.80,COMPETITION LINE UK LTD T/A LIFESTYLE FITNESS.
Resources BK0010,Legal & Democratic Services,Supplies and Services,338025,Services,05/05/2020,3736247-S44995-01844,"1,530.00",CO-OPERATIVE FUNERAL CARE.
Neighbourhoods and Climate Change,Environmental Services,Third Party Payments,460305,Contract Payments,05/05/2020,3736248-5660,777.00,CO-WHEELS CAR CLUB CIC.
Adult and Health Services,Commissioning inc Supporting People,Third Party Payments,442002,Supporting People E442,05/05/2020,3736258-1970347,"19,868.48",CREATIVE SUPPORT LTD.
Adult and Health Services,Head of Adults,Third Party Payments,478101,Purchase of Care,05/05/2020,3736265-003,"1,282.40",DAVID HATTLE.
Adult and Health Services,Head of Adults,Third Party Payments,478101,Purchase of Care,05/05/2020,3736265-004,"1,282.40",DAVID HATTLE.
Neighbourhoods and Climate Change,Environmental Services,Third Party Payments,430100,Rendered by Private Contractors,05/05/2020,3736266-570587,715.13,DAWSONGROUP SWEEPERS.
Neighbourhoods and Climate Change,Partnerships & Community Engagement Div.,Supplies and Services,384086,Miscellaneous Expenses,05/05/2020,3736268-VOUCHER20NBCV19-3TWN003,"6,000.00",DEMENTIA SUPPORT CAFE.
Neighbourhoods and Climate Change,Environmental Services,Third Party Payments,430100,Rendered by Private Contractors,05/05/2020,3736269-96388459,"2,637.11",DENNIS EAGLE LTD T/A TERBERG MATEC (UK) LTD.
Neighbourhoods and Climate Change,Environmental Services,Third Party Payments,430100,Rendered by Private Contractors,05/05/2020,3736269-96388499,"1,527.67",DENNIS EAGLE LTD T/A TERBERG MATEC (UK) LTD.
Neighbourhoods and Climate Change,Environmental Services,Third Party Payments,430100,Rendered by Private Contractors,05/05/2020,3736269-96388713,"3,372.23",DENNIS EAGLE LTD T/A TERBERG MATEC (UK) LTD.
Children and Young Peoples Services,Head of Childrens Social Care,Supplies and Services,338044,Services,05/05/2020,3736275-2019-242,"1,026.00",DR M YADAV.
Neighbourhoods and Climate Change,Technical Services CM0300,Stock A926,926900,Stock in hand-Inventory system,05/05/2020,3736277-1069,"1,464.75",DRONE SIGNS.
Adult and Health Services,Commissioning inc Supporting People,Third Party Payments,441001,Supporting People E441,05/05/2020,3736278-1970381,"25,243.12",DURHAM ACTION ON SINGLE HOUSING LTD.
Children and Young Peoples Services,Head of Childrens Social Care,Third Party Payments,425028,Rendered by Voluntary Organisations,05/05/2020,3736279-005-APR/MAY/JUNE2020,"10,000.00",DURHAM AREA DISABILITY LEISURE GROUP (DADLG).
Adult and Health Services,Commissioning inc Supporting People,Third Party Payments,441001,Supporting People E441,05/05/2020,3736287-1970353,"5,483.40",EAST DURHAM COMMUNITY INITIATIVES LTD.
Adult and Health Services,Head of Adults,Third Party Payments,478151,Purchase of Care,05/05/2020,3736295-KWVOIDS/PERIOD12AMENDMENT,"2,105.64",EMBRACING CARE.
Children and Young Peoples Services,Head of Education and Skills,Transfer Payments,510034,School Children,05/05/2020,3736297-LACPP1920SPRING-ADD,500.00,EMMANUEL SCHOOLS FOUNDATION T/A BEDE ACADEMY.
Children and Young Peoples Services,Head of Education and Skills,Construction work A908,908105,Construction work,05/05/2020,3736301-165197,"128,359.50",ESH CONSTRUCTION LTD FORMERLY LUMSDEN & CARROLL CONSTRUCTION LTD.
Resources BK0010,Corporate Finance & Commercial Services,Supplies and Services,342051,Computers and Communications,05/05/2020,3736306-HEX67000696010,"1,611.00",EXPERIAN LTD.
Adult and Health Services,Commissioning inc Supporting People,Third Party Payments,442002,Supporting People E442,05/05/2020,3736311-1970380,"23,343.56",FOUNDATION.
"Regeneration, Economy and Growth",Culture Sport and Tourism,Third Party Payments,430100,Rendered by Private Contractors,05/05/2020,3736313-NEI-HCL-05-2020-001,"15,000.00",FUTURE LEISURE IN COXHOE (FLIC).
Children and Young Peoples Services,Head of Education and Skills,Transport,230008,Contract Hire,05/05/2020,3736314-101687,"1,143.56",G & P JOHNSON LTD T/A NIGHTINGALE COACHES.
Children and Young Peoples Services,Head of Education and Skills,Transport,230010,Contract Hire,05/05/2020,3736314-101694,"1,650.00",G & P JOHNSON LTD T/A NIGHTINGALE COACHES.
Neighbourhoods and Climate Change,Environmental Services,Supplies and Services,304221,Equipment and Materials,05/05/2020,3736319-136001,558.00,GUSTHARTS LTD.
Neighbourhoods and Climate Change,Environmental Services,Supplies and Services,304221,Equipment and Materials,05/05/2020,3736319-136012,558.00,GUSTHARTS LTD.
Adult and Health Services,Commissioning inc Supporting People,Third Party Payments,441001,Supporting People E441,05/05/2020,3736323-1970348,"18,082.80",HARBOUR SUPPORT SERVICES.
Adult and Health Services,Commissioning inc Supporting People,Third Party Payments,441001,Supporting People E441,05/05/2020,3736329-1970393,"26,849.32",HOME GROUP LTD FORMERLY STONHAM HOUSING ASSOCIATION LTD.
Adult and Health Services,Commissioning inc Supporting People,Third Party Payments,442002,Supporting People E442,05/05/2020,3736329-1970396,"27,962.72",HOME GROUP LTD FORMERLY STONHAM HOUSING ASSOCIATION LTD.
Adult and Health Services,Commissioning inc Supporting People,Third Party Payments,479111,Purchase of Care,05/05/2020,3736329-1970358,964.80,HOME GROUP LTD FORMERLY STONHAM HOUSING ASSOCIATION LTD.
Adult and Health Services,Commissioning inc Supporting People,Third Party Payments,441001,Supporting People E441,05/05/2020,3736329-1970391,"54,465.72",HOME GROUP LTD FORMERLY STONHAM HOUSING ASSOCIATION LTD.
Adult and Health Services,Commissioning inc Supporting People,Third Party Payments,442002,Supporting People E442,05/05/2020,3736329-1970345,"113,942.68",HOME GROUP LTD FORMERLY STONHAM HOUSING ASSOCIATION LTD.
Adult and Health Services,Commissioning inc Supporting People,Third Party Payments,442002,Supporting People E442,05/05/2020,3736331-1970378,"27,885.68",HUMANKIND CHARITY.
Adult and Health Services,Commissioning inc Supporting People,Third Party Payments,442002,Supporting People E442,05/05/2020,3736331-1970346,"5,668.48",HUMANKIND CHARITY.
Children and Young Peoples Services,Head of Early Help Inclusion & Vulnerable Children.,Supplies and Services,342051,Computers and Communications,05/05/2020,3736334-200407,"1,103.00",I2N LTD.
Neighbourhoods and Climate Change,Environmental Services,Third Party Payments,430100,Rendered by Private Contractors,05/05/2020,3736335-2770,690.00,IAN C LIDDLE T/A IC LIDDLE SERVICES.
Children and Young Peoples Services,Head of Childrens Social Care,Third Party Payments,425028,Rendered by Voluntary Organisations,05/05/2020,3736337-202021/IC/001,"16,872.50",INTEGRATING CHILDREN.
Children and Young Peoples Services,Head of Education and Skills,Transport,230006,Contract Hire,05/05/2020,3736345-CORPTRAVEDCMAR20,"1,100.00",JOHN W CROOK T/A CORPORATE TRAVEL.
Children and Young Peoples Services,Head of Early Help Inclusion & Vulnerable Children.,Supplies and Services,384199,Miscellaneous Expenses,05/05/2020,3736359-SI-239,850.00,MAX-FITNESS.
Children and Young Peoples Services,Head of Early Help Inclusion & Vulnerable Children.,Supplies and Services,384199,Miscellaneous Expenses,05/05/2020,3736359-SI-240,600.00,MAX-FITNESS.
Children and Young Peoples Services,Head of Education and Skills,Supplies and Services,336005,Advertising E336,05/05/2020,3736361-INV-2566,"2,968.75",MEDIA PARTNERSHIP LTD.
Adult and Health Services,Commissioning inc Supporting People,Third Party Payments,442002,Supporting People E442,05/05/2020,3736362-1970349,"5,469.72",MENTAL HEALTH MATTERS.
Adult and Health Services,Commissioning inc Supporting People,Third Party Payments,442002,Supporting People E442,05/05/2020,3736367-1970385,"2,620.48",MOVING ON HOUSING.
Children and Young Peoples Services,Head of Education and Skills,Transport,230034,Contract Hire,05/05/2020,3736369-AT215,"1,000.00",MR AG WILSON T/A ALAN`S TAXIS (DURHAM CITY).
Children and Young Peoples Services,Head of Childrens Social Care,Third Party Payments,486046,Service level agreements E486,05/05/2020,3736374-48439,"8,360.75",NATIONAL YOUTH ADVOCACY SERVICE.
Children and Young Peoples Services,Head of Childrens Social Care,Third Party Payments,486046,Service level agreements E486,05/05/2020,3736374-48618,"2,422.55",NATIONAL YOUTH ADVOCACY SERVICE.
Resources BK0010,People & Talent Management,Supplies and Services,372009,Subscriptions E372,05/05/2020,3736376-30022,"22,691.00",NORTH EAST REGIONAL EMPLOYERS ORGANISATION (NEREO).
Neighbourhoods and Climate Change,Environmental Services,Transport,230005,Contract Hire,05/05/2020,3736379-SL06149531INV,"1,027.20",NORTHGATE VEHICLE HIRE LTD.
Children and Young Peoples Services,Head of Education and Skills,Transport,230034,Contract Hire,05/05/2020,3736397-656,"1,100.00",PETERLEE EXECUTIVE CARS.
Resources BK0010,Digital and Customer Services,Supplies and Services,332029,Printing Stationery and Gen Off Exps,05/05/2020,3736405-684241,"1,058.00",POTTS PRINTERS LTD.
Neighbourhoods and Climate Change,Environmental Services,Supplies and Services,338066,Services,05/05/2020,3736406-022021,600.00,PTYXIS ECOLOGY.
Children and Young Peoples Services,Head of Education and Skills,Transport,230008,Contract Hire,05/05/2020,3736409-007MARCH,651.00,RAYMOND CHURNSIDE T/A S & L TAXI.
"Regeneration, Economy and Growth",Culture Sport and Tourism,Supplies and Services,384199,Miscellaneous Expenses,05/05/2020,3736285-1/2020,"5,170.00",REDACTED - PAYMENT TO INDIVIDUAL
Adult and Health Services,Commissioning inc Supporting People,Third Party Payments,442002,Supporting People E442,05/05/2020,3736414-1970351,"11,729.08",RICHMOND FELLOWSHIP.
Adult and Health Services,Commissioning inc Supporting People,Third Party Payments,441001,Supporting People E441,05/05/2020,3736414-1970352,"9,423.88",RICHMOND FELLOWSHIP.
Neighbourhoods and Climate Change,Technical Services CM0300,Third Party Payments,430100,Rendered by Private Contractors,05/05/2020,3736428-20929,"55,679.41",SEYMOUR (CIVIL ENGINEERING CONTRACTORS) LTD.
Adult and Health Services,Commissioning inc Supporting People,Third Party Payments,442002,Supporting People E442,05/05/2020,3736430-1970386,"6,331.08",SINGLE HOMELESS ACTION INITIATIVE IN DURHAM LTD (SHAID).
Neighbourhoods and Climate Change,Environmental Services,Supplies and Services,304259,Equipment and Materials,05/05/2020,3736431-0001/10141434,"1,620.00",SMH PRODUCTS LTD.
Adult and Health Services,Commissioning inc Supporting People,Third Party Payments,441001,Supporting People E441,05/05/2020,3736438-995,"40,953.00",ST MARGARETS CENTRE.
Neighbourhoods and Climate Change,Technical Services CM0300,Third Party Payments,430100,Rendered by Private Contractors,05/05/2020,3736443-1588,"1,660.32",STONEGRAVE AGGREGATES LTD.
Neighbourhoods and Climate Change,Technical Services CM0300,Third Party Payments,430100,Rendered by Private Contractors,05/05/2020,3736443-2292,948.44,STONEGRAVE AGGREGATES LTD.
Resources BK0010,Digital and Customer Services,Premises,120009,Energy Costs,05/05/2020,3736445-2821026941,"8,536.64",SUNDERLAND CITY COUNCIL.
Neighbourhoods and Climate Change,Technical Services CM0300,Supplies and Services,304221,Equipment and Materials,05/05/2020,3736447-90015041,"3,525.12",SWARCO TRAFFIC LTD.
Children and Young Peoples Services,Head of Early Help Inclusion & Vulnerable Children.,Employees,080025,Agency Staff,05/05/2020,3736450-2401082,"1,056.25",TEACHING PERSONNEL LTD.
Adult and Health Services,Commissioning inc Supporting People,Third Party Payments,441001,Supporting People E441,05/05/2020,3736453-1970356,"19,231.20",THE CYRENIANS LTD T/A CHANGING LIVES.
"Regeneration, Economy and Growth",Development and Housing,Cap Exp on Grants & Other Financial Assistance (REFCUS),918004,Contributions to other bodies 918004,05/05/2020,3736457-RED-05-2020-002,"5,500.00",THE FOX`S TALE.
Adult and Health Services,Commissioning inc Supporting People,Third Party Payments,442002,Supporting People E442,05/05/2020,3736461-1970373,"5,088.84",THIRTEEN HOUSING GROUP LTD.
Adult and Health Services,Commissioning inc Supporting People,Third Party Payments,441001,Supporting People E441,05/05/2020,3736461-1970375,"11,136.08",THIRTEEN HOUSING GROUP LTD.
Adult and Health Services,Commissioning inc Supporting People,Third Party Payments,441001,Supporting People E441,05/05/2020,3736461-1970374,"7,776.68",THIRTEEN HOUSING GROUP LTD.
Adult and Health Services,Commissioning inc Supporting People,Third Party Payments,441001,Supporting People E441,05/05/2020,3736461-1970398,"11,797.88",THIRTEEN HOUSING GROUP LTD.
Neighbourhoods and Climate Change,Environmental Services,Supplies and Services,304221,Equipment and Materials,05/05/2020,3736462-NSIN00034971,786.24,THOMAS OWEN & SONS (NEWCASTLE) LTD.
Resources BK0010,Legal & Democratic Services,Supplies and Services,304259,Equipment and Materials,05/05/2020,3736480-51632,"2,785.00",VP-AV LTD.
Adult and Health Services,Commissioning inc Supporting People,Third Party Payments,441001,Supporting People E441,05/05/2020,3736481-1970354,"2,367.20",WADDINGTON STREET CENTRE LTD.
Adult and Health Services,Commissioning inc Supporting People,Third Party Payments,442002,Supporting People E442,05/05/2020,3736481-1970377,873.44,WADDINGTON STREET CENTRE LTD.
Adult and Health Services,Commissioning inc Supporting People,Third Party Payments,441001,Supporting People E441,05/05/2020,3736483-1970350,"7,157.00",WEAR VALLEY WOMENS AID LTD.
Children and Young Peoples Services,Head of Education and Skills,Transport,230008,Contract Hire,05/05/2020,3736484-7342,"3,950.62",WEARDALE PRIVATE HIRE.
Adult and Health Services,COVID19 - Adults and Health Services,Premises,145037,Cleaning and Domestic Supplies,06/05/2020,3736496-38904,534.35,1ST COVERALL COMPANY LTD.
Adult and Health Services,COVID19 - Adults and Health Services,Premises,145037,Cleaning and Domestic Supplies,06/05/2020,3736496-38907,"8,640.00",1ST COVERALL COMPANY LTD.
Adult and Health Services,Head of Adults,Transport,230005,Contract Hire,06/05/2020,3736499-G3/SV-20,998.90,AABAT TAXIS.
Adult and Health Services,Head of Adults,Transport,230005,Contract Hire,06/05/2020,3736499-G4/SX,723.80,AABAT TAXIS.
Children and Young Peoples Services,Head of Education and Skills,Transport,230012,Contract Hire,06/05/2020,3736500-1/3/20,"1,633.72",ABA TAXIS.
Children and Young Peoples Services,Head of Education and Skills,Transfer Payments,510034,School Children,06/05/2020,3736502-LACPP2021SUMMER,600.00,ACRE RIGG ACADEMY.
Children and Young Peoples Services,Head of Education and Skills,Transfer Payments,510034,School Children,06/05/2020,3736503-LACPP2021SUMMER,"1,800.00",ADVANCE LEARNING PARTNERSHIP.
Children and Young Peoples Services,Head of Childrens Social Care,Supplies and Services,338044,Services,06/05/2020,3736504-MWDP730420,"1,500.00",ADVANCED CHILD CARE ASSESSMENTS LTD.
Neighbourhoods and Climate Change,Technical Services CM0300,Supplies and Services,304221,Equipment and Materials,06/05/2020,3736505-29777697,903.84,AGGREGATE INDUSTRIES UK LTD.
Neighbourhoods and Climate Change,Technical Services CM0300,Supplies and Services,304221,Equipment and Materials,06/05/2020,3736505-29785736,681.50,AGGREGATE INDUSTRIES UK LTD.
Neighbourhoods and Climate Change,Technical Services CM0300,Supplies and Services,304221,Equipment and Materials,06/05/2020,3736505-29789210,980.30,AGGREGATE INDUSTRIES UK LTD.
Children and Young Peoples Services,Head of Education and Skills,Transport,230006,Contract Hire,06/05/2020,3736506-F706-7,780.00,AJ`S TAXIS.
Children and Young Peoples Services,Head of Education and Skills,Transport,230008,Contract Hire,06/05/2020,3736514-COVID19-EST-APRIL-CYPS-956-M002,553.73,ANDREW PYGALL T/A ARP TAXIS.
Children and Young Peoples Services,Head of Education and Skills,Transport,230008,Contract Hire,06/05/2020,3736514-COVID19-EST-MAY-CYPS-0897-M002,593.28,ANDREW PYGALL T/A ARP TAXIS.
Children and Young Peoples Services,Head of Education and Skills,Transport,230008,Contract Hire,06/05/2020,3736514-M002/3,"2,175.36",ANDREW PYGALL T/A ARP TAXIS.
Children and Young Peoples Services,Head of Education and Skills,Transport,230010,Contract Hire,06/05/2020,3736514-B032/3,858.00,ANDREW PYGALL T/A ARP TAXIS.
Resources BK0010,People & Talent Management,Supplies and Services,352001,Conference Expenses,06/05/2020,3736520-1365,850.00,ARMSTRONG WILSON ASSOCIATES LTD.
Neighbourhoods and Climate Change,Technical Services CM0300,Third Party Payments,430100,Rendered by Private Contractors,06/05/2020,3736522-CSUKOU/INV/87526,"24,944.41",BALFOUR BEATTY LIVING PLACES LTD.*
Neighbourhoods and Climate Change,Technical Services CM0300,Third Party Payments,430100,Rendered by Private Contractors,06/05/2020,3736523-CSUKOU/INV/88755,"6,831.88",BALFOUR BEATTY LIVING PLACES LTD.*
Neighbourhoods and Climate Change,Technical Services CM0300,Third Party Payments,430100,Rendered by Private Contractors,06/05/2020,3736523-CSUKOU/INV/88758,"11,817.86",BALFOUR BEATTY LIVING PLACES LTD.*
Neighbourhoods and Climate Change,Environmental Services,Supplies and Services,304221,Equipment and Materials,06/05/2020,3736524-97991005,"1,481.21",BALL COLEGRAVE LTD.
Neighbourhoods and Climate Change,Environmental Services,Supplies and Services,304221,Equipment and Materials,06/05/2020,3736524-97991006,"1,467.98",BALL COLEGRAVE LTD.
Neighbourhoods and Climate Change,Environmental Services,Supplies and Services,304221,Equipment and Materials,06/05/2020,3736524-97991008,"1,014.80",BALL COLEGRAVE LTD.
Children and Young Peoples Services,Head of Childrens Social Care,Supplies and Services,384199,Miscellaneous Expenses,06/05/2020,3736525-241001960,"2,520.00",BARNARDO SERVICES LTD.
Children and Young Peoples Services,Head of Education and Skills,Transport,230008,Contract Hire,06/05/2020,3736528-914,"1,914.88",BEELINE MINI BUSES.
Children and Young Peoples Services,Head of Education and Skills,Transport,230008,Contract Hire,06/05/2020,3736528-COVID19-EST-APRIL-CYPS-1125-N110,539.65,BEELINE MINI BUSES.
Children and Young Peoples Services,Head of Education and Skills,Transport,230008,Contract Hire,06/05/2020,3736528-COVID19-EST-MAY-CYPS-1066-N110,522.24,BEELINE MINI BUSES.
Children and Young Peoples Services,Head of Education and Skills,Transport,230008,Contract Hire,06/05/2020,3736528-916,"1,858.78",BEELINE MINI BUSES.
Children and Young Peoples Services,Head of Education and Skills,Transport,230008,Contract Hire,06/05/2020,3736528-COVID19-EST-APRIL-CYPS-1022-N001,523.84,BEELINE MINI BUSES.
Children and Young Peoples Services,Head of Education and Skills,Transport,230008,Contract Hire,06/05/2020,3736528-COVID19-EST-MAY-CYPS-0963-N001,506.94,BEELINE MINI BUSES.
Children and Young Peoples Services,Head of Education and Skills,Transport,230008,Contract Hire,06/05/2020,3736528-915,"2,044.02",BEELINE MINI BUSES.
Children and Young Peoples Services,Head of Education and Skills,Transport,230008,Contract Hire,06/05/2020,3736528-COVID19-EST-MAY-CYPS-0909-M014,557.46,BEELINE MINI BUSES.
Children and Young Peoples Services,Head of Education and Skills,Transfer Payments,510034,School Children,06/05/2020,3736532-LACPP2021SUMMER,"4,800.00",BISHOP HOGARTH CATHOLIC EDUCATION TRUST T/A  ST JOHN`S SCHOOL & SIXTH FORM COLLEGE.
Children and Young Peoples Services,Head of Education and Skills,Transfer Payments,510034,School Children,06/05/2020,3736533-LACPP2021SUMMER,600.00,BISHOP HOGARTH CATHOLIC EDUCATION TRUST.
Children and Young Peoples Services,Head of Education and Skills,Transport,230008,Contract Hire,06/05/2020,3736534-E013MAR,"2,019.20",BLACKHALL TAXIS.
Children and Young Peoples Services,Head of Education and Skills,Transport,230008,Contract Hire,06/05/2020,3736535-COVID19-EST-APRIL-CYPS-762-E013,666.34,BLACKHALL TAXIS.
Children and Young Peoples Services,Head of Education and Skills,Transport,230008,Contract Hire,06/05/2020,3736535-COVID19-EST-MAY-CYPS-0703-E013,605.76,BLACKHALL TAXIS.
Children and Young Peoples Services,Head of Education and Skills,Transport,230010,Contract Hire,06/05/2020,3736534-COVID19-EST-MAY-CYPS-1084-PF015,650.40,BLACKHALL TAXIS.
Children and Young Peoples Services,Head of Education and Skills,Transport,230010,Contract Hire,06/05/2020,3736534-PF015MAR,"1,568.00",BLACKHALL TAXIS.
Children and Young Peoples Services,Head of Education and Skills,Transport,230010,Contract Hire,06/05/2020,3736535-COVID19-EST-APRIL-CYPS-1143-PF015,715.44,BLACKHALL TAXIS.
"Regeneration, Economy and Growth",Culture Sport and Tourism,Supplies and Services,312013,Newspapers books and periodicals E312,06/05/2020,3736538-47258,"1,552.87",BOLINDA DIGITAL LTD.
"Regeneration, Economy and Growth",Culture Sport and Tourism,Supplies and Services,312013,Newspapers books and periodicals E312,06/05/2020,3736538-47292,799.29,BOLINDA DIGITAL LTD.
"Regeneration, Economy and Growth",Culture Sport and Tourism,Supplies and Services,312013,Newspapers books and periodicals E312,06/05/2020,3736538-47322,568.94,BOLINDA DIGITAL LTD.
"Regeneration, Economy and Growth",Culture Sport and Tourism,Supplies and Services,312013,Newspapers books and periodicals E312,06/05/2020,3736538-47375,570.35,BOLINDA DIGITAL LTD.
"Regeneration, Economy and Growth",Culture Sport and Tourism,Supplies and Services,312013,Newspapers books and periodicals E312,06/05/2020,3736538-47635,"13,425.44",BOLINDA DIGITAL LTD.
"Regeneration, Economy and Growth",Culture Sport and Tourism,Supplies and Services,312013,Newspapers books and periodicals E312,06/05/2020,3736538-47735,529.72,BOLINDA DIGITAL LTD.
Resources BK0010,Legal & Democratic Services,Premises,120021,Energy Costs,06/05/2020,3736540-19373,881.75,BRADLEY HALL LTD.
Neighbourhoods and Climate Change,Environmental Services,Premises,120021,Energy Costs,06/05/2020,3736545-32801050,581.46,CALOR GAS LTD.
Adult and Health Services,Commissioning inc Supporting People,Third Party Payments,479102,Purchase of Care,06/05/2020,3736557-YJ/3645,"1,091.26",CHILD ACTION NORTHWEST.
Children and Young Peoples Services,Head of Education and Skills,Transfer Payments,510034,School Children,06/05/2020,3736563-LACPP2021SUMMER,"2,400.00",CLEVES CROSS LEARNING TRUST T/A ROSA STREET PRIMARY SCHOOL.
Children and Young Peoples Services,Head of Education and Skills,Transfer Payments,510034,School Children,06/05/2020,3736564-LACPP2021SUMM-CLEVES,600.00,CLEVES CROSS LEARNING TRUST.
Children and Young Peoples Services,Head of Education and Skills,Transport,230008,Contract Hire,06/05/2020,314095-N010/29,"1,633.72",COLIN STEWART T/A STEWART`S TAXIS.
Children and Young Peoples Services,Head of Education and Skills,Transport,230007,Contract Hire,06/05/2020,3736576-H007,702.24,DAVID BRIDDICK T/A COUNDONS TAXIS.
Children and Young Peoples Services,Head of Education and Skills,Transport,230009,Contract Hire,06/05/2020,314097-74,880.00,DAVID WILKINSON (TAXIS).
Dedicated Schools Grant BG0015,DSG High Needs Block,Transport,230009,Contract Hire,06/05/2020,314097-75,"1,960.00",DAVID WILKINSON (TAXIS).
Dedicated Schools Grant BG0015,DSG High Needs Block,Transport,230009,Contract Hire,06/05/2020,314097-COVID19-EST-APRIL-CYPS-937-G001,587.00,DAVID WILKINSON (TAXIS).
Dedicated Schools Grant BG0015,DSG High Needs Block,Transport,230009,Contract Hire,06/05/2020,314097-COVID19-EST-MAY-CYPS-0878-G001,534.00,DAVID WILKINSON (TAXIS).
Children and Young Peoples Services,Head of Education and Skills,Transfer Payments,510034,School Children,06/05/2020,3736578-LACPP2021SUMMER,"1,200.00",DENE ACADEMY.
Adult and Health Services,Commissioning inc Supporting People,Third Party Payments,442002,Supporting People E442,06/05/2020,3736581-CCG/DCC2020/001,"14,395.50",DURHAM DEAFENED SUPPORT.
Children and Young Peoples Services,Head of Education and Skills,Transfer Payments,510034,School Children,06/05/2020,3736582-LACPP2021SUMMER,600.00,DURHAM DICESAN MAT T/A STANHOPE BARRINGTON C OF E PRIMARY SCHOOL.
Children and Young Peoples Services,Head of Education and Skills,Transfer Payments,510034,School Children,06/05/2020,3736583-LACPP2021SUMMER,"1,200.00",DURHAM MARTYRS MULTI ACADEMY TRUST T/A ST LEONARD`S CATHOLIC SCHOOL.
Children and Young Peoples Services,Head of Education and Skills,Transfer Payments,510034,School Children,06/05/2020,3736587-LACPP2021SUMMER,"2,400.00",EDEN LEARNING TRUST T/A FERRYHILL BUSINESS & ENTERPRISE COLLEGE.
Children and Young Peoples Services,Head of Education and Skills,Transfer Payments,510034,School Children,06/05/2020,3736588-LACPP2021SUMMER,"2,400.00",EDEN LEARNING TRUST T/A WOODHAM ACADEMY.
Children and Young Peoples Services,Head of Education and Skills,Transfer Payments,510034,School Children,06/05/2020,3736596-LACPP1920SPRING,500.00,EXCEL ACADEMY PARTNERSHIP T/A FRAMWELLGATE SCHOOL DURHAM.
Children and Young Peoples Services,Head of Education and Skills,Transfer Payments,510034,School Children,06/05/2020,3736596-LACPP2021SUMMER,"6,000.00",EXCEL ACADEMY PARTNERSHIP T/A FRAMWELLGATE SCHOOL DURHAM.
Neighbourhoods and Climate Change,Environmental Services,Supplies and Services,338066,Services,06/05/2020,3736602-BURSARYMAY20,692.64,GEMMA MASON (GEOLOGY TRAINEE).
Children and Young Peoples Services,Head of Childrens Social Care,Employees,080025,Agency Staff,06/05/2020,3736603-2438234,"108,276.39",GEOMETRIC RESULTS INTERNATIONAL.
Neighbourhoods and Climate Change,Technical Services CM0300,Stock A926,926900,Stock in hand-Inventory system,06/05/2020,3736605-06/062746,"2,467.69",GREENHAM TRADING LTD.
Children and Young Peoples Services,Head of Education and Skills,Transfer Payments,510034,School Children,06/05/2020,3736606-LACPP2021SUMMER,600.00,HARTSIDE PRIMARY ACADEMY.
Children and Young Peoples Services,Head of Education and Skills,Transfer Payments,510034,School Children,06/05/2020,314101-LACPPSUMMER2021,600.00,HETTON COMPREHENSIVE SCHOOL.
Children and Young Peoples Services,Head of Education and Skills,Transfer Payments,510034,School Children,06/05/2020,3736610-LACPP2021SUMMER,"3,600.00",HOPE WOOD ACADEMY.
Children and Young Peoples Services,Head of Education and Skills,Transport,230016,Contract Hire,06/05/2020,3736617-0755,"2,010.00",JACKSON`S TAXI.
Children and Young Peoples Services,Head of Education and Skills,Transport,230006,Contract Hire,06/05/2020,3736617-COVID19-EST-APRIL-CYPS-899-F786,561.00,JACKSON`S TAXI.
Children and Young Peoples Services,Head of Education and Skills,Transport,230006,Contract Hire,06/05/2020,3736617-COVID19-EST-MAY-CYPS-0840-F786,510.00,JACKSON`S TAXI.
Children and Young Peoples Services,Head of Education and Skills,Transport,230008,Contract Hire,06/05/2020,3736617-COVID19-EST-APRIL-CYPS-1046-N025,532.83,JACKSON`S TAXI.
Children and Young Peoples Services,Head of Education and Skills,Transport,230008,Contract Hire,06/05/2020,3736617-COVID19-EST-MAY-CYPS-0987-N025,515.64,JACKSON`S TAXI.
Children and Young Peoples Services,Head of Education and Skills,Transport,230008,Contract Hire,06/05/2020,3736617-0753,"2,690.60",JACKSON`S TAXI.
Children and Young Peoples Services,Head of Education and Skills,Transport,230008,Contract Hire,06/05/2020,3736617-COVID19-EST-APRIL-CYPS-1113-N091,665.26,JACKSON`S TAXI.
Children and Young Peoples Services,Head of Education and Skills,Transport,230008,Contract Hire,06/05/2020,3736618-COVID19-EST-MAY-CYPS-1054-N091,643.80,JACKSON`S TAXI.
Children and Young Peoples Services,Head of Education and Skills,Transport,230008,Contract Hire,06/05/2020,3736617-COVID19-EST-APRIL-CYPS-1100-N078,561.00,JACKSON`S TAXI.
Children and Young Peoples Services,Head of Education and Skills,Transport,230008,Contract Hire,06/05/2020,3736618-COVID19-EST-MAY-CYPS-1041-N078,510.00,JACKSON`S TAXI.
Children and Young Peoples Services,Head of Education and Skills,Transport,230006,Contract Hire,06/05/2020,3736626-F774/3,"1,575.50",JOHN BELL TAXI.
"Regeneration, Economy and Growth",Corporate Property and Land,Third Party Payments,430100,Rendered by Private Contractors,06/05/2020,3736631-14,"1,100.00",JTL SCAFFOLDING LTD.
Children and Young Peoples Services,Head of Education and Skills,Transport,230009,Contract Hire,06/05/2020,3736634-G020/3,"1,914.00",KEN HINDS.
Dedicated Schools Grant BG0015,DSG High Needs Block,Transport,230009,Contract Hire,06/05/2020,3736634-COVID19-EST-APRIL-CYPS-946-G020,574.20,REDACTED - PAYMENT TO INDIVIDUAL
Dedicated Schools Grant BG0015,DSG High Needs Block,Transport,230009,Contract Hire,06/05/2020,3736634-COVID19-EST-MAY-CYPS-0887-G020,522.00,REDACTED - PAYMENT TO INDIVIDUAL
Children and Young Peoples Services,Head of Education and Skills,Transfer Payments,510034,School Children,06/05/2020,3736637-LACPP2021SUMMER,"1,200.00",KING JAMES I ACADEMY.
Children and Young Peoples Services,Head of Education and Skills,Supplies and Services,384199,Miscellaneous Expenses,06/05/2020,3736659-1687448,"3,850.00",MAZARS LLP.
Children and Young Peoples Services,Head of Education and Skills,Transfer Payments,510034,School Children,06/05/2020,314108-LACPPSUMMER2021,600.00,MILL HILL PRIMARY SCHOOL.
Children and Young Peoples Services,Head of Education and Skills,Transport,230007,Contract Hire,06/05/2020,3736665-131/2,"1,101.05",MR JOHN ALLINSON T/A AALPHA TAXIS.
Children and Young Peoples Services,Head of Education and Skills,Transport,230006,Contract Hire,06/05/2020,3736665-132,507.00,MR JOHN ALLINSON T/A AALPHA TAXIS.
Children and Young Peoples Services,Head of Education and Skills,Transport,230006,Contract Hire,06/05/2020,3736665-133,"1,058.10",MR JOHN ALLINSON T/A AALPHA TAXIS.
Resources BK0010,Finance & Transactional Services,Supplies and Services,342051,Computers and Communications,06/05/2020,3736678-INVESUK1037805,645.00,NCC SERVICES LTD.
Resources BK0010,Finance & Transactional Services,Supplies and Services,342051,Computers and Communications,06/05/2020,3736678-INVESUK1037895,645.00,NCC SERVICES LTD.
Children and Young Peoples Services,Head of Education and Skills,Transfer Payments,510034,School Children,06/05/2020,3736679-LACPP2021SUMMER,"4,200.00",NEW COLLEGE ACADEMIES TRUST - CONSETT ACADEMY.
Resources BK0010,Legal & Democratic Services,Supplies and Services,338101,Services,06/05/2020,3736680-H0331626,"1,050.00",NEWCASTLE UPON TYNE HOSPITALS NHS FOUNDATION TRUST.
"Regeneration, Economy and Growth",Transport and Contracted Services,Supplies and Services,336005,Advertising E336,06/05/2020,3736681-32950498,623.35,NEWSQUEST (YORKSHIRE & NORTH EAST) LTD.
"Regeneration, Economy and Growth",Corporate Property and Land,Supplies and Services,304083,Equipment and Materials,06/05/2020,3736683-21079196,602.99,NISBETS PLC.
Children and Young Peoples Services,Head of Education and Skills,Transfer Payments,510034,School Children,06/05/2020,3736685-LACPP2021SUMMER,"1,200.00",NORTH DURHAM ACADEMY.
Children and Young Peoples Services,Head of Education and Skills,Transfer Payments,510034,School Children,06/05/2020,3736686-LACPP1920SPR-SHOTT,550.00,NORTH EAST LEARNING TRUST (NELT).
Children and Young Peoples Services,Head of Education and Skills,Transfer Payments,510034,School Children,06/05/2020,3736686-LACPP2021SUMM-BROWNEY,"1,800.00",NORTH EAST LEARNING TRUST (NELT).
Children and Young Peoples Services,Head of Education and Skills,Transfer Payments,510034,School Children,06/05/2020,3736686-LACPP2021SUMM-EAS,"3,000.00",NORTH EAST LEARNING TRUST (NELT).
Children and Young Peoples Services,Head of Education and Skills,Transfer Payments,510034,School Children,06/05/2020,3736686-LACPP2021SUMM-HERM,"5,400.00",NORTH EAST LEARNING TRUST (NELT).
Children and Young Peoples Services,Head of Education and Skills,Transfer Payments,510034,School Children,06/05/2020,3736686-LACPP2021SUMM-SAC,"1,200.00",NORTH EAST LEARNING TRUST (NELT).
Children and Young Peoples Services,Head of Education and Skills,Transfer Payments,510034,School Children,06/05/2020,3736686-LACPP2021SUMM-SHOTT,"6,000.00",NORTH EAST LEARNING TRUST (NELT).
Children and Young Peoples Services,Head of Education and Skills,Transfer Payments,510034,School Children,06/05/2020,3736686-LACPP2021SUMM-TEES,"2,400.00",NORTH EAST LEARNING TRUST (NELT).
Children and Young Peoples Services,Head of Education and Skills,Transfer Payments,510034,School Children,06/05/2020,3736689-LACPP2021SUMMER,600.00,OUSTON PRIMARY SCHOOL (PART OF JIGSAW LEARNING TRUST).
Children and Young Peoples Services,Head of Education and Skills,Transfer Payments,510034,School Children,06/05/2020,314128-LACPPSUMMER2021,"1,200.00",OXCLOSE COMMUNITY ACADEMY.
Children and Young Peoples Services,Head of Education and Skills,Transfer Payments,510034,School Children,06/05/2020,3736691-LACPP2021SUMMER,600.00,PARK VIEW ACADEMY.
Resources BK0010,Digital and Customer Services,Supplies and Services,332029,Printing Stationery and Gen Off Exps,06/05/2020,3736701-684298,"2,190.00",POTTS PRINTERS LTD.
Resources BK0010,Finance & Transactional Services,Supplies and Services,384999,Miscellaneous Expenses,06/05/2020,3736702-17903-DURHAMCOUNTYCOUNCIL-0420,"2,500.91",PREPAID FINANCIAL SERVICES LTD.
Neighbourhoods and Climate Change,Technical Services CM0300,Third Party Payments,430100,Rendered by Private Contractors,06/05/2020,3736704-132481,550.00,PROTECTOR SECURITY GROUP LTD.
Adult and Health Services,Head of Adults,Third Party Payments,478151,Purchase of Care,06/05/2020,3736673-03,"1,161.30",REDACTED - PAYMENT TO INDIVIDUAL
Children and Young Peoples Services,COVID19 - Children and Young Peoples Services,Transfer Payments,510030,School Children,06/05/2020,3736670-EYFCOVID19,761.40,REDACTED - PAYMENT TO INDIVIDUAL
Neighbourhoods and Climate Change,Technical Services CM0300,Supplies and Services,304221,Equipment and Materials,06/05/2020,3736712-SI2030157,"2,805.70",REDIWELD RUBBER & PLASTICS LTD.
Children and Young Peoples Services,Head of Education and Skills,Transfer Payments,510034,School Children,06/05/2020,3736714-LACPP1920SPRING,500.00,RIBBON ACADEMY TRUST.
Children and Young Peoples Services,Head of Education and Skills,Transfer Payments,510034,School Children,06/05/2020,3736714-LACPP2021SUMMER,"6,000.00",RIBBON ACADEMY TRUST.
Resources BK0010,Finance & Transactional Services,Supplies and Services,340001,Postages E340,06/05/2020,3736717-9060736584,"11,827.04",ROYAL MAIL GROUP PLC.
Children and Young Peoples Services,Head of Education and Skills,Transport,230008,Contract Hire,06/05/2020,3736720-161,"2,640.00",SAM MONTAGUE T/A 8 SEATER TRAVEL.
Children and Young Peoples Services,Head of Education and Skills,Transport,230008,Contract Hire,06/05/2020,3736720-COVID19-EST-APRIL-CYPS-555-A004,792.00,SAM MONTAGUE T/A 8 SEATER TRAVEL.
Children and Young Peoples Services,Head of Education and Skills,Transport,230008,Contract Hire,06/05/2020,3736720-COVID19-EST-MAY-CYPS-0502-A004,720.00,SAM MONTAGUE T/A 8 SEATER TRAVEL.
Children and Young Peoples Services,Head of Education and Skills,Transfer Payments,510034,School Children,06/05/2020,3736731-LACPP1920SPRING,600.00,ST BEDES CATHOLIC ACADEMY (LANCHESTER).
Children and Young Peoples Services,Head of Education and Skills,Transfer Payments,510034,School Children,06/05/2020,3736731-LACPP2021SUMMER,"4,800.00",ST BEDES CATHOLIC ACADEMY (LANCHESTER).
Children and Young Peoples Services,Head of Education and Skills,Transfer Payments,510034,School Children,06/05/2020,314130-LACPPSUMMER2021,600.00,ST PAULS CE PRIMARY SCHOOL.
Children and Young Peoples Services,Head of Education and Skills,Transfer Payments,510034,School Children,06/05/2020,3736732-LACPP2021SUMMER,"1,200.00",STAINDROP ACADEMY.
Children and Young Peoples Services,Head of Education and Skills,Transfer Payments,510034,School Children,06/05/2020,3736733-LACPP2021SUMM-GREEN,"1,800.00",STANLEY LEARNING PARTNERSHIP.
Children and Young Peoples Services,Head of Education and Skills,Transfer Payments,510034,School Children,06/05/2020,3736733-LACPP2021SUMMER,600.00,STANLEY LEARNING PARTNERSHIP.
Children and Young Peoples Services,Head of Education and Skills,Transfer Payments,510034,School Children,06/05/2020,3736734-LACPP2021SUMMER,"1,800.00",STEPHENSON WAY ACADEMY & NURSERY SCHOOL.
Children and Young Peoples Services,Head of Early Help Inclusion & Vulnerable Children.,Employees,080025,Agency Staff,06/05/2020,3736743-2386832,"1,703.50",TEACHING PERSONNEL LTD.
Children and Young Peoples Services,Head of Education and Skills,Transfer Payments,510034,School Children,06/05/2020,3736752-LACPP2021SUMMER,600.00,TUDHOE COLLIERY ACADEMY.
Children and Young Peoples Services,Head of Education and Skills,Transfer Payments,510034,School Children,06/05/2020,3736753-LACPP2021SUMMER,"1,200.00",TUDHOE LEARNING TRUST T/A SOUTH HETTON PRIMARY SCHOOL.
Neighbourhoods and Climate Change,Technical Services CM0300,Supplies and Services,304221,Equipment and Materials,06/05/2020,3736756-209792,508.74,TYNEDALE ROADSTONE LTD.
"Regeneration, Economy and Growth",Business Durham CL0850,Supplies and Services,372009,Subscriptions E372,06/05/2020,3736757-3667,"1,405.00",UK SCIENCE PARK ASSOCIATION.
Children and Young Peoples Services,Head of Education and Skills,Transfer Payments,510034,School Children,06/05/2020,3736760-LACPP2021SUMMER,"2,400.00",VICTORIA LANE ACADEMY.
Neighbourhoods and Climate Change,Environmental Services,Supplies and Services,304259,Equipment and Materials,06/05/2020,3736763-0005011226,"1,365.00",VISION TECHNIQUES (UK) LTD.
Resources BK0010,Digital and Customer Services,Supplies and Services,344015,Telephones,06/05/2020,3736766-NZ71888,630.00,VODAFONE LTD.
Children and Young Peoples Services,Head of Education and Skills,Transport,230006,Contract Hire,06/05/2020,3736767-COVID19-EST-APRIL-CYPS-859-F702,554.40,WAINE SANDERSON T/A 1A CAB.
Children and Young Peoples Services,Head of Education and Skills,Transport,230006,Contract Hire,06/05/2020,3736767-COVID19-EST-MAY-CYPS-0800-F702,504.00,WAINE SANDERSON T/A 1A CAB.
Children and Young Peoples Services,Head of Education and Skills,Transport,230006,Contract Hire,06/05/2020,3736767-F702/3,"1,848.00",WAINE SANDERSON T/A 1A CAB.
"Regeneration, Economy and Growth",Transport and Contracted Services,Third Party Payments,430106,Rendered by Private Contractors,06/05/2020,3736771-16001,"44,300.77",WEARDALE MOTOR SERVICES LTD.
"Regeneration, Economy and Growth",Transport and Contracted Services,Third Party Payments,430106,Rendered by Private Contractors,06/05/2020,3736771-16006,"19,079.59",WEARDALE MOTOR SERVICES LTD.
Children and Young Peoples Services,Head of Education and Skills,Transfer Payments,510034,School Children,06/05/2020,3736772-LACPP2021SUMMER,600.00,WHITWORTH PARK SCHOOL.
Resources BK0010,Digital and Customer Services,Supplies and Services,342033,Computers and Communications,06/05/2020,3736775-KW31538,"1,316.24",XMA LTD.
Adult and Health Services,Head of Adults,Transport,230005,Contract Hire,07/05/2020,3736783-G1/SM,"2,077.02",AABAT TAXIS.
Adult and Health Services,Head of Adults,Transport,230005,Contract Hire,07/05/2020,3736783-G11/SJ,519.14,AABAT TAXIS.
Children and Young Peoples Services,Head of Education and Skills,Transport,230012,Contract Hire,07/05/2020,3736783-G13/SN,"1,433.08",AABAT TAXIS.
Children and Young Peoples Services,Head of Education and Skills,Transport,230009,Contract Hire,07/05/2020,3736783-G10/SH,"1,430.00",AABAT TAXIS.
Children and Young Peoples Services,Head of Education and Skills,Transport,230012,Contract Hire,07/05/2020,3736783-G16/SS-20,"1,408.00",AABAT TAXIS.
Children and Young Peoples Services,Head of Education and Skills,Transport,230012,Contract Hire,07/05/2020,3736783-G21/SF,"1,078.00",AABAT TAXIS.
Children and Young Peoples Services,Head of Education and Skills,Transport,230035,Contract Hire,07/05/2020,3736783-G14/SQ,"1,031.36",AABAT TAXIS.
Children and Young Peoples Services,Head of Education and Skills,Transport,230012,Contract Hire,07/05/2020,3736783-G9/SE-20,"1,738.00",AABAT TAXIS.
Children and Young Peoples Services,Head of Education and Skills,Transport,230007,Contract Hire,07/05/2020,3736783-G18/SU,"1,540.00",AABAT TAXIS.
Children and Young Peoples Services,Head of Education and Skills,Transport,230008,Contract Hire,07/05/2020,3736783-G19/SW,"1,415.92",AABAT TAXIS.
Children and Young Peoples Services,Head of Education and Skills,Transport,230008,Contract Hire,07/05/2020,3736783-G12/SL,"1,330.56",AABAT TAXIS.
Children and Young Peoples Services,Head of Education and Skills,Transport,230016,Contract Hire,07/05/2020,3736783-G7/SC,"2,420.00",AABAT TAXIS.
Children and Young Peoples Services,Head of Education and Skills,Transport,230008,Contract Hire,07/05/2020,3736783-G8/SD,"2,618.00",AABAT TAXIS.
Children and Young Peoples Services,Head of Education and Skills,Transport,230008,Contract Hire,07/05/2020,3736783-G6/SA,"3,190.00",AABAT TAXIS.
Adult and Health Services,Public Health CC0450,Third Party Payments,460803,Contract Payments,07/05/2020,3736784-INV-0729,"124,855.00",ABL HEALTH LTD.
"Regeneration, Economy and Growth",Culture Sport and Tourism,Premises,106082,Centrally Controlled Rep and Maint,07/05/2020,3736785-IN6926,"10,417.68",ACROL AIR CONDITIONING CO LTD.
"Regeneration, Economy and Growth",Culture Sport and Tourism,Fees,901002,Professional Fees,07/05/2020,3736799-20019331,"1,415.00",ATKINS GLOBAL.
Neighbourhoods and Climate Change,Environmental Services,Supplies and Services,304221,Equipment and Materials,07/05/2020,3736801-INV138480,524.50,AZTEC CHEMICALS LTD.
"Regeneration, Economy and Growth",Culture Sport and Tourism,Supplies and Services,338066,Services,07/05/2020,3736807-SIN015053,"38,535.50",BLOOM PROCUREMENT SERVICES LTD (FORMERLY NEPRO LTD).
Children and Young Peoples Services,Head of Education and Skills,Transport,230007,Contract Hire,07/05/2020,3736819-7-3382,"1,569.26",CHAPMAN TRAVEL.
Children and Young Peoples Services,Head of Education and Skills,Transport,230006,Contract Hire,07/05/2020,3736819-8-20,"1,740.00",CHAPMAN TRAVEL.
Children and Young Peoples Services,Head of Education and Skills,Transport,230006,Contract Hire,07/05/2020,3736819-COVID19-EST-APRIL-CYPS-877-F748,571.00,CHAPMAN TRAVEL.
Neighbourhoods and Climate Change,Environmental Services,Transport,210057,Repair and Maintenance of Vehicles,07/05/2020,3736821-710062,"1,604.54",CHATFIELDS T/A EVANS HALSHAW.
Adult and Health Services,Commissioning inc Supporting People,Third Party Payments,479102,Purchase of Care,07/05/2020,3736822-YJ/3587,"2,571.16",CHILD ACTION NORTHWEST.
Adult and Health Services,Commissioning inc Supporting People,Third Party Payments,479102,Purchase of Care,07/05/2020,3736822-YJ/3644,"3,563.51",CHILD ACTION NORTHWEST.
Adult and Health Services,Commissioning inc Supporting People,Third Party Payments,479102,Purchase of Care,07/05/2020,3736822-YJ/3659,"4,204.81",CHILD ACTION NORTHWEST.
Adult and Health Services,Commissioning inc Supporting People,Third Party Payments,479102,Purchase of Care,07/05/2020,3736822-YJ/3660,678.17,CHILD ACTION NORTHWEST.
Adult and Health Services,Commissioning inc Supporting People,Third Party Payments,479102,Purchase of Care,07/05/2020,3736822-YJ/3699,"3,094.95",CHILD ACTION NORTHWEST.
Adult and Health Services,Commissioning inc Supporting People,Third Party Payments,479102,Purchase of Care,07/05/2020,3736822-YJ/3700,949.45,CHILD ACTION NORTHWEST.
Adult and Health Services,Commissioning inc Supporting People,Third Party Payments,479102,Purchase of Care,07/05/2020,3736822-YJ/3740,"3,316.88",CHILD ACTION NORTHWEST.
Adult and Health Services,Commissioning inc Supporting People,Third Party Payments,479102,Purchase of Care,07/05/2020,3736822-YJ/3741,930.99,CHILD ACTION NORTHWEST.
Adult and Health Services,Commissioning inc Supporting People,Third Party Payments,479102,Purchase of Care,07/05/2020,3736822-YJ3647,585.71,CHILD ACTION NORTHWEST.
Adult and Health Services,Commissioning inc Supporting People,Third Party Payments,479101,Purchase of Care,07/05/2020,3736824-33066,"7,000.00",CHS HEALTHCARE.
Resources BK0010,Internal Audit and Insurance,Supplies and Services,342051,Computers and Communications,07/05/2020,3736828-M/RB073157,800.00,CIVICA UK LTD.
Children and Young Peoples Services,Head of Education and Skills,Transport,230012,Contract Hire,07/05/2020,3736829-COVID19-EST-APRIL-CYPS-1154-S003,765.60,CJ`S TRAVEL.
Children and Young Peoples Services,Head of Education and Skills,Transport,230012,Contract Hire,07/05/2020,3736829-COVID19-EST-MAY-CYPS-1095-S003,696.00,CJ`S TRAVEL.
Children and Young Peoples Services,Head of Education and Skills,Transport,230012,Contract Hire,07/05/2020,3736829-S003-TA0320,"2,552.00",CJ`S TRAVEL.
Children and Young Peoples Services,Head of Education and Skills,Transport,230008,Contract Hire,07/05/2020,3736829-RB0320,602.00,CJ`S TRAVEL.
Children and Young Peoples Services,Head of Education and Skills,Transport,230008,Contract Hire,07/05/2020,3736829-COVID19-EST-APRIL-CYPS-781-E031,"1,147.61",CJ`S TRAVEL.
Children and Young Peoples Services,Head of Education and Skills,Transport,230008,Contract Hire,07/05/2020,3736829-COVID19-EST-MAY-CYPS-0722-E031,"1,043.28",CJ`S TRAVEL.
Children and Young Peoples Services,Head of Education and Skills,Transport,230008,Contract Hire,07/05/2020,3736829-KC0320,"4,086.18",CJ`S TRAVEL.
Children and Young Peoples Services,Head of Education and Skills,Transport,230008,Contract Hire,07/05/2020,3736829-COVID19-EST-APRIL-CYPS-965-M011,653.40,CJ`S TRAVEL.
Children and Young Peoples Services,Head of Education and Skills,Transport,230008,Contract Hire,07/05/2020,3736829-COVID19-EST-MAY-CYPS-0906-M011,594.00,CJ`S TRAVEL.
Children and Young Peoples Services,Head of Education and Skills,Transport,230008,Contract Hire,07/05/2020,3736829-M011-AA0320,"2,178.00",CJ`S TRAVEL.
Children and Young Peoples Services,Head of Education and Skills,Supplies and Services,384199,Miscellaneous Expenses,07/05/2020,3736839-20/21-004,"12,350.00",CORNFORTH PARTNERSHIP.
"Regeneration, Economy and Growth",Development and Housing,Fees,901001,Internal fees,07/05/2020,3736843-7059039,"8,093.00",CURRIE & BROWN UK LTD.
Children and Young Peoples Services,Head of Education and Skills,Transport,230008,Contract Hire,07/05/2020,3736846-0067,"5,787.54",DAVID WALKER TAXIS.
Children and Young Peoples Services,Head of Education and Skills,Transport,230008,Contract Hire,07/05/2020,3736846-COVID19-EST-APRIL-CYPS-564-A014,"1,736.26",DAVID WALKER TAXIS.
Children and Young Peoples Services,Head of Education and Skills,Transport,230008,Contract Hire,07/05/2020,3736846-COVID19-EST-MAY-CYPS-0511-A014,"1,578.42",DAVID WALKER TAXIS.
Neighbourhoods and Climate Change,Environmental Services,Transport,230005,Contract Hire,07/05/2020,3736847-671957,648.00,DAWSONGROUP VANS LTD.
Adult and Health Services,Head of Adults,Third Party Payments,478151,Purchase of Care,07/05/2020,3736848-INV-0529,"1,693.44",DEACONSTAR LTD.
Adult and Health Services,Head of Adults,Third Party Payments,478151,Purchase of Care,07/05/2020,3736848-INV-0530,"1,853.60",DEACONSTAR LTD.
Neighbourhoods and Climate Change,Environmental Services,Stock A926,926004,Stock,07/05/2020,3736849-96388791,632.89,DENNIS EAGLE LTD T/A TERBERG MATEC (UK) LTD.
Neighbourhoods and Climate Change,Technical Services CM0300,Third Party Payments,460157,Contract Payments,07/05/2020,3736856-10576,"3,893.50",DUNELM GEOTECHNICAL & ENVIRONMENTAL LTD.
Adult and Health Services,Head of Adults,Third Party Payments,478151,Purchase of Care,07/05/2020,3736870-GREENLANEP12020,"1,637.76",EMBRACING CARE.
Adult and Health Services,Head of Adults,Third Party Payments,478151,Purchase of Care,07/05/2020,3736870-PARKDRIVEP12020,"2,429.40",EMBRACING CARE.
Adult and Health Services,Head of Adults,Third Party Payments,478151,Purchase of Care,07/05/2020,3736870-WESTLEAPERIOD12020,"2,344.72",EMBRACING CARE.
Neighbourhoods and Climate Change,Environmental Services,Transport,230005,Contract Hire,07/05/2020,3736871-8158671,"1,004.00",ENTERPRISE FLEX-E-RENT T/A BURNT TREE GROUP LTD.
Neighbourhoods and Climate Change,Environmental Services,Supplies and Services,384956,Miscellaneous Expenses,07/05/2020,3736872-Y00005114T,"2,731.25",ENVIRONMENT AGENCY.
Neighbourhoods and Climate Change,Technical Services CM0300,Stock A926,926900,Stock in hand-Inventory system,07/05/2020,3736878-132681,"6,027.12",FABRIKAT (NOTTINGHAM) LTD.
Neighbourhoods and Climate Change,Technical Services CM0300,Stock A926,926900,Stock in hand-Inventory system,07/05/2020,3736878-132684,"25,182.50",FABRIKAT (NOTTINGHAM) LTD.
Children and Young Peoples Services,Head of Education and Skills,Transport,230010,Contract Hire,07/05/2020,3736879-06FCTDMAR2020,938.22,FIRST CHOICE TAXIS DURHAM.
Children and Young Peoples Services,Head of Education and Skills,Transport,230010,Contract Hire,07/05/2020,3736879-06FCTDMAR2020/2,894.68,FIRST CHOICE TAXIS DURHAM.
Children and Young Peoples Services,Head of Education and Skills,Supplies and Services,384199,Miscellaneous Expenses,07/05/2020,3736881-08-04/05/2020,"12,075.00",FIRST POINT TRAINING LTD T/A DURHAMWORKS.
Children and Young Peoples Services,Head of Education and Skills,Transport,230008,Contract Hire,07/05/2020,3736915-COVID19-EST-APRIL-CYPS-1105-N083,767.81,KD TAXIS.
Children and Young Peoples Services,Head of Education and Skills,Transport,230008,Contract Hire,07/05/2020,3736915-COVID19-EST-MAY-CYPS-1046-N083,743.04,KD TAXIS.
Children and Young Peoples Services,Head of Education and Skills,Transport,230008,Contract Hire,07/05/2020,3736915-MARCH07,"2,724.48",KD TAXIS.
Children and Young Peoples Services,Head of Education and Skills,Transport,230031,Contract Hire,07/05/2020,3736921-COVID19-EST-APRIL-CYPS-518-8027,898.65,LEE`S COACHES LTD.
Children and Young Peoples Services,Head of Education and Skills,Transport,230031,Contract Hire,07/05/2020,3736921-COVID19-EST-MAY-CYPS-0466-8027,825.00,LEE`S COACHES LTD.
Children and Young Peoples Services,Head of Education and Skills,Transport,230007,Contract Hire,07/05/2020,3736921-COVID19-EST-APRIL-CYPS-088-3056,907.20,LEE`S COACHES LTD.
Children and Young Peoples Services,Head of Education and Skills,Transport,230007,Contract Hire,07/05/2020,3736921-COVID19-EST-APRIL-CYPS-113-3192,656.70,LEE`S COACHES LTD.
Children and Young Peoples Services,Head of Education and Skills,Transport,230007,Contract Hire,07/05/2020,3736921-COVID19-EST-MAY-CYPS-0086-3056,"1,134.00",LEE`S COACHES LTD.
Children and Young Peoples Services,Head of Education and Skills,Transport,230007,Contract Hire,07/05/2020,3736921-COVID19-EST-MAY-CYPS-0111-3192,597.00,LEE`S COACHES LTD.
Children and Young Peoples Services,Head of Education and Skills,Transport,230007,Contract Hire,07/05/2020,3736922-8231/3056,"2,816.10",LEE`S COACHES LTD.
Children and Young Peoples Services,Head of Education and Skills,Transport,230007,Contract Hire,07/05/2020,3736922-8231/3192,"1,482.55",LEE`S COACHES LTD.
Children and Young Peoples Services,Head of Education and Skills,Transport,230007,Contract Hire,07/05/2020,3736922-8313,"4,158.00",LEE`S COACHES LTD.
Children and Young Peoples Services,Head of Education and Skills,Transport,230007,Contract Hire,07/05/2020,3736922-8313/3192,"2,189.00",LEE`S COACHES LTD.
Children and Young Peoples Services,Head of Education and Skills,Transport,230007,Contract Hire,07/05/2020,3736921-8311/4372,"4,504.06",LEE`S COACHES LTD.
Children and Young Peoples Services,Head of Education and Skills,Transport,230007,Contract Hire,07/05/2020,3736921-COVID19-EST-APRIL-CYPS-181-4006,693.13,LEE`S COACHES LTD.
Children and Young Peoples Services,Head of Education and Skills,Transport,230007,Contract Hire,07/05/2020,3736921-COVID19-EST-APRIL-CYPS-230-4371,"1,351.22",LEE`S COACHES LTD.
Children and Young Peoples Services,Head of Education and Skills,Transport,230007,Contract Hire,07/05/2020,3736921-COVID19-EST-APRIL-CYPS-231-4372,"1,351.22",LEE`S COACHES LTD.
Children and Young Peoples Services,Head of Education and Skills,Transport,230007,Contract Hire,07/05/2020,3736921-COVID19-EST-APRIL-CYPS-232-4373,675.64,LEE`S COACHES LTD.
Children and Young Peoples Services,Head of Education and Skills,Transport,230007,Contract Hire,07/05/2020,3736921-COVID19-EST-MAY-CYPS-0177-4006,630.12,LEE`S COACHES LTD.
Children and Young Peoples Services,Head of Education and Skills,Transport,230007,Contract Hire,07/05/2020,3736921-COVID19-EST-MAY-CYPS-0223-4371,"1,228.38",LEE`S COACHES LTD.
Children and Young Peoples Services,Head of Education and Skills,Transport,230007,Contract Hire,07/05/2020,3736921-COVID19-EST-MAY-CYPS-0224-4372,"1,228.38",LEE`S COACHES LTD.
Children and Young Peoples Services,Head of Education and Skills,Transport,230007,Contract Hire,07/05/2020,3736921-COVID19-EST-MAY-CYPS-0225-4373,614.22,LEE`S COACHES LTD.
Children and Young Peoples Services,Head of Education and Skills,Transport,230007,Contract Hire,07/05/2020,3736922-8311,"2,310.44",LEE`S COACHES LTD.
Children and Young Peoples Services,Head of Education and Skills,Transport,230007,Contract Hire,07/05/2020,3736922-8311/4371,"4,504.06",LEE`S COACHES LTD.
Children and Young Peoples Services,Head of Education and Skills,Transport,230007,Contract Hire,07/05/2020,3736922-8311/4373,"2,252.14",LEE`S COACHES LTD.
Children and Young Peoples Services,Head of Education and Skills,Transport,230003,Contract Hire,07/05/2020,3736921-COVID19-EST-MAY-CYPS-0136-3304,"1,314.00",LEE`S COACHES LTD.
Children and Young Peoples Services,Head of Education and Skills,Transport,230003,Contract Hire,07/05/2020,3736921-COVID19-EST-APRIL-CYPS-184-4015,704.05,LEE`S COACHES LTD.
Children and Young Peoples Services,Head of Education and Skills,Transport,230003,Contract Hire,07/05/2020,3736921-COVID19-EST-APRIL-CYPS-185-4017,"1,580.70",LEE`S COACHES LTD.
Children and Young Peoples Services,Head of Education and Skills,Transport,230003,Contract Hire,07/05/2020,3736921-COVID19-EST-APRIL-CYPS-189-4020,"1,514.70",LEE`S COACHES LTD.
Children and Young Peoples Services,Head of Education and Skills,Transport,230003,Contract Hire,07/05/2020,3736921-COVID19-EST-MAY-CYPS-0179-4015,"1,173.42",LEE`S COACHES LTD.
Children and Young Peoples Services,Head of Education and Skills,Transport,230003,Contract Hire,07/05/2020,3736921-COVID19-EST-MAY-CYPS-0180-4017,"1,437.00",LEE`S COACHES LTD.
Children and Young Peoples Services,Head of Education and Skills,Transport,230003,Contract Hire,07/05/2020,3736921-COVID19-EST-MAY-CYPS-0183-4020,"1,377.00",LEE`S COACHES LTD.
Children and Young Peoples Services,Head of Education and Skills,Transport,230003,Contract Hire,07/05/2020,3736922-8312/4017,"5,269.00",LEE`S COACHES LTD.
Children and Young Peoples Services,Head of Education and Skills,Transport,230003,Contract Hire,07/05/2020,3736922-8312/4020,"5,049.00",LEE`S COACHES LTD.
Neighbourhoods and Climate Change,Environmental Services,Transport,230005,Contract Hire,07/05/2020,3736920-4504303,"2,800.00",LEEDS COMMERCIAL LTD.
Children and Young Peoples Services,Head of Childrens Social Care,Supplies and Services,338044,Services,07/05/2020,3736924-169570,549.17,LEXTOX.
Adult and Health Services,Commissioning inc Supporting People,Third Party Payments,479111,Purchase of Care,07/05/2020,3736928-2990,"11,757.00",MAIN - TAKING AUTISM PERSONALLY.
Neighbourhoods and Climate Change,Environmental Services,Transport,210057,Repair and Maintenance of Vehicles,07/05/2020,3736931-33684,652.36,MAJOR & ASPINALL LTD.
Children and Young Peoples Services,Head of Education and Skills,Transport,230034,Contract Hire,07/05/2020,3736941-278,"1,512.00",MICKS TAXIS - MURTON.
Children and Young Peoples Services,Head of Childrens Social Care,Third Party Payments,440038,Other third party payments E440,07/05/2020,3736944-MOV-052,840.40,MOVING ON (DURHAM) LTD.
Children and Young Peoples Services,Head of Childrens Social Care,Third Party Payments,440038,Other third party payments E440,07/05/2020,3736944-MOV-053,920.72,MOVING ON (DURHAM) LTD.
Children and Young Peoples Services,Head of Childrens Social Care,Third Party Payments,440038,Other third party payments E440,07/05/2020,3736944-MOV-055,840.40,MOVING ON (DURHAM) LTD.
Children and Young Peoples Services,Head of Childrens Social Care,Third Party Payments,440038,Other third party payments E440,07/05/2020,3736944-MOV-056,920.72,MOVING ON (DURHAM) LTD.
Neighbourhoods and Climate Change,Environmental Services,Transport,230005,Contract Hire,07/05/2020,3736956-133780,"2,900.00",ND BROWN LTD.
Children and Young Peoples Services,Head of Early Help Inclusion & Vulnerable Children.,Third Party Payments,410037,Rendered by Other Local Authorities,07/05/2020,3736963-29594,"4,194.00",NOMS AGENCY.
Children and Young Peoples Services,Head of Early Help Inclusion & Vulnerable Children.,Third Party Payments,410037,Rendered by Other Local Authorities,07/05/2020,3736963-29595,"7,344.00",NOMS AGENCY.
Children and Young Peoples Services,Head of Early Help Inclusion & Vulnerable Children.,Third Party Payments,410037,Rendered by Other Local Authorities,07/05/2020,3736963-29702,"1,440.00",NOMS AGENCY.
Children and Young Peoples Services,Head of Early Help Inclusion & Vulnerable Children.,Third Party Payments,410037,Rendered by Other Local Authorities,07/05/2020,3736963-29703,"3,840.00",NOMS AGENCY.
Children and Young Peoples Services,Head of Education and Skills,Supplies and Services,384199,Miscellaneous Expenses,07/05/2020,3736964-0000053086,"10,560.00",NORTH EAST AUTISM SOCIETY.
Neighbourhoods and Climate Change,Environmental Services,Transport,210057,Repair and Maintenance of Vehicles,07/05/2020,3736965-21850133,579.70,NORTH EAST TRUCK & VAN LTD.
Adult and Health Services,Head of Adults,Third Party Payments,478151,Purchase of Care,07/05/2020,3736967-38650,705.60,OAKLEA TRUST.
Neighbourhoods and Climate Change,Environmental Services,Transport,215005,Running Costs of Vehicles,07/05/2020,3736968-594471,"7,925.94",OIL NRG LTD.
Neighbourhoods and Climate Change,Environmental Services,Transport,215005,Running Costs of Vehicles,07/05/2020,3736968-594473,698.00,OIL NRG LTD.
Neighbourhoods and Climate Change,Environmental Services,Transport,215022,Running Costs of Vehicles,07/05/2020,3736968-594466,"2,655.34",OIL NRG LTD.
Neighbourhoods and Climate Change,Environmental Services,Transport,215005,Running Costs of Vehicles,07/05/2020,3736968-594467,"7,218.21",OIL NRG LTD.
Neighbourhoods and Climate Change,Technical Services CM0300,Third Party Payments,430128,Rendered by Private Contractors,07/05/2020,3736976-10958,"3,182.00",PETER MONKHOUSE HAULAGE.
Children and Young Peoples Services,Head of Education and Skills,Transport,230010,Contract Hire,07/05/2020,3736978-34878,"2,267.50",PHOENIX TAXIS T/A PRATT`S TAXIS.
Adult and Health Services,Public Health CC0450,Third Party Payments,460803,Contract Payments,07/05/2020,3736981-17288/14,"5,462.93",PIONEERING CARE PARTNERSHIP.
"Regeneration, Economy and Growth",Transport and Contracted Services,Third Party Payments,430100,Rendered by Private Contractors,07/05/2020,3736988-132625,"1,101.23",PROTECTOR SECURITY GROUP LTD.
Children and Young Peoples Services,Head of Early Help Inclusion & Vulnerable Children.,Employees,080025,Agency Staff,07/05/2020,3736989-51510085,674.25,PROTOCOL EDUCATION LTD.
Children and Young Peoples Services,Head of Education and Skills,Supplies and Services,384199,Miscellaneous Expenses,07/05/2020,3736992-INV-0101,"15,125.00",RAW DIGITAL TRAINING LTD.
Adult and Health Services,Head of Adults,Third Party Payments,478151,Purchase of Care,07/05/2020,3736949-04,"2,322.60",REDACTED - PAYMENT TO INDIVIDUAL
Neighbourhoods and Climate Change,Environmental Services,Third Party Payments,430100,Rendered by Private Contractors,07/05/2020,3736996-738231,647.85,RICKERBY LTD.
Neighbourhoods and Climate Change,Environmental Services,Supplies and Services,304259,Equipment and Materials,07/05/2020,3736997-RSIN0335300,"1,649.80",RIGBY TAYLOR LTD.
Neighbourhoods and Climate Change,Environmental Services,Third Party Payments,430100,Rendered by Private Contractors,07/05/2020,3736999-17043,839.24,RMT ACCESS.
Children and Young Peoples Services,Head of Education and Skills,Transport,230007,Contract Hire,07/05/2020,3737000-1431,"3,384.26",ROBERTS TOURS.
Children and Young Peoples Services,Head of Education and Skills,Transport,230007,Contract Hire,07/05/2020,3737000-1432,"2,678.06",ROBERTS TOURS.
Children and Young Peoples Services,Head of Education and Skills,Transport,230007,Contract Hire,07/05/2020,3737000-1433,"3,209.36",ROBERTS TOURS.
Children and Young Peoples Services,Head of Education and Skills,Transport,230007,Contract Hire,07/05/2020,3737000-COVID19-EST-APRIL-CYPS-267-5038,"1,015.28",ROBERTS TOURS.
Children and Young Peoples Services,Head of Education and Skills,Transport,230007,Contract Hire,07/05/2020,3737000-COVID19-EST-APRIL-CYPS-277-5078,962.81,ROBERTS TOURS.
Children and Young Peoples Services,Head of Education and Skills,Transport,230007,Contract Hire,07/05/2020,3737000-COVID19-EST-APRIL-CYPS-280-5133,803.42,ROBERTS TOURS.
Children and Young Peoples Services,Head of Education and Skills,Transport,230007,Contract Hire,07/05/2020,3737000-COVID19-EST-MAY-CYPS-0260-5038,922.98,ROBERTS TOURS.
Children and Young Peoples Services,Head of Education and Skills,Transport,230007,Contract Hire,07/05/2020,3737000-COVID19-EST-MAY-CYPS-0270-5078,875.28,ROBERTS TOURS.
Children and Young Peoples Services,Head of Education and Skills,Transport,230007,Contract Hire,07/05/2020,3737000-COVID19-EST-MAY-CYPS-0273-5133,730.38,ROBERTS TOURS.
"Regeneration, Economy and Growth",Corporate Property and Land,Fees,901002,Professional Fees,07/05/2020,3737001-TEC545874,"2,778.00",RPS CONSULTING SERVICES LTD.
Neighbourhoods and Climate Change,Environmental Services,Transport,210057,Repair and Maintenance of Vehicles,07/05/2020,3737008-2020.1000008323,660.31,SCARAB SWEEPERS LTD.
Resources BK0010,Digital and Customer Services,Vehicles Equipment Furniture and Fittings,912701,Computer equipment,07/05/2020,3737020-INV02575085,"150,000.00",SOFTCAT LTD.
Neighbourhoods and Climate Change,Technical Services CM0300,Stock A926,926900,Stock in hand-Inventory system,07/05/2020,3737021-SI200003143,"2,872.70",SOLON SECURITY LTD.
"Regeneration, Economy and Growth",Culture Sport and Tourism,Supplies and Services,384199,Miscellaneous Expenses,07/05/2020,3737022-INVS010180,534.39,SPEKTRIX LTD.
Children and Young Peoples Services,Head of Education and Skills,Supplies and Services,384199,Miscellaneous Expenses,07/05/2020,3737024-DW0059/1,750.12,STAIRRODS (UK) LTD.
"Regeneration, Economy and Growth",Corporate Property and Land,Supplies and Services,384159,Miscellaneous Expenses,07/05/2020,3737028-15777,"2,172.60",STEADFAST SECURITY SOLUTIONS LTD.
"Regeneration, Economy and Growth",Corporate Property and Land,Third Party Payments,430100,Rendered by Private Contractors,07/05/2020,3737028-15774,"9,269.76",STEADFAST SECURITY SOLUTIONS LTD.
Children and Young Peoples Services,Head of Education and Skills,Transport,230007,Contract Hire,07/05/2020,3737030-148,880.00,STEPHEN BALL T/A ABBIE`S TAXIS..
Children and Young Peoples Services,Head of Education and Skills,Transport,230007,Contract Hire,07/05/2020,3737030-146,660.00,STEPHEN BALL T/A ABBIE`S TAXIS..
Children and Young Peoples Services,Head of Education and Skills,Transport,230008,Contract Hire,07/05/2020,3737030-149,"1,100.00",STEPHEN BALL T/A ABBIE`S TAXIS..
Children and Young Peoples Services,Head of Education and Skills,Transport,230008,Contract Hire,07/05/2020,3737030-150,"1,540.00",STEPHEN BALL T/A ABBIE`S TAXIS..
Children and Young Peoples Services,Head of Education and Skills,Transport,230016,Contract Hire,07/05/2020,3737030-147,770.00,STEPHEN BALL T/A ABBIE`S TAXIS..
Children and Young Peoples Services,Head of Education and Skills,Transport,230008,Contract Hire,07/05/2020,3737030-145,"6,050.00",STEPHEN BALL T/A ABBIE`S TAXIS..
Children and Young Peoples Services,Head of Education and Skills,Transport,230008,Contract Hire,07/05/2020,3737030-COVID19-EST-APRIL-CYPS-561-A010,"1,815.00",STEPHEN BALL T/A ABBIE`S TAXIS..
Children and Young Peoples Services,Head of Education and Skills,Transport,230008,Contract Hire,07/05/2020,3737030-COVID19-EST-MAY-CYPS-0508-A010,"1,650.00",STEPHEN BALL T/A ABBIE`S TAXIS..
Adult and Health Services,Commissioning inc Supporting People,Transport,240045,Car allowances E240,07/05/2020,3737036-COVID19-EST-APRIL-AWH-1445-VOL001,"4,572.49",SUPPORTIVE SRC LTD.
Adult and Health Services,Commissioning inc Supporting People,Transport,240045,Car allowances E240,07/05/2020,3737036-COVID19-EST-MARCH-AWH-134-VOL001,"3,031.03",SUPPORTIVE SRC LTD.
Adult and Health Services,Commissioning inc Supporting People,Transport,240045,Car allowances E240,07/05/2020,3737036-COVID19-EST-MAY-AWH-1267-VOL001,"3,048.33",SUPPORTIVE SRC LTD.
Adult and Health Services,Commissioning inc Supporting People,Supplies and Services,342033,Computers and Communications,07/05/2020,3737038-133122,"2,883.00",SWITCHSHOP LTD.
Children and Young Peoples Services,Head of Education and Skills,Transport,230007,Contract Hire,07/05/2020,3737045-COVID19-EST-APRIL-CYPS-202-4055,"1,188.00",TED WILFORD COACHES.
Children and Young Peoples Services,Head of Education and Skills,Transport,230007,Contract Hire,07/05/2020,3737045-COVID19-EST-MAY-CYPS-0195-4055,"1,080.00",TED WILFORD COACHES.
Children and Young Peoples Services,Head of Education and Skills,Transport,230007,Contract Hire,07/05/2020,3737045-COVID19-EST-MAY-CYPS-0214-4297,"1,080.00",TED WILFORD COACHES.
Children and Young Peoples Services,Head of Education and Skills,Transport,230007,Contract Hire,07/05/2020,3737046-4055/B35MARCH,"3,960.00",TED WILFORD COACHES.
Children and Young Peoples Services,Head of Education and Skills,Transport,230007,Contract Hire,07/05/2020,3737046-4297B07,"3,960.00",TED WILFORD COACHES.
Children and Young Peoples Services,Head of Education and Skills,Transport,230007,Contract Hire,07/05/2020,3737046-COVID19-EST-APRIL-CYPS-221-4297,"1,188.00",TED WILFORD COACHES.
Children and Young Peoples Services,Head of Education and Skills,Transport,230003,Contract Hire,07/05/2020,3737045-COVID19-EST-APRIL-CYPS-262-5030,871.46,TED WILFORD COACHES.
Children and Young Peoples Services,Head of Education and Skills,Transport,230003,Contract Hire,07/05/2020,3737045-COVID19-EST-MAY-CYPS-0255-5030,792.24,TED WILFORD COACHES.
Children and Young Peoples Services,Head of Education and Skills,Transport,230003,Contract Hire,07/05/2020,3737046-5030/STB34,"2,904.88",TED WILFORD COACHES.
Neighbourhoods and Climate Change,Technical Services CM0300,Stock A926,926900,Stock in hand-Inventory system,07/05/2020,3737052-NSIN00035076,982.68,THOMAS OWEN & SONS (NEWCASTLE) LTD.
Neighbourhoods and Climate Change,Technical Services CM0300,Stock A926,926900,Stock in hand-Inventory system,07/05/2020,3737052-NSIN00035077,568.92,THOMAS OWEN & SONS (NEWCASTLE) LTD.
Neighbourhoods and Climate Change,Technical Services CM0300,Stock A926,926900,Stock in hand-Inventory system,07/05/2020,3737052-NSIN00035078,"2,460.00",THOMAS OWEN & SONS (NEWCASTLE) LTD.
Neighbourhoods and Climate Change,Environmental Services,Transport,230005,Contract Hire,07/05/2020,3737055-21193,975.00,TRASH UK LTD.
Neighbourhoods and Climate Change,Environmental Services,Transport,230005,Contract Hire,07/05/2020,3737055-21213,975.00,TRASH UK LTD.
Neighbourhoods and Climate Change,Environmental Services,Transport,230005,Contract Hire,07/05/2020,3737055-21230,975.00,TRASH UK LTD.
Children and Young Peoples Services,Head of Education and Skills,Transport,230016,Contract Hire,07/05/2020,3737073-149,"1,819.84",WHITTONSTALL TAXIS SERVICE.
Children and Young Peoples Services,Head of Education and Skills,Transport,230008,Contract Hire,07/05/2020,3737073-COVID19-EST-APRIL-CYPS-1218-W001,512.86,WHITTONSTALL TAXIS SERVICE.
Neighbourhoods and Climate Change,Technical Services CM0300,Stock A926,926900,Stock in hand-Inventory system,07/05/2020,3737075-67761339,"1,512.57",WOLSELEY UK LTD.
Resources BK0010,Digital and Customer Services,Vehicles Equipment Furniture and Fittings,912701,Computer equipment,07/05/2020,3737077-KW31847,"1,244.77",XMA LTD.
Children and Young Peoples Services,Head of Education and Skills,Transport,230034,Contract Hire,11/05/2020,3737082-835,"1,625.00",AC TAXIS.
Neighbourhoods and Climate Change,Technical Services CM0300,Supplies and Services,338044,Services,11/05/2020,3737083-28424555,"4,176.00",AECOM LTD.
Neighbourhoods and Climate Change,Technical Services CM0300,Supplies and Services,338044,Services,11/05/2020,3737083-28424556,"1,476.00",AECOM LTD.
Neighbourhoods and Climate Change,Environmental Services,Supplies and Services,304221,Equipment and Materials,11/05/2020,3737084-CD970897203,"3,285.60",AGROVISTA UK LTD FORMERLY SHERRIFF AMENITY.
Neighbourhoods and Climate Change,Environmental Services,Supplies and Services,304221,Equipment and Materials,11/05/2020,3737084-CD970898261,"2,936.64",AGROVISTA UK LTD FORMERLY SHERRIFF AMENITY.
Children and Young Peoples Services,Head of Education and Skills,Transport,230034,Contract Hire,11/05/2020,3737087-COVID19-EST-APRIL-CYPS-033-1244,610.57,ANGIE`S TAXIS.
Children and Young Peoples Services,Head of Education and Skills,Transport,230034,Contract Hire,11/05/2020,3737088-1244-MARCH,"1,850.20",ANGIE`S TAXIS.
Children and Young Peoples Services,Head of Education and Skills,Transport,230034,Contract Hire,11/05/2020,3737088-COVID19-EST-MAY-CYPS-0032-1244,555.06,ANGIE`S TAXIS.
Neighbourhoods and Climate Change,Partnerships & Community Engagement Div.,Supplies and Services,384999,Miscellaneous Expenses,11/05/2020,3737099-BFSZAHERALDALATI29032020,"1,820.00",BASHAR FUNERAL SERVICES LTD.
Neighbourhoods and Climate Change,Environmental Services,Transport,210057,Repair and Maintenance of Vehicles,11/05/2020,3737102-35181552,564.92,BELL TRUCK SALES LTD T/A BELL TRUCK & VAN.
Children and Young Peoples Services,Head of Education and Skills,Third Party Payments,440999,Other third party payments E440,11/05/2020,3737106-SLINV/00000696,"8,704.75",BISHOP AUCKLAND COLLEGE.
Adult and Health Services,Commissioning inc Supporting People,Third Party Payments,479111,Purchase of Care,11/05/2020,3737113-4440,"3,996.91",CARERS FEDERATION LTD.
Neighbourhoods and Climate Change,Environmental Services,Third Party Payments,430100,Rendered by Private Contractors,11/05/2020,3737118-I3310D142,528.20,CHARLES PUGH (WINDSCREENS) LTD T/A NATIONAL WINDSCREENS TEESSIDE/TYNESIDE.
Children and Young Peoples Services,Head of Education and Skills,Transport,230008,Contract Hire,11/05/2020,3737121-CW7MARCH,"1,890.24",CHIPPERS TAXIS.
Children and Young Peoples Services,Head of Education and Skills,Transport,230006,Contract Hire,11/05/2020,3737122-F797-7,"1,120.00",CHRIS BELL T/A MEGAN`S TAXIS.
Adult and Health Services,Commissioning inc Supporting People,Third Party Payments,479101,Purchase of Care,11/05/2020,3737123-33065,"30,050.00",CHS HEALTHCARE.
"Regeneration, Economy and Growth",Culture Sport and Tourism,Third Party Payments,430100,Rendered by Private Contractors,11/05/2020,3737128-PSINV04641,602.11,COMPETITION LINE UK LTD T/A LIFESTYLE FITNESS.
Neighbourhoods and Climate Change,Environmental Services,Supplies and Services,304221,Equipment and Materials,11/05/2020,3737135-122552,"4,785.00",DAVID DIXON GARDEN MACHINERY CENTRE.
Resources BK0010,Legal & Democratic Services,Supplies and Services,338042,Services,11/05/2020,3737141-357318/INVSPA330,550.00,DERE STREET BARRISTERS.
Children and Young Peoples Services,Head of Education and Skills,Transport,230006,Contract Hire,11/05/2020,3737143-20-03,"2,546.49",DMG PRIVATE HIRE.
Children and Young Peoples Services,Head of Education and Skills,Transport,230006,Contract Hire,11/05/2020,3737143-COVID19-EST-APRIL-CYPS-890-F776,813.98,DMG PRIVATE HIRE.
Children and Young Peoples Services,Head of Education and Skills,Transport,230006,Contract Hire,11/05/2020,3737143-COVID19-EST-MAY-CYPS-0831-F776,702.98,DMG PRIVATE HIRE.
"Regeneration, Economy and Growth",Corporate Property and Land,Supplies and Services,304221,Equipment and Materials,11/05/2020,3737156-059-263073,"1,179.87",EDMUNDSON ELECTRICAL LTD.
Adult and Health Services,Head of Adults,Third Party Payments,478151,Purchase of Care,11/05/2020,3737162-ALDVOIDPER12020,"2,482.28",EMBRACING CARE.
Adult and Health Services,Head of Adults,Third Party Payments,478151,Purchase of Care,11/05/2020,3737162-LDCONTPERIOD1,"3,726.80",EMBRACING CARE.
Adult and Health Services,Head of Adults,Third Party Payments,478151,Purchase of Care,11/05/2020,3737162-STAGVOIDPERIOD12020,"2,072.92",EMBRACING CARE.
Adult and Health Services,Head of Adults,Third Party Payments,478151,Purchase of Care,11/05/2020,3737163-KWVOIDS/PERIOD1/2020,"2,219.88",EMBRACING CARE.
Neighbourhoods and Climate Change,Environmental Services,Supplies and Services,384956,Miscellaneous Expenses,11/05/2020,3737167-Y00005470T,"5,504.30",ENVIRONMENT AGENCY.
"Regeneration, Economy and Growth",Development and Housing,Third Party Payments,430100,Rendered by Private Contractors,11/05/2020,3737168-2175,"4,275.00",ERS RESEARCH & CONSULTANCY.
Neighbourhoods and Climate Change,Technical Services CM0300,Stock A926,926900,Stock in hand-Inventory system,11/05/2020,3737173-132682,"12,556.50",FABRIKAT (NOTTINGHAM) LTD.
Neighbourhoods and Climate Change,Environmental Services,Third Party Payments,430120,Rendered by Private Contractors,11/05/2020,3737176-CTIN06604441,"5,680.89",FINNING (UK) LTD.
Neighbourhoods and Climate Change,Environmental Services,Third Party Payments,430120,Rendered by Private Contractors,11/05/2020,3737176-CTIN06604562,"5,425.58",FINNING (UK) LTD.
Children and Young Peoples Services,Head of Education and Skills,Transport,230003,Contract Hire,11/05/2020,3737182-5584,"3,808.20",GEM TRAVEL.
Children and Young Peoples Services,Head of Education and Skills,Transport,230003,Contract Hire,11/05/2020,3737182-5585,"3,973.20",GEM TRAVEL.
Children and Young Peoples Services,Head of Education and Skills,Transport,230003,Contract Hire,11/05/2020,3737182-COVID19-EST-APRIL-CYPS-191-4022,"1,142.46",GEM TRAVEL.
Children and Young Peoples Services,Head of Education and Skills,Transport,230003,Contract Hire,11/05/2020,3737182-COVID19-EST-APRIL-CYPS-194-4030,"1,191.96",GEM TRAVEL.
Children and Young Peoples Services,Head of Education and Skills,Transport,230003,Contract Hire,11/05/2020,3737182-COVID19-EST-MAY-CYPS-0185-4022,"1,038.60",GEM TRAVEL.
Children and Young Peoples Services,Head of Education and Skills,Transport,230003,Contract Hire,11/05/2020,3737182-COVID19-EST-MAY-CYPS-0187-4030,"1,083.60",GEM TRAVEL.
"Regeneration, Economy and Growth",Development and Housing,Supplies and Services,338066,Services,11/05/2020,3737184-GEN1100D,"11,000.00",GENECON  LTD.
Children and Young Peoples Services,Head of Education and Skills,Transport,230034,Contract Hire,11/05/2020,3737189-COVID19-EST-APRIL-CYPS-053-2072,580.80,GORDON`S TAXIS.
Children and Young Peoples Services,Head of Education and Skills,Transport,230034,Contract Hire,11/05/2020,3737189-COVID19-EST-MAY-CYPS-0052-2072,528.00,GORDON`S TAXIS.
Children and Young Peoples Services,Head of Education and Skills,Transport,230034,Contract Hire,11/05/2020,3737189-GT013-2072,"1,936.00",GORDON`S TAXIS.
Children and Young Peoples Services,Head of Education and Skills,Transport,230006,Contract Hire,11/05/2020,3737189-GT014-F778,500.00,GORDON`S TAXIS.
Children and Young Peoples Services,Head of Education and Skills,Transport,230007,Contract Hire,11/05/2020,3737195-71,"1,951.40",HAMLET TAXIS.
Children and Young Peoples Services,Head of Education and Skills,Transport,230007,Contract Hire,11/05/2020,3737195-COVID19-EST-APRIL-CYPS-324-5272,585.42,HAMLET TAXIS.
Children and Young Peoples Services,Head of Education and Skills,Transport,230007,Contract Hire,11/05/2020,3737195-COVID19-EST-MAY-CYPS-0316-5272,532.20,HAMLET TAXIS.
Children and Young Peoples Services,Head of Education and Skills,Transport,230006,Contract Hire,11/05/2020,3737195-69,"1,040.00",HAMLET TAXIS.
Children and Young Peoples Services,Head of Education and Skills,Transport,230006,Contract Hire,11/05/2020,3737195-70,630.00,HAMLET TAXIS.
Adult and Health Services,Head of Adults,Third Party Payments,478101,Purchase of Care,11/05/2020,3737201-2712,985.00,HENDERSON ENVIRONMENTAL SERVICES LTD.
Dedicated Schools Grant BG0015,DSG High Needs Block,Third Party Payments,440080,Other third party payments E440,11/05/2020,3737204-CAS-05-2020-079,"2,631.00",HOPE WOOD ACADEMY.
Children and Young Peoples Services,Head of Childrens Social Care,Third Party Payments,425023,Rendered by Voluntary Organisations,11/05/2020,3737207-5442,"3,602.50",HOWARD HOUSE CARE LTD.
Resources BK0010,Digital and Customer Services,Stock A926,926900,Stock in hand-Inventory system,11/05/2020,3737211-4833530,770.20,INSIGHT DIRECT (UK) LTD.
Children and Young Peoples Services,Head of Education and Skills,Supplies and Services,375001,Private Finance Initiative,11/05/2020,3737212-ISD0316,"9,897.86",INSPIREDSPACES DURHAM (PROJECTCO1) LTD.
Children and Young Peoples Services,Head of Education and Skills,Transport,230008,Contract Hire,11/05/2020,3737216-0754,"1,870.00",JACKSON`S TAXI.
Neighbourhoods and Climate Change,Environmental Services,Third Party Payments,430100,Rendered by Private Contractors,11/05/2020,3737221-126487,"3,204.94",JG PAXTON & SONS LTD.
Children and Young Peoples Services,Head of Education and Skills,Transport,230007,Contract Hire,11/05/2020,3737225-197/2,"1,017.72",JOHN ROBSON T/A ACE TAXIS.
Neighbourhoods and Climate Change,Environmental Services,Third Party Payments,430100,Rendered by Private Contractors,11/05/2020,3737227-65328434,"3,807.65",JOHNSTON SWEEPERS LTD.
Children and Young Peoples Services,Head of Education and Skills,Transport,230007,Contract Hire,11/05/2020,3737232-010320,"1,970.32",KEVIN EDMUNDSON.
Children and Young Peoples Services,Head of Education and Skills,Transport,230007,Contract Hire,11/05/2020,3737232-COVID19-EST-APRIL-CYPS-170-3419,591.10,KEVIN EDMUNDSON.
Children and Young Peoples Services,Head of Education and Skills,Transport,230007,Contract Hire,11/05/2020,3737232-COVID19-EST-MAY-CYPS-0167-3419,501.54,KEVIN EDMUNDSON.
"Regeneration, Economy and Growth",Transport and Contracted Services,Supplies and Services,372009,Subscriptions E372,11/05/2020,3737239-2010,545.00,LGA PUBLIC TRANSPORT CONSORTIUM.
Children and Young Peoples Services,Head of Education and Skills,Transport,230035,Contract Hire,11/05/2020,3737244-176,"1,320.00",M BUTCHER T/A M & M`S TAXIS.
Children and Young Peoples Services,Head of Education and Skills,Transport,230007,Contract Hire,11/05/2020,3737244-177,900.00,M BUTCHER T/A M & M`S TAXIS.
Children and Young Peoples Services,Head of Education and Skills,Transport,230008,Contract Hire,11/05/2020,3737244-179,"1,872.00",M BUTCHER T/A M & M`S TAXIS.
Children and Young Peoples Services,Head of Education and Skills,Transport,230008,Contract Hire,11/05/2020,3737244-COVID19-EST-APRIL-CYPS-1004-M055,514.80,M BUTCHER T/A M & M`S TAXIS.
Children and Young Peoples Services,Head of Education and Skills,Transport,230008,Contract Hire,11/05/2020,3737244-178,"1,364.00",M BUTCHER T/A M & M`S TAXIS.
Children and Young Peoples Services,Head of Education and Skills,Transport,230016,Contract Hire,11/05/2020,3737244-180,880.00,M BUTCHER T/A M & M`S TAXIS.
Children and Young Peoples Services,Head of Education and Skills,Transport,230008,Contract Hire,11/05/2020,3737247-61,"1,867.14",MALCOLM CARR T/A CARLY CABS.
Children and Young Peoples Services,Head of Education and Skills,Transport,230008,Contract Hire,11/05/2020,3737247-COVID19-EST-APRIL-CYPS-570-A020,560.14,MALCOLM CARR T/A CARLY CABS.
Children and Young Peoples Services,Head of Education and Skills,Transport,230008,Contract Hire,11/05/2020,3737247-COVID19-EST-MAY-CYPS-0517-A020,509.22,MALCOLM CARR T/A CARLY CABS.
Children and Young Peoples Services,Head of Education and Skills,Transport,230012,Contract Hire,11/05/2020,3737249-0036/2,"1,581.00",MARK WATSON T/A MARK`S TAXIS.
Children and Young Peoples Services,Head of Education and Skills,Transport,230012,Contract Hire,11/05/2020,3737249-COVID19-EST-APRIL-CYPS-1290-W088,613.80,MARK WATSON T/A MARK`S TAXIS.
Children and Young Peoples Services,Head of Education and Skills,Transport,230012,Contract Hire,11/05/2020,3737249-COVID19-EST-MAY-CYPS-1230-W088,558.00,MARK WATSON T/A MARK`S TAXIS.
Children and Young Peoples Services,Head of Education and Skills,Transport,230008,Contract Hire,11/05/2020,3737249-0037,"1,540.00",MARK WATSON T/A MARK`S TAXIS.
Neighbourhoods and Climate Change,Technical Services CM0300,Supplies and Services,304358,Equipment and Materials,11/05/2020,3737255-7001621118,"1,032.88",MOBILE MINI UK LTD.
Neighbourhoods and Climate Change,Technical Services CM0300,Premises,150015,Apportioned Exps of Operational Blds,11/05/2020,3737255-7001621123,745.29,MOBILE MINI UK LTD.
Neighbourhoods and Climate Change,Technical Services CM0300,Premises,150015,Apportioned Exps of Operational Blds,11/05/2020,3737255-7001621126,831.44,MOBILE MINI UK LTD.
Children and Young Peoples Services,Head of Education and Skills,Transport,230007,Contract Hire,11/05/2020,3737256-7-MARCH20,"1,678.00",MR BW YOUNG T/A ESH TAXIS.
Children and Young Peoples Services,Head of Education and Skills,Transport,230034,Contract Hire,11/05/2020,3737258-KDK-MAR,975.00,MR IAN KELSEY T/A KDK TAXIS.
Children and Young Peoples Services,Head of Education and Skills,Transport,230035,Contract Hire,11/05/2020,3737258-KDK-MAR20,756.16,MR IAN KELSEY T/A KDK TAXIS.
Children and Young Peoples Services,Head of Education and Skills,Transport,230034,Contract Hire,11/05/2020,3737261-19/2020,"1,239.03",MR MARIUSZ LASOTA T/A BM TAXI.
Children and Young Peoples Services,Head of Education and Skills,Transport,230034,Contract Hire,11/05/2020,3737261-31/2020,"2,165.01",MR MARIUSZ LASOTA T/A BM TAXI.
Children and Young Peoples Services,Head of Education and Skills,Transport,230034,Contract Hire,11/05/2020,3737260-COVID19-EST-APRIL-CYPS-312-5254,627.64,MR MARIUSZ LASOTA T/A BM TAXI.
Children and Young Peoples Services,Head of Education and Skills,Transport,230034,Contract Hire,11/05/2020,3737260-COVID19-EST-MAY-CYPS-0304-5254,587.52,MR MARIUSZ LASOTA T/A BM TAXI.
Children and Young Peoples Services,Head of Education and Skills,Transport,230035,Contract Hire,11/05/2020,3737260-32/2020,"1,141.00",MR MARIUSZ LASOTA T/A BM TAXI.
Children and Young Peoples Services,Head of Education and Skills,Transport,230008,Contract Hire,11/05/2020,3737264-3123,"4,716.58",MR S BOWERS T/A DH7 TAXIS.
Children and Young Peoples Services,Head of Education and Skills,Transport,230008,Contract Hire,11/05/2020,3737264-COVID19-EST-APRIL-CYPS-1306-W161,"1,329.22",MR S BOWERS T/A DH7 TAXIS.
Children and Young Peoples Services,Head of Education and Skills,Transport,230008,Contract Hire,11/05/2020,3737264-COVID19-EST-MAY-CYPS-1246-W161,"1,286.34",MR S BOWERS T/A DH7 TAXIS.
Children and Young Peoples Services,Head of Education and Skills,Transport,230008,Contract Hire,11/05/2020,3737264-3122,"2,750.00",MR S BOWERS T/A DH7 TAXIS.
Children and Young Peoples Services,Head of Education and Skills,Transport,230008,Contract Hire,11/05/2020,3737264-COVID19-EST-APRIL-CYPS-997-M046,825.00,MR S BOWERS T/A DH7 TAXIS.
Children and Young Peoples Services,Head of Education and Skills,Transport,230008,Contract Hire,11/05/2020,3737264-COVID19-EST-MAY-CYPS-0938-M046,750.00,MR S BOWERS T/A DH7 TAXIS.
Children and Young Peoples Services,Head of Education and Skills,Transport,230008,Contract Hire,11/05/2020,3737264-3121,"1,818.52",MR S BOWERS T/A DH7 TAXIS.
Children and Young Peoples Services,Head of Education and Skills,Transport,230008,Contract Hire,11/05/2020,3737264-COVID19-EST-APRIL-CYPS-959-M005,545.56,MR S BOWERS T/A DH7 TAXIS.
Children and Young Peoples Services,Head of Education and Skills,Transport,230007,Contract Hire,11/05/2020,3737266-ESH0320,"1,078.00",MR STUART SCOTT T/A AIRPORT CARS DURHAM
Children and Young Peoples Services,Head of Education and Skills,Transport,230012,Contract Hire,11/05/2020,3737267-TNB007,988.24,MR THOMAS G GRIFFITHS T/A TNL TAXIS.
Neighbourhoods and Climate Change,Technical Services CM0300,Third Party Payments,430100,Rendered by Private Contractors,11/05/2020,3737287-DI20336115,904.28,NORTHERN POWERGRID (NORTHEAST) LTD.
Neighbourhoods and Climate Change,Technical Services CM0300,Third Party Payments,430100,Rendered by Private Contractors,11/05/2020,3737287-DI20339509,551.36,NORTHERN POWERGRID (NORTHEAST) LTD.
Neighbourhoods and Climate Change,Technical Services CM0300,Third Party Payments,430100,Rendered by Private Contractors,11/05/2020,3737287-DI20339807,513.38,NORTHERN POWERGRID (NORTHEAST) LTD.
Neighbourhoods and Climate Change,Technical Services CM0300,Third Party Payments,430100,Rendered by Private Contractors,11/05/2020,3737287-DI20339808,705.84,NORTHERN POWERGRID (NORTHEAST) LTD.
Adult and Health Services,Head of Adults,Third Party Payments,478151,Purchase of Care,11/05/2020,3737290-38651,705.60,OAKLEA TRUST.
Children and Young Peoples Services,Head of Childrens Social Care,Supplies and Services,338060,Services,11/05/2020,3737292-SINCC3F50121,"3,216.00",OFSTED.
Children and Young Peoples Services,Head of Childrens Social Care,Supplies and Services,338060,Services,11/05/2020,3737292-SINCC3F50222,"2,059.00",OFSTED.
Neighbourhoods and Climate Change,Technical Services CM0300,Supplies and Services,342051,Computers and Communications,11/05/2020,3737293-19963794,614.32,OPTI-CAL SURVEY EQUIPMENT.
Children and Young Peoples Services,Head of Education and Skills,Supplies and Services,384199,Miscellaneous Expenses,11/05/2020,3737294-INV-0580,"1,980.00",OPTIMUM SKILLS LTD.
Neighbourhoods and Climate Change,Technical Services CM0300,Stock A926,926900,Stock in hand-Inventory system,11/05/2020,3737300-XL254711,978.50,PARK ELECTRICAL DISTRIBUTORS LTD.
Children and Young Peoples Services,Head of Education and Skills,Transport,230012,Contract Hire,11/05/2020,3737303-S03010,900.00,PB PRIVATE HIRE.
Children and Young Peoples Services,Head of Education and Skills,Transport,230008,Contract Hire,11/05/2020,3737303-N074MAR,"1,807.80",PB PRIVATE HIRE.
Children and Young Peoples Services,Head of Education and Skills,Transport,230008,Contract Hire,11/05/2020,3737304-COVID19-EST-APRIL-CYPS-1096-N074,596.57,PB PRIVATE HIRE.
Children and Young Peoples Services,Head of Education and Skills,Transport,230008,Contract Hire,11/05/2020,3737304-COVID19-EST-MAY-CYPS-1037-N074,542.34,PB PRIVATE HIRE.
Children and Young Peoples Services,Head of Education and Skills,Transport,230008,Contract Hire,11/05/2020,3737303-M01210,"1,600.00",PB PRIVATE HIRE.
Adult and Health Services,Public Health CC0450,Third Party Payments,460803,Contract Payments,11/05/2020,3737311-17290/14,"7,326.42",PIONEERING CARE PARTNERSHIP.
Children and Young Peoples Services,Head of Education and Skills,Transport,230012,Contract Hire,11/05/2020,3737314-1343,"1,562.00",PODA TAXIS LTD.
Children and Young Peoples Services,Head of Education and Skills,Transport,230008,Contract Hire,11/05/2020,3737314-1344,"3,133.02",PODA TAXIS LTD.
Children and Young Peoples Services,Head of Education and Skills,Transport,230008,Contract Hire,11/05/2020,3737314-1345,"1,400.30",PODA TAXIS LTD.
Children and Young Peoples Services,Head of Education and Skills,Transport,230008,Contract Hire,11/05/2020,3737314-COVID19-EST-APRIL-CYPS-788-E039,939.91,PODA TAXIS LTD.
Children and Young Peoples Services,Head of Education and Skills,Transport,230008,Contract Hire,11/05/2020,3737314-COVID19-EST-MAY-CYPS-0729-E039,854.46,PODA TAXIS LTD.
Neighbourhoods and Climate Change,Technical Services CM0300,Third Party Payments,430100,Rendered by Private Contractors,11/05/2020,3737319-12483,"1,273.74",QUANTUM POWER CONNECTIONS LTD.
Children and Young Peoples Services,Head of Childrens Social Care,Third Party Payments,440038,Other third party payments E440,11/05/2020,3737326-5306,"1,492.15",ROC FAMILY SUPPORT LTD.
Children and Young Peoples Services,Head of Childrens Social Care,Third Party Payments,425021,Rendered by Voluntary Organisations,11/05/2020,3737326-5319,656.26,ROC FAMILY SUPPORT LTD.
Children and Young Peoples Services,Head of Childrens Social Care,Third Party Payments,425021,Rendered by Voluntary Organisations,11/05/2020,3737326-5320,"1,672.00",ROC FAMILY SUPPORT LTD.
Children and Young Peoples Services,Head of Childrens Social Care,Third Party Payments,440038,Other third party payments E440,11/05/2020,3737326-5245,705.00,ROC FAMILY SUPPORT LTD.
Neighbourhoods and Climate Change,Environmental Services,Supplies and Services,304221,Equipment and Materials,11/05/2020,3737327-232524,"1,348.00",ROPES SERVICES UK.
Resources BK0010,Finance & Transactional Services,Supplies and Services,340001,Postages E340,11/05/2020,3737328-9060767013,"9,121.31",ROYAL MAIL GROUP PLC.
"Regeneration, Economy and Growth",Corporate Property and Land,Supplies and Services,338078,Services,11/05/2020,3737332-11843,"1,000.00",SAFEGUARD SECURITY (NE) LTD.
Neighbourhoods and Climate Change,Environmental Services,Transport,210057,Repair and Maintenance of Vehicles,11/05/2020,3737333-2020.1000008405,"1,025.65",SCARAB SWEEPERS LTD.
Adult and Health Services,Commissioning inc Supporting People,Third Party Payments,479111,Purchase of Care,11/05/2020,3737357-MSSI1812,"8,522.50",STROKE ASSOCIATION.
Children and Young Peoples Services,Head of Education and Skills,Transport,230010,Contract Hire,11/05/2020,3737372-BL026MARCH,"2,230.14",THOMAS GLEN.
Children and Young Peoples Services,Head of Education and Skills,Transport,230010,Contract Hire,11/05/2020,3737372-COVID19-EST-MAY-CYPS-0620-BL026,610.91,THOMAS GLEN.
Children and Young Peoples Services,Head of Education and Skills,Transport,230010,Contract Hire,11/05/2020,3737373-COVID19-EST-APRIL-CYPS-677-BL026,669.49,THOMAS GLEN.
"Regeneration, Economy and Growth",Transport and Contracted Services,Supplies and Services,304259,Equipment and Materials,11/05/2020,3737379-3IN/10355222,"1,990.00",TUNSTALL HEALTHCARE (UK) LTD.
"Regeneration, Economy and Growth",Transport and Contracted Services,Supplies and Services,304259,Equipment and Materials,11/05/2020,3737379-3IN/10355483,"5,572.00",TUNSTALL HEALTHCARE (UK) LTD.
"Regeneration, Economy and Growth",Culture Sport and Tourism,Supplies and Services,304259,Equipment and Materials,11/05/2020,3737381-US2935,560.00,ULTIMATE SUPPLIES (NORTH) LTD.
Children and Young Peoples Services,Head of Childrens Social Care,Third Party Payments,440046,Other third party payments E440,11/05/2020,3737393-INV-0356/2020,614.88,WE CARE RECRUITMENT SOLUTIONS LTD.
Children and Young Peoples Services,Head of Childrens Social Care,Third Party Payments,440046,Other third party payments E440,11/05/2020,3737393-INV-0357/2020,"5,120.00",WE CARE RECRUITMENT SOLUTIONS LTD.
Children and Young Peoples Services,Head of Childrens Social Care,Third Party Payments,440046,Other third party payments E440,11/05/2020,3737393-INV-0360/2020,"4,152.88",WE CARE RECRUITMENT SOLUTIONS LTD.
Children and Young Peoples Services,Head of Childrens Social Care,Third Party Payments,440046,Other third party payments E440,11/05/2020,3737393-INV-0362/2020,"2,914.56",WE CARE RECRUITMENT SOLUTIONS LTD.
Children and Young Peoples Services,Head of Childrens Social Care,Third Party Payments,440046,Other third party payments E440,11/05/2020,3737393-INV-0365,"1,472.20",WE CARE RECRUITMENT SOLUTIONS LTD.
Children and Young Peoples Services,Head of Childrens Social Care,Third Party Payments,440046,Other third party payments E440,11/05/2020,3737393-INV-0367,673.44,WE CARE RECRUITMENT SOLUTIONS LTD.
Children and Young Peoples Services,Head of Childrens Social Care,Third Party Payments,440046,Other third party payments E440,11/05/2020,3737393-INV-0389/2020,683.20,WE CARE RECRUITMENT SOLUTIONS LTD.
Children and Young Peoples Services,Head of Childrens Social Care,Third Party Payments,440046,Other third party payments E440,11/05/2020,3737393-INV-0390/2020,"6,305.84",WE CARE RECRUITMENT SOLUTIONS LTD.
Children and Young Peoples Services,Head of Childrens Social Care,Third Party Payments,440046,Other third party payments E440,11/05/2020,3737393-INV-0393/2020,"2,474.16",WE CARE RECRUITMENT SOLUTIONS LTD.
Children and Young Peoples Services,Head of Childrens Social Care,Third Party Payments,440046,Other third party payments E440,11/05/2020,3737393-INV-0395/2020,897.92,WE CARE RECRUITMENT SOLUTIONS LTD.
Children and Young Peoples Services,Head of Childrens Social Care,Third Party Payments,440046,Other third party payments E440,11/05/2020,3737393-INV-0396/2020,"4,601.20",WE CARE RECRUITMENT SOLUTIONS LTD.
"Regeneration, Economy and Growth",Business Durham CL0850,Supplies and Services,372009,Subscriptions E372,11/05/2020,3737395-UOTR4641901,"1,606.28",WESTERN UNION BUSINESS SOLUTIONS.
Children and Young Peoples Services,Head of Early Help Inclusion & Vulnerable Children.,Supplies and Services,342051,Computers and Communications,11/05/2020,3737395-UOTR4641902,"1,969.93",WESTERN UNION BUSINESS SOLUTIONS.
Children and Young Peoples Services,Head of Education and Skills,Transport,230008,Contract Hire,11/05/2020,3737398-COVID19-EST-APRIL-CYPS-637-A163,"1,188.00",WISS TAXIS.
Children and Young Peoples Services,Head of Education and Skills,Transport,230008,Contract Hire,11/05/2020,3737398-COVID19-EST-MAY-CYPS-0581-A163,"1,080.00",WISS TAXIS.
Children and Young Peoples Services,Head of Education and Skills,Transport,230008,Contract Hire,11/05/2020,3737398-02-MARCH,"3,960.00",WISS TAXIS.
Children and Young Peoples Services,Head of Education and Skills,Transport,230008,Contract Hire,11/05/2020,3737398-07,"3,375.84",WISS TAXIS.
Children and Young Peoples Services,Head of Education and Skills,Transport,230008,Contract Hire,11/05/2020,3737398-COVID19-EST-APRIL-CYPS-1081-N059,960.34,WISS TAXIS.
Children and Young Peoples Services,Head of Education and Skills,Transport,230008,Contract Hire,11/05/2020,3737398-COVID19-EST-MAY-CYPS-1022-N059,922.75,WISS TAXIS.
Neighbourhoods and Climate Change,Environmental Services,Supplies and Services,384899,Miscellaneous Expenses,11/05/2020,3737403-SIN003877,"120,000.00",YORKSHIRE WILDLIFE TRUST.
"Regeneration, Economy and Growth",Development and Housing,Supplies and Services,338045,Services,12/05/2020,3738088-137066,750.00,4-5 GRAY`S INN SQUARE (BARRISTERS).
Resources BK0010,Legal & Democratic Services,Supplies and Services,338102,Services,12/05/2020,3738098-007-015,"7,490.00",ANALYTICAL SERVICES INTERNATIONAL LTD.
Resources BK0010,Legal & Democratic Services,Supplies and Services,338102,Services,12/05/2020,3738098-007-016,"3,675.00",ANALYTICAL SERVICES INTERNATIONAL LTD.
Adult and Health Services,Commissioning inc Supporting People,Third Party Payments,442002,Supporting People E442,12/05/2020,3738102-8012/C,"13,496.00",ASPIRE LEARNING SUPPORT & WELLBEING CIC.
Children and Young Peoples Services,Head of Education and Skills,Transport,230031,Contract Hire,12/05/2020,3738128-COVID19-EST-APRIL-CYPS-481-8022,819.73,CHRISTOPHER JAMES GRIERSON T/A GRIERSONS COACHES.
Children and Young Peoples Services,Head of Education and Skills,Transport,230031,Contract Hire,12/05/2020,3738128-COVID19-EST-MAY-CYPS-0429-8022,722.34,CHRISTOPHER JAMES GRIERSON T/A GRIERSONS COACHES.
Children and Young Peoples Services,Head of Education and Skills,Transport,230031,Contract Hire,12/05/2020,3738127-COVID19-EST-MAY-CYPS-0417-8021,600.96,CHRISTOPHER JAMES GRIERSON T/A GRIERSONS COACHES.
Children and Young Peoples Services,Head of Education and Skills,Transport,230031,Contract Hire,12/05/2020,3738128-COVID19-EST-APRIL-CYPS-469-8021,588.48,CHRISTOPHER JAMES GRIERSON T/A GRIERSONS COACHES.
Children and Young Peoples Services,Head of Education and Skills,Transport,230003,Contract Hire,12/05/2020,3738127-47050,"6,578.00",CHRISTOPHER JAMES GRIERSON T/A GRIERSONS COACHES.
Children and Young Peoples Services,Head of Education and Skills,Transport,230003,Contract Hire,12/05/2020,3738127-47051,"3,520.00",CHRISTOPHER JAMES GRIERSON T/A GRIERSONS COACHES.
Children and Young Peoples Services,Head of Education and Skills,Transport,230003,Contract Hire,12/05/2020,3738127-COVID19-EST-APRIL-CYPS-145-3335,"1,973.40",CHRISTOPHER JAMES GRIERSON T/A GRIERSONS COACHES.
Children and Young Peoples Services,Head of Education and Skills,Transport,230003,Contract Hire,12/05/2020,3738128-COVID19-EST-APRIL-CYPS-140-3310,"1,056.00",CHRISTOPHER JAMES GRIERSON T/A GRIERSONS COACHES.
Children and Young Peoples Services,Head of Education and Skills,Transport,230003,Contract Hire,12/05/2020,3738128-COVID19-EST-MAY-CYPS-0138-3310,960.00,CHRISTOPHER JAMES GRIERSON T/A GRIERSONS COACHES.
Children and Young Peoples Services,Head of Education and Skills,Transport,230003,Contract Hire,12/05/2020,3738128-COVID19-EST-MAY-CYPS-0142-3335,"1,794.00",CHRISTOPHER JAMES GRIERSON T/A GRIERSONS COACHES.
Children and Young Peoples Services,Head of Education and Skills,Transport,230007,Contract Hire,12/05/2020,3738127-47052,"5,134.58",CHRISTOPHER JAMES GRIERSON T/A GRIERSONS COACHES.
Children and Young Peoples Services,Head of Education and Skills,Transport,230007,Contract Hire,12/05/2020,3738128-COVID19-EST-APRIL-CYPS-266-5037,"1,540.37",CHRISTOPHER JAMES GRIERSON T/A GRIERSONS COACHES.
Children and Young Peoples Services,Head of Education and Skills,Transport,230007,Contract Hire,12/05/2020,3738128-COVID19-EST-MAY-CYPS-0259-5037,"1,400.34",CHRISTOPHER JAMES GRIERSON T/A GRIERSONS COACHES.
Children and Young Peoples Services,Head of Education and Skills,Transport,230007,Contract Hire,12/05/2020,3738127-47053,"5,500.00",CHRISTOPHER JAMES GRIERSON T/A GRIERSONS COACHES.
Children and Young Peoples Services,Head of Education and Skills,Transport,230003,Contract Hire,12/05/2020,3738127-47054,"3,520.00",CHRISTOPHER JAMES GRIERSON T/A GRIERSONS COACHES.
Children and Young Peoples Services,Head of Education and Skills,Transport,230003,Contract Hire,12/05/2020,3738127-47055,"3,410.00",CHRISTOPHER JAMES GRIERSON T/A GRIERSONS COACHES.
Children and Young Peoples Services,Head of Education and Skills,Transport,230003,Contract Hire,12/05/2020,3738127-47056,"3,630.00",CHRISTOPHER JAMES GRIERSON T/A GRIERSONS COACHES.
Children and Young Peoples Services,Head of Education and Skills,Transport,230003,Contract Hire,12/05/2020,3738127-COVID19-EST-MAY-CYPS-0278-5188,960.00,CHRISTOPHER JAMES GRIERSON T/A GRIERSONS COACHES.
Children and Young Peoples Services,Head of Education and Skills,Transport,230003,Contract Hire,12/05/2020,3738127-COVID19-EST-MAY-CYPS-0279-5189,930.00,CHRISTOPHER JAMES GRIERSON T/A GRIERSONS COACHES.
Children and Young Peoples Services,Head of Education and Skills,Transport,230003,Contract Hire,12/05/2020,3738127-COVID19-EST-MAY-CYPS-0280-5191,990.00,CHRISTOPHER JAMES GRIERSON T/A GRIERSONS COACHES.
Children and Young Peoples Services,Head of Education and Skills,Transport,230007,Contract Hire,12/05/2020,3738128-COVID19-EST-APRIL-CYPS-272-5046,"1,650.00",CHRISTOPHER JAMES GRIERSON T/A GRIERSONS COACHES.
Children and Young Peoples Services,Head of Education and Skills,Transport,230003,Contract Hire,12/05/2020,3738128-COVID19-EST-APRIL-CYPS-285-5188,"1,056.00",CHRISTOPHER JAMES GRIERSON T/A GRIERSONS COACHES.
Children and Young Peoples Services,Head of Education and Skills,Transport,230003,Contract Hire,12/05/2020,3738128-COVID19-EST-APRIL-CYPS-286-5189,"1,023.00",CHRISTOPHER JAMES GRIERSON T/A GRIERSONS COACHES.
Children and Young Peoples Services,Head of Education and Skills,Transport,230003,Contract Hire,12/05/2020,3738128-COVID19-EST-APRIL-CYPS-288-5191,"1,089.00",CHRISTOPHER JAMES GRIERSON T/A GRIERSONS COACHES.
Children and Young Peoples Services,Head of Education and Skills,Transport,230007,Contract Hire,12/05/2020,3738128-COVID19-EST-MAY-CYPS-0265-5046,"1,500.00",CHRISTOPHER JAMES GRIERSON T/A GRIERSONS COACHES.
"Regeneration, Economy and Growth",Corporate Property and Land,Supplies and Services,304221,Equipment and Materials,12/05/2020,3738130-2852AAV771,589.69,CITY PLUMBING SUPPLIES HOLDINGS LTD.
"Regeneration, Economy and Growth",Corporate Property and Land,Supplies and Services,304221,Equipment and Materials,12/05/2020,3738130-2852AAV775,585.19,CITY PLUMBING SUPPLIES HOLDINGS LTD.
"Regeneration, Economy and Growth",Corporate Property and Land,Supplies and Services,304221,Equipment and Materials,12/05/2020,3738130-2852AAV879,749.24,CITY PLUMBING SUPPLIES HOLDINGS LTD.
"Regeneration, Economy and Growth",Corporate Property and Land,Supplies and Services,304221,Equipment and Materials,12/05/2020,3738130-2852AAV943,851.78,CITY PLUMBING SUPPLIES HOLDINGS LTD.
"Regeneration, Economy and Growth",Corporate Property and Land,Supplies and Services,304221,Equipment and Materials,12/05/2020,3738130-2852AAV971,"1,013.35",CITY PLUMBING SUPPLIES HOLDINGS LTD.
"Regeneration, Economy and Growth",Corporate Property and Land,Supplies and Services,304221,Equipment and Materials,12/05/2020,3738130-2852AAW019,636.00,CITY PLUMBING SUPPLIES HOLDINGS LTD.
Children and Young Peoples Services,Head of Childrens Social Care,Transport,230005,Contract Hire,12/05/2020,3738137-CLUBCV191,"18,086.62",CLUBMAN CABS.
Resources BK0010,Legal & Democratic Services,Supplies and Services,338101,Services,12/05/2020,3738139-3980038201,"17,393.52",CO DURHAM & DARLINGTON NHS FOUNDATION TRUST.
"Regeneration, Economy and Growth",Culture Sport and Tourism,Third Party Payments,430100,Rendered by Private Contractors,12/05/2020,3738141-INV04603,774.80,COMPETITION LINE UK LTD T/A LIFESTYLE FITNESS.
"Regeneration, Economy and Growth",Culture Sport and Tourism,Third Party Payments,430100,Rendered by Private Contractors,12/05/2020,3738141-INV04602,716.30,COMPETITION LINE UK LTD T/A LIFESTYLE FITNESS.
Neighbourhoods and Climate Change,Partnerships & Community Engagement Div.,Supplies and Services,384086,Miscellaneous Expenses,12/05/2020,3738146-VOUCHER20NBCV19-4TOG002,"2,500.00",CORNFORTH PARTNERSHIP.
Children and Young Peoples Services,Head of Childrens Social Care,Transport,230005,Contract Hire,12/05/2020,3738148-110286,"17,446.37",CROFT BUSINESS SERVICES (UK) LTD T/A CROFT TAXIS.
Adult and Health Services,Public Health CC0450,Third Party Payments,460803,Contract Payments,12/05/2020,3738149-INV-451,"10,000.00",CRUSE BEREAVEMENT CARE.
Neighbourhoods and Climate Change,Environmental Services,Cap Exp on Grants & Other Financial Assistance (REFCUS),918501,Exp assets not owned by authority,12/05/2020,3738151-754,"5,160.00",CUMBRIA WILDFLOWERS LTD.
Resources BK0010,Digital and Customer Services,Vehicles Equipment Furniture and Fittings,912701,Computer equipment,12/05/2020,3738155-7402614151,"117,660.00",DELL COMPUTER CORPORATION LTD.
Resources BK0010,Legal & Democratic Services,Supplies and Services,338042,Services,12/05/2020,3738158-357387/INVLW301,"1,100.00",DERE STREET BARRISTERS.
Children and Young Peoples Services,Head of Education and Skills,Supplies and Services,338027,Services,12/05/2020,3738160-JT/DCC/APR20,"1,072.50",DO RE MI MUSICAL LEARNING LTD.
Resources BK0010,Legal & Democratic Services,Supplies and Services,338101,Services,12/05/2020,3738163-PB160,"3,871.20",DR PAUL BARRETT.
"Regeneration, Economy and Growth",Business Durham CL0850,Premises,120009,Energy Costs,12/05/2020,3738169-000007616548,"1,534.92",EDF ENERGY CUSTOMERS PLC T/A EDF ENERGY.
"Regeneration, Economy and Growth",Business Durham CL0850,Premises,120009,Energy Costs,12/05/2020,3738169-000007619211,850.82,EDF ENERGY CUSTOMERS PLC T/A EDF ENERGY.
Adult and Health Services,Head of Adults,Third Party Payments,478151,Purchase of Care,12/05/2020,3738172-001,"28,561.10",EMBRACING CARE.
Adult and Health Services,Head of Adults,Third Party Payments,478151,Purchase of Care,12/05/2020,3738172-002,"44,061.90",EMBRACING CARE.
Neighbourhoods and Climate Change,Environmental Services,Supplies and Services,304221,Equipment and Materials,12/05/2020,3738176-6863225,940.00,ESE WORLD LTD.
Neighbourhoods and Climate Change,Environmental Services,Supplies and Services,304221,Equipment and Materials,12/05/2020,3738176-6864248,"4,296.00",ESE WORLD LTD.
Neighbourhoods and Climate Change,Environmental Services,Third Party Payments,430120,Rendered by Private Contractors,12/05/2020,3738180-CTIN06604651,"4,472.19",FINNING (UK) LTD.
"Regeneration, Economy and Growth",Business Durham CL0850,Supplies and Services,344033,Telephones,12/05/2020,3738183-DERW01-0023,872.36,FREEDOM COMMUNICATIONS (UK) LTD.
Adult and Health Services,Public Health CC0450,Third Party Payments,460803,Contract Payments,12/05/2020,3738195-DCCDA002,"41,416.75",HARBOUR SUPPORT SERVICES.
Adult and Health Services,Public Health CC0450,Third Party Payments,460803,Contract Payments,12/05/2020,3738195-DCCVC002,"4,321.42",HARBOUR SUPPORT SERVICES.
Neighbourhoods and Climate Change,Environmental Services,Third Party Payments,430119,Rendered by Private Contractors,12/05/2020,3738197-115976,"1,470.74",HARPERS ENVIRONMENTAL LTD.
Neighbourhoods and Climate Change,Environmental Services,Third Party Payments,430119,Rendered by Private Contractors,12/05/2020,3738197-115977,"7,770.33",HARPERS ENVIRONMENTAL LTD.
Children and Young Peoples Services,Head of Education and Skills,Transport,230007,Contract Hire,12/05/2020,3738198-COVID19-EST-APRIL-CYPS-098-3074,924.00,HARRY`S TAXI`S.
Children and Young Peoples Services,Head of Education and Skills,Transport,230007,Contract Hire,12/05/2020,3738198-COVID19-EST-MAY-CYPS-0096-3074,840.00,HARRY`S TAXI`S.
Children and Young Peoples Services,Head of Education and Skills,Transport,230007,Contract Hire,12/05/2020,3738199-HT461,"3,080.00",HARRY`S TAXI`S.
Children and Young Peoples Services,Head of Education and Skills,Transport,230007,Contract Hire,12/05/2020,3738198-COVID19-EST-APRIL-CYPS-164-3410,726.00,HARRY`S TAXI`S.
Children and Young Peoples Services,Head of Education and Skills,Transport,230007,Contract Hire,12/05/2020,3738199-COVID19-EST-MAY-CYPS-0161-3410,660.00,HARRY`S TAXI`S.
Children and Young Peoples Services,Head of Education and Skills,Transport,230007,Contract Hire,12/05/2020,3738199-HT463,"2,420.00",HARRY`S TAXI`S.
Children and Young Peoples Services,Head of Education and Skills,Transport,230008,Contract Hire,12/05/2020,3738198-COVID19-EST-APRIL-CYPS-1308-W165,528.00,HARRY`S TAXI`S.
Children and Young Peoples Services,Head of Education and Skills,Transport,230008,Contract Hire,12/05/2020,3738199-HT464,"1,760.00",HARRY`S TAXI`S.
Children and Young Peoples Services,Head of Education and Skills,Transport,230008,Contract Hire,12/05/2020,3738198-COVID19-EST-APRIL-CYPS-1287-W084,858.00,HARRY`S TAXI`S.
Children and Young Peoples Services,Head of Education and Skills,Transport,230008,Contract Hire,12/05/2020,3738198-COVID19-EST-MAY-CYPS-1227-W084,780.00,HARRY`S TAXI`S.
Children and Young Peoples Services,Head of Education and Skills,Transport,230008,Contract Hire,12/05/2020,3738199-HT462,"2,860.00",HARRY`S TAXI`S.
Children and Young Peoples Services,Head of Education and Skills,Transport,230016,Contract Hire,12/05/2020,3738198-COVID19-EST-APRIL-CYPS-1185-S046,858.00,HARRY`S TAXI`S.
Children and Young Peoples Services,Head of Education and Skills,Transport,230016,Contract Hire,12/05/2020,3738199-COVID19-EST-MAY-CYPS-1126-S046,780.00,HARRY`S TAXI`S.
Children and Young Peoples Services,Head of Education and Skills,Transport,230016,Contract Hire,12/05/2020,3738199-HT465,520.00,HARRY`S TAXI`S.
Children and Young Peoples Services,Head of Education and Skills,Transport,230008,Contract Hire,12/05/2020,3738198-COVID19-EST-APRIL-CYPS-583-A028,792.00,HARRY`S TAXI`S.
Children and Young Peoples Services,Head of Education and Skills,Transport,230008,Contract Hire,12/05/2020,3738198-COVID19-EST-MAY-CYPS-0527-A028,720.00,HARRY`S TAXI`S.
Children and Young Peoples Services,Head of Education and Skills,Transport,230008,Contract Hire,12/05/2020,3738199-HT460,"2,640.00",HARRY`S TAXI`S.
Chief Executive's Office,Communications Management,Supplies and Services,372009,Subscriptions E372,12/05/2020,3738202-157926-2020,833.00,HEMMING GROUP LTD.
Transformation and Partnerships,Communications Management,Supplies and Services,372009,Subscriptions E372,12/05/2020,3738202-157926-2020,833.00,HEMMING GROUP LTD.
Neighbourhoods and Climate Change,Environmental Services,Third Party Payments,430100,Rendered by Private Contractors,12/05/2020,3738208-5922,"1,350.00",INDUSTRIAL DEEP CLEANING LTD.
"Regeneration, Economy and Growth",Corporate Property and Land,Third Party Payments,430100,Rendered by Private Contractors,12/05/2020,3738209-8952C,878.00,INGLEFORD SCAFFOLDING LTD.
"Regeneration, Economy and Growth",Corporate Property and Land,Third Party Payments,430100,Rendered by Private Contractors,12/05/2020,3738209-895B,995.00,INGLEFORD SCAFFOLDING LTD.
"Regeneration, Economy and Growth",Corporate Property and Land,Third Party Payments,430100,Rendered by Private Contractors,12/05/2020,3738209-9086,"1,302.00",INGLEFORD SCAFFOLDING LTD.
"Regeneration, Economy and Growth",Corporate Property and Land,Third Party Payments,430100,Rendered by Private Contractors,12/05/2020,3738209-8952-31/03/2020,580.00,INGLEFORD SCAFFOLDING LTD.
Neighbourhoods and Climate Change,Technical Services CM0300,Stock A926,926900,Stock in hand-Inventory system,12/05/2020,3738210-730287,"2,212.00",INSTARMAC GROUP PLC.
Neighbourhoods and Climate Change,Technical Services CM0300,Stock A926,926900,Stock in hand-Inventory system,12/05/2020,3738210-730290,"2,520.00",INSTARMAC GROUP PLC.
Children and Young Peoples Services,Head of Education and Skills,Transport,230008,Contract Hire,12/05/2020,3738214-0752,"1,890.68",JACKSON`S TAXI.
Children and Young Peoples Services,Head of Education and Skills,Supplies and Services,384302,Miscellaneous Expenses,12/05/2020,3738215-1671,"3,168.00",JARVIS TRAINING MANAGEMENT LTD.
Neighbourhoods and Climate Change,Technical Services CM0300,Stock A926,926900,Stock in hand-Inventory system,12/05/2020,3738225-0112/00077485,"1,809.33",JT DOVE LTD.
Neighbourhoods and Climate Change,Technical Services CM0300,Supplies and Services,304221,Equipment and Materials,12/05/2020,3738225-0303/00074031,"1,031.85",JT DOVE LTD.
Neighbourhoods and Climate Change,Technical Services CM0300,Supplies and Services,304221,Equipment and Materials,12/05/2020,3738225-0303/00074032,820.00,JT DOVE LTD.
Neighbourhoods and Climate Change,Partnerships & Community Engagement Div.,Supplies and Services,384086,Miscellaneous Expenses,12/05/2020,3738227-VOUCHER20NBCV19-STAN002,"4,800.00",JUST FOR WOMEN CENTRE.
Children and Young Peoples Services,Head of Education and Skills,Transport,230012,Contract Hire,12/05/2020,3738256-0320-MARCH,793.82,MR DEREK HENDERSON.
Children and Young Peoples Services,Head of Education and Skills,Supplies and Services,338035,Services,12/05/2020,3738261-SI00087007,536.00,NCFE.
Resources BK0010,Legal & Democratic Services,Supplies and Services,338101,Services,12/05/2020,3738262-3010007515,"11,840.00",NEWCASTLE UPON TYNE HOSPITALS NHS FOUNDATION TRUST.
Resources BK0010,Legal & Democratic Services,Supplies and Services,338101,Services,12/05/2020,3738262-3010007516,"5,110.00",NEWCASTLE UPON TYNE HOSPITALS NHS FOUNDATION TRUST.
Resources BK0010,Legal & Democratic Services,Supplies and Services,338101,Services,12/05/2020,3738262-3010007517,"30,411.07",NEWCASTLE UPON TYNE HOSPITALS NHS FOUNDATION TRUST.
Resources BK0010,Legal & Democratic Services,Supplies and Services,338101,Services,12/05/2020,3738262-3010007518,"3,325.00",NEWCASTLE UPON TYNE HOSPITALS NHS FOUNDATION TRUST.
Transformation and Partnerships,Communications Management,Supplies and Services,336005,Advertising E336,12/05/2020,3738263-32676056,693.00,NEWSQUEST (YORKSHIRE & NORTH EAST) LTD.
Chief Executive's Office,Communications Management,Supplies and Services,336005,Advertising E336,12/05/2020,3738263-32676056,693.00,NEWSQUEST (YORKSHIRE & NORTH EAST) LTD.
Transformation and Partnerships,Communications Management,Supplies and Services,336005,Advertising E336,12/05/2020,3738263-32951637,"1,000.00",NEWSQUEST (YORKSHIRE & NORTH EAST) LTD.
Chief Executive's Office,Communications Management,Supplies and Services,336005,Advertising E336,12/05/2020,3738263-32951637,"1,000.00",NEWSQUEST (YORKSHIRE & NORTH EAST) LTD.
Chief Executive's Office,Communications Management,Supplies and Services,336005,Advertising E336,12/05/2020,3738263-32952256,"1,050.00",NEWSQUEST (YORKSHIRE & NORTH EAST) LTD.
Transformation and Partnerships,Communications Management,Supplies and Services,336005,Advertising E336,12/05/2020,3738263-32952256,"1,050.00",NEWSQUEST (YORKSHIRE & NORTH EAST) LTD.
Chief Executive's Office,Communications Management,Supplies and Services,336005,Advertising E336,12/05/2020,3738263-32952812,"1,376.64",NEWSQUEST (YORKSHIRE & NORTH EAST) LTD.
Transformation and Partnerships,Communications Management,Supplies and Services,336005,Advertising E336,12/05/2020,3738263-32952812,"1,376.64",NEWSQUEST (YORKSHIRE & NORTH EAST) LTD.
Transformation and Partnerships,Communications Management,Supplies and Services,336005,Advertising E336,12/05/2020,3738263-32952867,"1,200.00",NEWSQUEST (YORKSHIRE & NORTH EAST) LTD.
Chief Executive's Office,Communications Management,Supplies and Services,336005,Advertising E336,12/05/2020,3738263-32952867,"1,200.00",NEWSQUEST (YORKSHIRE & NORTH EAST) LTD.
Transformation and Partnerships,Communications Management,Supplies and Services,336005,Advertising E336,12/05/2020,3738263-32952887,"1,200.00",NEWSQUEST (YORKSHIRE & NORTH EAST) LTD.
Chief Executive's Office,Communications Management,Supplies and Services,336005,Advertising E336,12/05/2020,3738263-32952887,"1,200.00",NEWSQUEST (YORKSHIRE & NORTH EAST) LTD.
Neighbourhoods and Climate Change,Environmental Services,Premises,120037,Energy Costs,12/05/2020,3738270-598017,"1,212.72",OIL NRG LTD.
Neighbourhoods and Climate Change,Environmental Services,Transport,215005,Running Costs of Vehicles,12/05/2020,3738270-594478,"12,856.90",OIL NRG LTD.
Neighbourhoods and Climate Change,Environmental Services,Transport,215005,Running Costs of Vehicles,12/05/2020,3738270-596244,"9,571.20",OIL NRG LTD.
Children and Young Peoples Services,Head of Education and Skills,Supplies and Services,384199,Miscellaneous Expenses,12/05/2020,3738271-INV-0581,"1,485.00",OPTIMUM SKILLS LTD.
"Regeneration, Economy and Growth",Corporate Property and Land,Third Party Payments,430100,Rendered by Private Contractors,12/05/2020,3738272-9722-256,"1,051.87",OPUS BUILDING SERVICES LTD.
"Regeneration, Economy and Growth",Corporate Property and Land,Third Party Payments,430100,Rendered by Private Contractors,12/05/2020,3738272-9722-257,"1,051.87",OPUS BUILDING SERVICES LTD.
"Regeneration, Economy and Growth",Corporate Property and Land,Third Party Payments,430100,Rendered by Private Contractors,12/05/2020,3738272-9722-261,"1,051.87",OPUS BUILDING SERVICES LTD.
"Regeneration, Economy and Growth",Corporate Property and Land,Third Party Payments,430100,Rendered by Private Contractors,12/05/2020,3738272-9722-262,"1,051.87",OPUS BUILDING SERVICES LTD.
"Regeneration, Economy and Growth",Corporate Property and Land,Third Party Payments,430100,Rendered by Private Contractors,12/05/2020,3738272-9722-258,"1,084.87",OPUS BUILDING SERVICES LTD.
"Regeneration, Economy and Growth",Corporate Property and Land,Third Party Payments,430100,Rendered by Private Contractors,12/05/2020,3738272-9722-260,893.62,OPUS BUILDING SERVICES LTD.
"Regeneration, Economy and Growth",Corporate Property and Land,Third Party Payments,430100,Rendered by Private Contractors,12/05/2020,3738272-9722-263,"1,448.97",OPUS BUILDING SERVICES LTD.
"Regeneration, Economy and Growth",Corporate Property and Land,Third Party Payments,430100,Rendered by Private Contractors,12/05/2020,3738272-9722-265,"1,192.72",OPUS BUILDING SERVICES LTD.
Children and Young Peoples Services,Head of Education and Skills,Transport,230007,Contract Hire,12/05/2020,3738279-COVID19-EST-APRIL-CYPS-077-3037/A,627.00,PBS TRAVEL LTD.
Children and Young Peoples Services,Head of Education and Skills,Transport,230007,Contract Hire,12/05/2020,3738280-3037-1081,"2,090.00",PBS TRAVEL LTD.
Children and Young Peoples Services,Head of Education and Skills,Transport,230007,Contract Hire,12/05/2020,3738279-COVID19-EST-APRIL-CYPS-092-3065,653.40,PBS TRAVEL LTD.
Children and Young Peoples Services,Head of Education and Skills,Transport,230007,Contract Hire,12/05/2020,3738279-COVID19-EST-MAY-CYPS-0090-3065,594.00,PBS TRAVEL LTD.
Children and Young Peoples Services,Head of Education and Skills,Transport,230007,Contract Hire,12/05/2020,3738280-2178-1081,"2,178.00",PBS TRAVEL LTD.
Children and Young Peoples Services,Head of Education and Skills,Transport,230007,Contract Hire,12/05/2020,3738279-COVID19-EST-APRIL-CYPS-089-3058,561.00,PBS TRAVEL LTD.
Children and Young Peoples Services,Head of Education and Skills,Transport,230007,Contract Hire,12/05/2020,3738279-COVID19-EST-MAY-CYPS-0075-3037,570.00,PBS TRAVEL LTD.
Children and Young Peoples Services,Head of Education and Skills,Transport,230007,Contract Hire,12/05/2020,3738279-COVID19-EST-MAY-CYPS-0087-3058,510.00,PBS TRAVEL LTD.
Children and Young Peoples Services,Head of Education and Skills,Transport,230007,Contract Hire,12/05/2020,3738280-3058-1081,"1,869.99",PBS TRAVEL LTD.
Adult and Health Services,Head of Adults,Transport,230005,Contract Hire,12/05/2020,3738291-COVID19-EST-MAY-AWH-0772-EAS191,546.00,RAPID MINIBUSES.
Adult and Health Services,Head of Adults,Transport,230005,Contract Hire,12/05/2020,3738291-COVID19-EST-MAY-AWH-1157-SLD015,646.00,RAPID MINIBUSES.
Adult and Health Services,Head of Adults,Transport,230005,Contract Hire,12/05/2020,3738292-COVID19-EST-APRIL-AWH-1216-SLD015,646.00,RAPID MINIBUSES.
Adult and Health Services,Head of Adults,Transport,230005,Contract Hire,12/05/2020,3738292-COVID19-EST-APRIL-AWH-831-EAS191,572.00,RAPID MINIBUSES.
Children and Young Peoples Services,Head of Education and Skills,Transport,230008,Contract Hire,12/05/2020,3738292-17575,"1,947.88",RAPID MINIBUSES.
Children and Young Peoples Services,Head of Education and Skills,Transport,230008,Contract Hire,12/05/2020,3738292-17578,"1,738.00",RAPID MINIBUSES.
Children and Young Peoples Services,Head of Education and Skills,Transport,230008,Contract Hire,12/05/2020,3738292-COVID19-EST-APRIL-CYPS-804-E059,560.00,RAPID MINIBUSES.
Children and Young Peoples Services,Head of Education and Skills,Transport,230008,Contract Hire,12/05/2020,3738292-COVID19-EST-MAY-CYPS-0718-E027,531.24,RAPID MINIBUSES.
Children and Young Peoples Services,Head of Education and Skills,Transport,230008,Contract Hire,12/05/2020,3738292-COVID19-EST-MAY-CYPS-0745-E059,600.00,RAPID MINIBUSES.
Children and Young Peoples Services,Head of Education and Skills,Transport,230008,Contract Hire,12/05/2020,3738301-ROXDCC203,"2,400.00",ROXBYS BUS HIRE.
Children and Young Peoples Services,Head of Education and Skills,Transport,230008,Contract Hire,12/05/2020,3738308-A070010718/MARCH,600.00,SAFELINE TRAVEL.
Children and Young Peoples Services,Head of Education and Skills,Transport,230008,Contract Hire,12/05/2020,3738307-A0700N005/MARCH,"2,295.04",SAFELINE TRAVEL.
Children and Young Peoples Services,Head of Education and Skills,Transport,230008,Contract Hire,12/05/2020,3738308-A070010718/MARCH20,"1,755.60",SAFELINE TRAVEL.
Children and Young Peoples Services,Head of Education and Skills,Transport,230008,Contract Hire,12/05/2020,3738308-COVID19-EST-APRIL-CYPS-1026-N005,688.58,SAFELINE TRAVEL.
Children and Young Peoples Services,Head of Education and Skills,Transport,230008,Contract Hire,12/05/2020,3738308-COVID19-EST-APRIL-CYPS-1277-W072,526.68,SAFELINE TRAVEL.
Children and Young Peoples Services,Head of Education and Skills,Transport,230008,Contract Hire,12/05/2020,3738308-COVID19-EST-MAY-CYPS-0967-N005,625.98,SAFELINE TRAVEL.
Children and Young Peoples Services,Head of Childrens Social Care,Transport,230005,Contract Hire,12/05/2020,3738317-75600,792.67,SHOTTON PRIVATE HIRE.
Children and Young Peoples Services,Head of Education and Skills,Transport,230012,Contract Hire,12/05/2020,3738319-2700,"2,913.00",SIMONS TAXIS.
Children and Young Peoples Services,Head of Education and Skills,Transport,230006,Contract Hire,12/05/2020,3738319-2701,"1,045.28",SIMONS TAXIS.
Resources BK0010,Digital and Customer Services,Supplies and Services,342051,Computers and Communications,12/05/2020,3738321-105325,"2,001.50",SMOOTHWALL LTD.
Resources BK0010,Digital and Customer Services,Supplies and Services,342033,Computers and Communications,12/05/2020,3738322-INV02578553,"33,272.77",SOFTCAT LTD.
Adult and Health Services,Public Health CC0450,Third Party Payments,460803,Contract Payments,12/05/2020,3738324-D0024982,826.72,SOUTH TEES HOSPITALS NHS FOUNDATION TRUST.
Adult and Health Services,Public Health CC0450,Third Party Payments,460803,Contract Payments,12/05/2020,3738324-D0025305,826.72,SOUTH TEES HOSPITALS NHS FOUNDATION TRUST.
"Regeneration, Economy and Growth",Culture Sport and Tourism,Supplies and Services,384199,Miscellaneous Expenses,12/05/2020,3738326-INV-S009821,596.75,SPEKTRIX LTD.
Children and Young Peoples Services,Head of Education and Skills,Transport,230003,Contract Hire,12/05/2020,3738327-466376-5193,"5,038.00",STAGECOACH SERVICES LTD.
Children and Young Peoples Services,Head of Education and Skills,Transport,230003,Contract Hire,12/05/2020,3738327-466376-5197,"5,038.00",STAGECOACH SERVICES LTD.
Children and Young Peoples Services,Head of Education and Skills,Transport,230003,Contract Hire,12/05/2020,3738327-466376-4021,"5,038.00",STAGECOACH SERVICES LTD.
Regeneration and Local Services,COVID19 - Neighbourhoods and Climate Change,Supplies and Services,338078,Services,12/05/2020,3738332-15779,"2,631.26",STEADFAST SECURITY SOLUTIONS LTD.
Children and Young Peoples Services,Head of Childrens Social Care,Transport,230005,Contract Hire,12/05/2020,3738333-SI-646,"5,615.91",STEVEN PRATT T/A PTL TAXIS DURHAM.
Children and Young Peoples Services,Head of Education and Skills,Transport,230006,Contract Hire,12/05/2020,3738334-00127,682.44,STEVES TAXIS.
Children and Young Peoples Services,Head of Childrens Social Care,Transport,240045,Car allowances E240,12/05/2020,3738337-10623,"36,555.84",SUPPORTIVE SRC LTD.
Children and Young Peoples Services,Head of Education and Skills,Transport,230007,Contract Hire,12/05/2020,3738340-COVID19-EST-APRIL-CYPS-229-4369,564.30,T MOORE & SON.
Children and Young Peoples Services,Head of Education and Skills,Transport,230007,Contract Hire,12/05/2020,3738340-COVID19-EST-MAY-CYPS-0222-4369,513.00,T MOORE & SON.
Children and Young Peoples Services,Head of Education and Skills,Transport,230007,Contract Hire,12/05/2020,3738341-26203PA,"1,881.00",T MOORE & SON.
Children and Young Peoples Services,Head of Education and Skills,Transport,230007,Contract Hire,12/05/2020,3738340-COVID19-EST-APRIL-CYPS-213-4156,635.84,T MOORE & SON.
Children and Young Peoples Services,Head of Education and Skills,Transport,230007,Contract Hire,12/05/2020,3738340-COVID19-EST-MAY-CYPS-0206-4156,578.04,T MOORE & SON.
Children and Young Peoples Services,Head of Education and Skills,Transport,230007,Contract Hire,12/05/2020,3738341-26103WA,"2,119.48",T MOORE & SON.
Children and Young Peoples Services,Head of Education and Skills,Transport,230003,Contract Hire,12/05/2020,3738340-COVID19-EST-APRIL-CYPS-212-4155,542.39,T MOORE & SON.
Children and Young Peoples Services,Head of Education and Skills,Transport,230003,Contract Hire,12/05/2020,3738341-25903SL,"1,628.00",T MOORE & SON.
Children and Young Peoples Services,Head of Education and Skills,Transport,230003,Contract Hire,12/05/2020,3738341-26003SL,"1,807.96",T MOORE & SON.
Children and Young Peoples Services,Head of Education and Skills,Transport,230003,Contract Hire,12/05/2020,3738341-275703SB,"1,353.00",T MOORE & SON.
Children and Young Peoples Services,Head of Education and Skills,Transport,230006,Contract Hire,12/05/2020,3738341-25803BC,"1,443.00",T MOORE & SON.
Children and Young Peoples Services,Head of Early Help Inclusion & Vulnerable Children.,Employees,080025,Agency Staff,12/05/2020,3738345-2407987,"1,056.25",TEACHING PERSONNEL LTD.
Dedicated Schools Grant BG0015,DSG High Needs Block,Third Party Payments,440999,Other third party payments E440,12/05/2020,3738350-20007038,"4,705.66",THE GUIDE DOGS FOR THE BLIND ASSOCIATION.
Adult and Health Services,Commissioning inc Supporting People,Third Party Payments,473111,Purchase of Care,12/05/2020,3738351-0004-12/3/20,"2,093.00",THE HUB OF WISHES.
Children and Young Peoples Services,Head of Education and Skills,Transport,230010,Contract Hire,12/05/2020,3738353-BL027-MARCH20,"1,099.80",THOMAS GLEN.
Neighbourhoods and Climate Change,Technical Services CM0300,Stock A926,926900,Stock in hand-Inventory system,12/05/2020,3738354-NSIN00035238,533.76,THOMAS OWEN & SONS (NEWCASTLE) LTD.
Children and Young Peoples Services,Head of Childrens Social Care,Transport,230005,Contract Hire,12/05/2020,3738355-558/2020,613.20,TONYS TAXIS (A BIRCH).
Children and Young Peoples Services,Head of Childrens Social Care,Transport,230005,Contract Hire,12/05/2020,3738355-559/2020,"1,755.38",TONYS TAXIS (A BIRCH).
Dedicated Schools Grant BG0015,DSG High Needs Block,Third Party Payments,410037,Rendered by Other Local Authorities,12/05/2020,3738360-TAN339,"15,354.76",TRINITY ACADEMY NEWCASTLE.
Dedicated Schools Grant BG0015,DSG High Needs Block,Third Party Payments,410037,Rendered by Other Local Authorities,12/05/2020,3738360-TANB36,"17,081.33",TRINITY ACADEMY NEWCASTLE.
"Regeneration, Economy and Growth",Corporate Property and Land,Supplies and Services,304221,Equipment and Materials,12/05/2020,3738365-1790110546,"1,000.00",TUV SUD UK LTD T/A TUV SUD DUNBAR & BOARDMAN.
Adult and Health Services,Commissioning inc Supporting People,Third Party Payments,441001,Supporting People E441,12/05/2020,3738376-100,"46,054.00",WADDINGTON STREET CENTRE LTD.
Children and Young Peoples Services,Head of Education and Skills,Transport,230010,Contract Hire,12/05/2020,3738381-680-B024MARCH,"1,200.00",WEST AUCKLAND TOWN TRAVEL (WATT).
Resources BK0010,Legal & Democratic Services,Supplies and Services,338025,Services,12/05/2020,3738384-288/2019-20,590.00,WHITEHOUSE FUNERAL SERVICES.
Neighbourhoods and Climate Change,Partnerships & Community Engagement Div.,Supplies and Services,384086,Miscellaneous Expenses,12/05/2020,3738386-VOUCHER20NBCV19-BASH002,"2,000.00",WOODHOUSE CLOSE CHURCH COMMUNITY CENTRE.
Adult and Health Services,Head of Adults,Third Party Payments,470101,Purchase of Care,13/05/2020,3738628-2611408,"2,488.08",A CHARLES THOMAS (CARE) LTD.
Adult and Health Services,Head of Adults,Third Party Payments,470101,Purchase of Care,13/05/2020,3738628-2611870,"1,599.48",A CHARLES THOMAS (CARE) LTD.
Adult and Health Services,Head of Adults,Third Party Payments,470101,Purchase of Care,13/05/2020,3738628-2611928,"2,488.08",A CHARLES THOMAS (CARE) LTD.
Adult and Health Services,Head of Adults,Third Party Payments,470101,Purchase of Care,13/05/2020,3738628-2611936,"2,488.08",A CHARLES THOMAS (CARE) LTD.
Adult and Health Services,Head of Adults,Third Party Payments,470101,Purchase of Care,13/05/2020,3738628-2612098,"2,488.08",A CHARLES THOMAS (CARE) LTD.
Adult and Health Services,Head of Adults,Third Party Payments,470101,Purchase of Care,13/05/2020,3738628-2612108,"2,488.08",A CHARLES THOMAS (CARE) LTD.
Adult and Health Services,Head of Adults,Third Party Payments,470101,Purchase of Care,13/05/2020,3738628-2612160,"2,488.08",A CHARLES THOMAS (CARE) LTD.
Adult and Health Services,Head of Adults,Third Party Payments,470101,Purchase of Care,13/05/2020,3738628-2612320,"2,488.08",A CHARLES THOMAS (CARE) LTD.
Adult and Health Services,Head of Adults,Third Party Payments,470101,Purchase of Care,13/05/2020,3738628-2612346,"2,790.20",A CHARLES THOMAS (CARE) LTD.
Adult and Health Services,Head of Adults,Third Party Payments,470101,Purchase of Care,13/05/2020,3738628-2612429,"2,488.08",A CHARLES THOMAS (CARE) LTD.
Adult and Health Services,Head of Adults,Third Party Payments,470101,Purchase of Care,13/05/2020,3738628-2612439,"2,488.08",A CHARLES THOMAS (CARE) LTD.
Adult and Health Services,Head of Adults,Third Party Payments,470101,Purchase of Care,13/05/2020,3738628-2612483,"2,488.08",A CHARLES THOMAS (CARE) LTD.
Adult and Health Services,Head of Adults,Third Party Payments,470101,Purchase of Care,13/05/2020,3738628-2612587,"2,488.08",A CHARLES THOMAS (CARE) LTD.
Adult and Health Services,Head of Adults,Third Party Payments,470101,Purchase of Care,13/05/2020,3738628-2612728,"2,488.08",A CHARLES THOMAS (CARE) LTD.
Adult and Health Services,Head of Adults,Third Party Payments,470101,Purchase of Care,13/05/2020,3738628-2612797,"2,488.08",A CHARLES THOMAS (CARE) LTD.
Adult and Health Services,Head of Adults,Third Party Payments,470101,Purchase of Care,13/05/2020,3738628-2613076,"2,488.08",A CHARLES THOMAS (CARE) LTD.
Adult and Health Services,Head of Adults,Third Party Payments,470101,Purchase of Care,13/05/2020,3738628-2613555,"1,421.76",A CHARLES THOMAS (CARE) LTD.
Adult and Health Services,Head of Adults,Third Party Payments,470101,Purchase of Care,13/05/2020,3738628-2613562,"2,488.08",A CHARLES THOMAS (CARE) LTD.
Adult and Health Services,Head of Adults,Third Party Payments,470101,Purchase of Care,13/05/2020,3738628-2613922,"2,488.08",A CHARLES THOMAS (CARE) LTD.
Adult and Health Services,Head of Adults,Third Party Payments,470101,Purchase of Care,13/05/2020,3738628-2614035,799.74,A CHARLES THOMAS (CARE) LTD.
Adult and Health Services,Head of Adults,Third Party Payments,470101,Purchase of Care,13/05/2020,3738628-2614037,977.46,A CHARLES THOMAS (CARE) LTD.
Adult and Health Services,Head of Adults,Third Party Payments,470101,Purchase of Care,13/05/2020,3738628-2614112,"2,488.08",A CHARLES THOMAS (CARE) LTD.
Adult and Health Services,Head of Adults,Third Party Payments,470101,Purchase of Care,13/05/2020,3738628-2614121,"2,488.08",A CHARLES THOMAS (CARE) LTD.
Adult and Health Services,Head of Adults,Third Party Payments,470101,Purchase of Care,13/05/2020,3738628-2614125,"2,488.08",A CHARLES THOMAS (CARE) LTD.
Adult and Health Services,Head of Adults,Third Party Payments,470101,Purchase of Care,13/05/2020,3738628-2614152,888.60,A CHARLES THOMAS (CARE) LTD.
Adult and Health Services,Head of Adults,Third Party Payments,470101,Purchase of Care,13/05/2020,3738628-2614255,"2,488.08",A CHARLES THOMAS (CARE) LTD.
Adult and Health Services,Head of Adults,Third Party Payments,470101,Purchase of Care,13/05/2020,3738628-2614403,"2,488.08",A CHARLES THOMAS (CARE) LTD.
Adult and Health Services,Head of Adults,Third Party Payments,470101,Purchase of Care,13/05/2020,3738628-2614419,"2,488.08",A CHARLES THOMAS (CARE) LTD.
Adult and Health Services,Head of Adults,Third Party Payments,470101,Purchase of Care,13/05/2020,3738628-2614501,"2,488.08",A CHARLES THOMAS (CARE) LTD.
Adult and Health Services,Head of Adults,Third Party Payments,470101,Purchase of Care,13/05/2020,3738628-2614870,"2,488.08",A CHARLES THOMAS (CARE) LTD.
Adult and Health Services,Head of Adults,Third Party Payments,470101,Purchase of Care,13/05/2020,3738628-2614903,"6,296.43",A CHARLES THOMAS (CARE) LTD.
Adult and Health Services,Head of Adults,Third Party Payments,470101,Purchase of Care,13/05/2020,3738628-2615019,"2,488.08",A CHARLES THOMAS (CARE) LTD.
Adult and Health Services,Head of Adults,Third Party Payments,470101,Purchase of Care,13/05/2020,3738628-2613568,977.46,A CHARLES THOMAS (CARE) LTD.
Adult and Health Services,Head of Adults,Third Party Payments,470101,Purchase of Care,13/05/2020,3738628-2613785,"1,510.62",A CHARLES THOMAS (CARE) LTD.
Adult and Health Services,Head of Adults,Third Party Payments,470101,Purchase of Care,13/05/2020,3738628-ADDITIONALUPLIFT2/52,"7,212.66",A CHARLES THOMAS (CARE) LTD.
Adult and Health Services,Head of Adults,Transport,230005,Contract Hire,13/05/2020,3738390-G2/SB,"1,740.00",AABAT TAXIS.
Children and Young Peoples Services,Head of Education and Skills,Transport,230007,Contract Hire,13/05/2020,3738390-G15/SR,"1,134.65",AABAT TAXIS.
Children and Young Peoples Services,Head of Education and Skills,Transport,230008,Contract Hire,13/05/2020,3738390-G17/ST,"3,354.12",AABAT TAXIS.
Adult and Health Services,Head of Adults,Third Party Payments,478101,Purchase of Care,13/05/2020,3739107-1983078H,"1,835.56",ACCEPT CARE LTD.
Adult and Health Services,Head of Adults,Third Party Payments,478101,Purchase of Care,13/05/2020,3739107-1985908H,"3,410.44",ACCEPT CARE LTD.
Adult and Health Services,Head of Adults,Third Party Payments,478101,Purchase of Care,13/05/2020,3739107-1986604H,"1,894.36",ACCEPT CARE LTD.
Adult and Health Services,Head of Adults,Third Party Payments,478101,Purchase of Care,13/05/2020,3739107-1986854H,980.96,ACCEPT CARE LTD.
Adult and Health Services,Head of Adults,Third Party Payments,478101,Purchase of Care,13/05/2020,3739107-1982716H,"2,482.36",ACCEPT CARE LTD.
Adult and Health Services,Head of Adults,Third Party Payments,478101,Purchase of Care,13/05/2020,3739107-1984426H,"1,267.16",ACCEPT CARE LTD.
Adult and Health Services,Head of Adults,Third Party Payments,478101,Purchase of Care,13/05/2020,3739107-1985535H,"1,659.16",ACCEPT CARE LTD.
Adult and Health Services,Head of Adults,Third Party Payments,478101,Purchase of Care,13/05/2020,3739107-1981340H,"3,616.20",ACCEPT CARE LTD.
Adult and Health Services,Head of Adults,Third Party Payments,478101,Purchase of Care,13/05/2020,3739107-1981389H,"4,851.00",ACCEPT CARE LTD.
Adult and Health Services,Head of Adults,Third Party Payments,478101,Purchase of Care,13/05/2020,3739107-1981488H,"3,395.72",ACCEPT CARE LTD.
Adult and Health Services,Head of Adults,Third Party Payments,478101,Purchase of Care,13/05/2020,3739107-1981683H,980.96,ACCEPT CARE LTD.
Adult and Health Services,Head of Adults,Third Party Payments,478101,Purchase of Care,13/05/2020,3739107-1981744H,"2,812.60",ACCEPT CARE LTD.
Adult and Health Services,Head of Adults,Third Party Payments,478101,Purchase of Care,13/05/2020,3739107-1981772H,980.96,ACCEPT CARE LTD.
Adult and Health Services,Head of Adults,Third Party Payments,478101,Purchase of Care,13/05/2020,3739107-1981782H,980.96,ACCEPT CARE LTD.
Adult and Health Services,Head of Adults,Third Party Payments,478101,Purchase of Care,13/05/2020,3739107-1981838H,980.96,ACCEPT CARE LTD.
Adult and Health Services,Head of Adults,Third Party Payments,478101,Purchase of Care,13/05/2020,3739107-1981869H,980.96,ACCEPT CARE LTD.
Adult and Health Services,Head of Adults,Third Party Payments,478101,Purchase of Care,13/05/2020,3739107-1981905H,"4,811.80",ACCEPT CARE LTD.
Adult and Health Services,Head of Adults,Third Party Payments,478101,Purchase of Care,13/05/2020,3739107-1981908H,"1,098.56",ACCEPT CARE LTD.
Adult and Health Services,Head of Adults,Third Party Payments,478101,Purchase of Care,13/05/2020,3739107-1981912H,"4,027.80",ACCEPT CARE LTD.
Adult and Health Services,Head of Adults,Third Party Payments,478101,Purchase of Care,13/05/2020,3739107-1981975H,980.96,ACCEPT CARE LTD.
Adult and Health Services,Head of Adults,Third Party Payments,478101,Purchase of Care,13/05/2020,3739107-1981981H,980.96,ACCEPT CARE LTD.
Adult and Health Services,Head of Adults,Third Party Payments,478101,Purchase of Care,13/05/2020,3739107-1981988H,"3,904.32",ACCEPT CARE LTD.
Adult and Health Services,Head of Adults,Third Party Payments,478101,Purchase of Care,13/05/2020,3739107-1981993H,980.96,ACCEPT CARE LTD.
Adult and Health Services,Head of Adults,Third Party Payments,478101,Purchase of Care,13/05/2020,3739107-1982189H,"6,791.40",ACCEPT CARE LTD.
Adult and Health Services,Head of Adults,Third Party Payments,478101,Purchase of Care,13/05/2020,3739107-1982386H,"5,187.16",ACCEPT CARE LTD.
Adult and Health Services,Head of Adults,Third Party Payments,478101,Purchase of Care,13/05/2020,3739107-1982407H,"2,675.40",ACCEPT CARE LTD.
Adult and Health Services,Head of Adults,Third Party Payments,478101,Purchase of Care,13/05/2020,3739107-1982468H,"8,915.20",ACCEPT CARE LTD.
Adult and Health Services,Head of Adults,Third Party Payments,478101,Purchase of Care,13/05/2020,3739107-1982484H,"6,174.00",ACCEPT CARE LTD.
Adult and Health Services,Head of Adults,Third Party Payments,478101,Purchase of Care,13/05/2020,3739107-1982581H,"2,932.08",ACCEPT CARE LTD.
Adult and Health Services,Head of Adults,Third Party Payments,478101,Purchase of Care,13/05/2020,3739107-1982602H,"7,497.00",ACCEPT CARE LTD.
Adult and Health Services,Head of Adults,Third Party Payments,478101,Purchase of Care,13/05/2020,3739107-1982635H,980.96,ACCEPT CARE LTD.
Adult and Health Services,Head of Adults,Third Party Payments,478101,Purchase of Care,13/05/2020,3739107-1982652H,"6,164.20",ACCEPT CARE LTD.
Adult and Health Services,Head of Adults,Third Party Payments,478101,Purchase of Care,13/05/2020,3739107-1982717H,"3,542.72",ACCEPT CARE LTD.
Adult and Health Services,Head of Adults,Third Party Payments,478101,Purchase of Care,13/05/2020,3739107-1982803H,"8,320.20",ACCEPT CARE LTD.
Adult and Health Services,Head of Adults,Third Party Payments,478101,Purchase of Care,13/05/2020,3739107-1982809H,"8,780.80",ACCEPT CARE LTD.
Adult and Health Services,Head of Adults,Third Party Payments,478101,Purchase of Care,13/05/2020,3739107-1982821H,"3,714.20",ACCEPT CARE LTD.
Adult and Health Services,Head of Adults,Third Party Payments,478101,Purchase of Care,13/05/2020,3739107-1982903H,"5,086.20",ACCEPT CARE LTD.
Adult and Health Services,Head of Adults,Third Party Payments,478101,Purchase of Care,13/05/2020,3739107-1982910H,"7,085.40",ACCEPT CARE LTD.
Adult and Health Services,Head of Adults,Third Party Payments,478101,Purchase of Care,13/05/2020,3739107-1982949H,"7,820.40",ACCEPT CARE LTD.
Adult and Health Services,Head of Adults,Third Party Payments,478101,Purchase of Care,13/05/2020,3739107-1983003H,"3,395.72",ACCEPT CARE LTD.
Adult and Health Services,Head of Adults,Third Party Payments,478101,Purchase of Care,13/05/2020,3739107-1983487H,"7,614.60",ACCEPT CARE LTD.
Adult and Health Services,Head of Adults,Third Party Payments,478101,Purchase of Care,13/05/2020,3739107-1983560H,"1,894.36",ACCEPT CARE LTD.
Adult and Health Services,Head of Adults,Third Party Payments,478101,Purchase of Care,13/05/2020,3739107-1983673H,980.96,ACCEPT CARE LTD.
Adult and Health Services,Head of Adults,Third Party Payments,478101,Purchase of Care,13/05/2020,3739107-1984073H,"7,340.20",ACCEPT CARE LTD.
Adult and Health Services,Head of Adults,Third Party Payments,478101,Purchase of Care,13/05/2020,3739107-1984128H,980.96,ACCEPT CARE LTD.
Adult and Health Services,Head of Adults,Third Party Payments,478101,Purchase of Care,13/05/2020,3739107-1984158H,"6,997.20",ACCEPT CARE LTD.
Adult and Health Services,Head of Adults,Third Party Payments,478101,Purchase of Care,13/05/2020,3739107-1984487H,"3,409.00",ACCEPT CARE LTD.
Adult and Health Services,Head of Adults,Third Party Payments,478101,Purchase of Care,13/05/2020,3739107-1984659H,"2,952.76",ACCEPT CARE LTD.
Adult and Health Services,Head of Adults,Third Party Payments,478101,Purchase of Care,13/05/2020,3739107-1985352H,980.96,ACCEPT CARE LTD.
Adult and Health Services,Head of Adults,Third Party Payments,478101,Purchase of Care,13/05/2020,3739107-1985803H,"1,146.60",ACCEPT CARE LTD.
Adult and Health Services,Head of Adults,Third Party Payments,478101,Purchase of Care,13/05/2020,3739107-1985971H,980.96,ACCEPT CARE LTD.
Adult and Health Services,Head of Adults,Third Party Payments,478101,Purchase of Care,13/05/2020,3739107-1986417H,978.04,ACCEPT CARE LTD.
Adult and Health Services,Head of Adults,Third Party Payments,478101,Purchase of Care,13/05/2020,3739107-1986462H,"1,392.56",ACCEPT CARE LTD.
Adult and Health Services,Head of Adults,Third Party Payments,478101,Purchase of Care,13/05/2020,3739107-1986765H,"1,953.16",ACCEPT CARE LTD.
Adult and Health Services,Head of Adults,Third Party Payments,478101,Purchase of Care,13/05/2020,3739107-1987070H,"6,997.20",ACCEPT CARE LTD.
Adult and Health Services,Head of Adults,Third Party Payments,478101,Purchase of Care,13/05/2020,3739107-1984333H,"5,968.20",ACCEPT CARE LTD.
Adult and Health Services,Head of Adults,Third Party Payments,478101,Purchase of Care,13/05/2020,3738629-ADDITIONALUPLIFT2/88,"9,652.02",ACCEPT CARE LTD.
Children and Young Peoples Services,Head of Childrens Social Care,Third Party Payments,425040,Rendered by Voluntary Organisations,13/05/2020,3738661-PIG_59368,"24,319.84",ACORN CARE (NE) LTD.
Children and Young Peoples Services,Head of Childrens Social Care,Third Party Payments,425021,Rendered by Voluntary Organisations,13/05/2020,3738662-PIG_59350,"12,000.00",ACORN CARE (UK) LTD T/A ACORN RESIDENTIAL SERVICES.
